Workbook

Sheet Dashbord
F1: Rekentool Ploegentoeslagen
A4: Belangrijk bij het gebruik van de rekentool
F6: Stap 1 | H6: Bepaal de keuze voor de matrix voor werknemers in ploegendiensten of producenten Ultraverse Producten
I8: middels een keuzemenu "MATRIX KEUZE" zal worden vastgesteld welke matrix van toepassing is bij het bereken van de toeslag
A9: Deze tool is alleen te gebruiken voor leden van SFG | I9: Kies het rooster welke moet worden berekend
F11: Stap 2 | H11: Berekening rooster toeslag
I12: volg de verschillende stappen bij de invulinstructies
A13: Tool berekent alleen toeslagen voor ploegendiensten niet voor dagdienstrooster(s) | I13: zie afgebeeld schema hiernaast, staat ook bij de toeslagberekening
I15: als alle gegevens zijn ingevuld wordt de roostertoeslag berekend
I16: wil je de roostertoeslag met de andere matrix berekenen ga dan terug naar "matrixkeuze" en wijzig het keuzemenu
B17: GEEN KOLOMMEN/ RIJEN INVOEGEN EN/OF VERWIJDEREN; NIET SLEPEN MET CELLEN
F20: Stap 3 | H20: Print de resultaten
H21: Door op de button "print de berekening" te klikken wordt het resultaat afgedrukt

Sheet Matrix keuze (hidden)
F1: =Standaard!$AR$6 -> Klokurenmatrix voor werknemers in ploegendiensten
D2: Is de matrix voor producenten van ultraverse producten van toepassing | F2: van | G2: tot | H2: Ma | I2: Di | J2: Wo | K2: Do | L2: Vr | M2: Za | N2: Zo
F3: 00:00:00 | G3: 01:00:00 | H3: =IF(keuze_S_V=1,Standaard!D27,IF(keuze_S_V=2,variant!D27,"")) -> 35.00% | I3: =IF(keuze_S_V=1,Standaard!E27,IF(keuze_S_V=2,variant!E27,"")) -> 35.00% | J3: =IF(keuze_S_V=1,Standaard!F27,IF(keuze_S_V=2,variant!F27,"")) -> 35.00% | K3: =IF(keuze_S_V=1,Standaard!G27,IF(keuze_S_V=2,variant!G27,"")) -> 35.00% | L3: =IF(keuze_S_V=1,Standaard!H27,IF(keuze_S_V=2,variant!H27,"")) -> 35.00% | M3: =IF(keuze_S_V=1,Standaard!I27,IF(keuze_S_V=2,variant!I27,"")) -> 35.00% | N3: =IF(keuze_S_V=1,Standaard!J27,IF(keuze_S_V=2,variant!J27,"")) -> 100.00%
C4: à | F4: 01:00:00 | G4: 02:00:00 | H4: =IF(keuze_S_V=1,Standaard!D26,IF(keuze_S_V=2,variant!D26,"")) -> 35.00% | I4: =IF(keuze_S_V=1,Standaard!E26,IF(keuze_S_V=2,variant!E26,"")) -> 35.00% | J4: =IF(keuze_S_V=1,Standaard!F26,IF(keuze_S_V=2,variant!F26,"")) -> 35.00% | K4: =IF(keuze_S_V=1,Standaard!G26,IF(keuze_S_V=2,variant!G26,"")) -> 35.00% | L4: =IF(keuze_S_V=1,Standaard!H26,IF(keuze_S_V=2,variant!H26,"")) -> 35.00% | M4: =IF(keuze_S_V=1,Standaard!I26,IF(keuze_S_V=2,variant!I26,"")) -> 35.00% | N4: =IF(keuze_S_V=1,Standaard!J26,IF(keuze_S_V=2,variant!J26,"")) -> 100.00%
F5: 02:00:00 | G5: 03:00:00 | H5: =IF(keuze_S_V=1,Standaard!D25,IF(keuze_S_V=2,variant!D25,"")) -> 35.00% | I5: =IF(keuze_S_V=1,Standaard!E25,IF(keuze_S_V=2,variant!E25,"")) -> 35.00% | J5: =IF(keuze_S_V=1,Standaard!F25,IF(keuze_S_V=2,variant!F25,"")) -> 35.00% | K5: =IF(keuze_S_V=1,Standaard!G25,IF(keuze_S_V=2,variant!G25,"")) -> 35.00% | L5: =IF(keuze_S_V=1,Standaard!H25,IF(keuze_S_V=2,variant!H25,"")) -> 35.00% | M5: =IF(keuze_S_V=1,Standaard!I25,IF(keuze_S_V=2,variant!I25,"")) -> 35.00% | N5: =IF(keuze_S_V=1,Standaard!J25,IF(keuze_S_V=2,variant!J25,"")) -> 100.00%
F6: 03:00:00 | G6: 04:00:00 | H6: =IF(keuze_S_V=1,Standaard!D24,IF(keuze_S_V=2,variant!D24,"")) -> 35.00% | I6: =IF(keuze_S_V=1,Standaard!E24,IF(keuze_S_V=2,variant!E24,"")) -> 35.00% | J6: =IF(keuze_S_V=1,Standaard!F24,IF(keuze_S_V=2,variant!F24,"")) -> 35.00% | K6: =IF(keuze_S_V=1,Standaard!G24,IF(keuze_S_V=2,variant!G24,"")) -> 35.00% | L6: =IF(keuze_S_V=1,Standaard!H24,IF(keuze_S_V=2,variant!H24,"")) -> 35.00% | M6: =IF(keuze_S_V=1,Standaard!I24,IF(keuze_S_V=2,variant!I24,"")) -> 35.00% | N6: =IF(keuze_S_V=1,Standaard!J24,IF(keuze_S_V=2,variant!J24,"")) -> 100.00%
F7: 04:00:00 | G7: 05:00:00 | H7: =IF(keuze_S_V=1,Standaard!D23,IF(keuze_S_V=2,variant!D23,"")) -> 35.00% | I7: =IF(keuze_S_V=1,Standaard!E23,IF(keuze_S_V=2,variant!E23,"")) -> 35.00% | J7: =IF(keuze_S_V=1,Standaard!F23,IF(keuze_S_V=2,variant!F23,"")) -> 35.00% | K7: =IF(keuze_S_V=1,Standaard!G23,IF(keuze_S_V=2,variant!G23,"")) -> 35.00% | L7: =IF(keuze_S_V=1,Standaard!H23,IF(keuze_S_V=2,variant!H23,"")) -> 35.00% | M7: =IF(keuze_S_V=1,Standaard!I23,IF(keuze_S_V=2,variant!I23,"")) -> 35.00% | N7: =IF(keuze_S_V=1,Standaard!J23,IF(keuze_S_V=2,variant!J23,"")) -> 100.00%
F8: 05:00:00 | G8: 06:00:00 | H8: =IF(keuze_S_V=1,Standaard!D22,IF(keuze_S_V=2,variant!D22,"")) -> 35.00% | I8: =IF(keuze_S_V=1,Standaard!E22,IF(keuze_S_V=2,variant!E22,"")) -> 35.00% | J8: =IF(keuze_S_V=1,Standaard!F22,IF(keuze_S_V=2,variant!F22,"")) -> 35.00% | K8: =IF(keuze_S_V=1,Standaard!G22,IF(keuze_S_V=2,variant!G22,"")) -> 35.00% | L8: =IF(keuze_S_V=1,Standaard!H22,IF(keuze_S_V=2,variant!H22,"")) -> 35.00% | M8: =IF(keuze_S_V=1,Standaard!I22,IF(keuze_S_V=2,variant!I22,"")) -> 35.00% | N8: =IF(keuze_S_V=1,Standaard!J22,IF(keuze_S_V=2,variant!J22,"")) -> 100.00%
F9: 06:00:00 | G9: 07:00:00 | H9: =IF(keuze_S_V=1,Standaard!D21,IF(keuze_S_V=2,variant!D21,"")) -> 0.00% | I9: =IF(keuze_S_V=1,Standaard!E21,IF(keuze_S_V=2,variant!E21,"")) -> 0.00% | J9: =IF(keuze_S_V=1,Standaard!F21,IF(keuze_S_V=2,variant!F21,"")) -> 0.00% | K9: =IF(keuze_S_V=1,Standaard!G21,IF(keuze_S_V=2,variant!G21,"")) -> 0.00% | L9: =IF(keuze_S_V=1,Standaard!H21,IF(keuze_S_V=2,variant!H21,"")) -> 0.00% | M9: =IF(keuze_S_V=1,Standaard!I21,IF(keuze_S_V=2,variant!I21,"")) -> 35.00% | N9: =IF(keuze_S_V=1,Standaard!J21,IF(keuze_S_V=2,variant!J21,"")) -> 100.00%
C10: à | F10: 07:00:00 | G10: 08:00:00 | H10: =IF(keuze_S_V=1,Standaard!D20,IF(keuze_S_V=2,variant!D20,"")) -> 0.00% | I10: =IF(keuze_S_V=1,Standaard!E20,IF(keuze_S_V=2,variant!E20,"")) -> 0.00% | J10: =IF(keuze_S_V=1,Standaard!F20,IF(keuze_S_V=2,variant!F20,"")) -> 0.00% | K10: =IF(keuze_S_V=1,Standaard!G20,IF(keuze_S_V=2,variant!G20,"")) -> 0.00% | L10: =IF(keuze_S_V=1,Standaard!H20,IF(keuze_S_V=2,variant!H20,"")) -> 0.00% | M10: =IF(keuze_S_V=1,Standaard!I20,IF(keuze_S_V=2,variant!I20,"")) -> 35.00% | N10: =IF(keuze_S_V=1,Standaard!J20,IF(keuze_S_V=2,variant!J20,"")) -> 100.00%
F11: 08:00:00 | G11: 09:00:00 | H11: =IF(keuze_S_V=1,Standaard!D19,IF(keuze_S_V=2,variant!D19,"")) -> 0.00% | I11: =IF(keuze_S_V=1,Standaard!E19,IF(keuze_S_V=2,variant!E19,"")) -> 0.00% | J11: =IF(keuze_S_V=1,Standaard!F19,IF(keuze_S_V=2,variant!F19,"")) -> 0.00% | K11: =IF(keuze_S_V=1,Standaard!G19,IF(keuze_S_V=2,variant!G19,"")) -> 0.00% | L11: =IF(keuze_S_V=1,Standaard!H19,IF(keuze_S_V=2,variant!H19,"")) -> 0.00% | M11: =IF(keuze_S_V=1,Standaard!I19,IF(keuze_S_V=2,variant!I19,"")) -> 35.00% | N11: =IF(keuze_S_V=1,Standaard!J19,IF(keuze_S_V=2,variant!J19,"")) -> 100.00%
F12: 09:00:00 | G12: 10:00:00 | H12: =IF(keuze_S_V=1,Standaard!D18,IF(keuze_S_V=2,variant!D18,"")) -> 0.00% | I12: =IF(keuze_S_V=1,Standaard!E18,IF(keuze_S_V=2,variant!E18,"")) -> 0.00% | J12: =IF(keuze_S_V=1,Standaard!F18,IF(keuze_S_V=2,variant!F18,"")) -> 0.00% | K12: =IF(keuze_S_V=1,Standaard!G18,IF(keuze_S_V=2,variant!G18,"")) -> 0.00% | L12: =IF(keuze_S_V=1,Standaard!H18,IF(keuze_S_V=2,variant!H18,"")) -> 0.00% | M12: =IF(keuze_S_V=1,Standaard!I18,IF(keuze_S_V=2,variant!I18,"")) -> 35.00% | N12: =IF(keuze_S_V=1,Standaard!J18,IF(keuze_S_V=2,variant!J18,"")) -> 100.00%
F13: 10:00:00 | G13: 11:00:00 | H13: =IF(keuze_S_V=1,Standaard!D17,IF(keuze_S_V=2,variant!D17,"")) -> 0.00% | I13: =IF(keuze_S_V=1,Standaard!E17,IF(keuze_S_V=2,variant!E17,"")) -> 0.00% | J13: =IF(keuze_S_V=1,Standaard!F17,IF(keuze_S_V=2,variant!F17,"")) -> 0.00% | K13: =IF(keuze_S_V=1,Standaard!G17,IF(keuze_S_V=2,variant!G17,"")) -> 0.00% | L13: =IF(keuze_S_V=1,Standaard!H17,IF(keuze_S_V=2,variant!H17,"")) -> 0.00% | M13: =IF(keuze_S_V=1,Standaard!I17,IF(keuze_S_V=2,variant!I17,"")) -> 35.00% | N13: =IF(keuze_S_V=1,Standaard!J17,IF(keuze_S_V=2,variant!J17,"")) -> 100.00%
F14: 11:00:00 | G14: 12:00:00 | H14: =IF(keuze_S_V=1,Standaard!D16,IF(keuze_S_V=2,variant!D16,"")) -> 0.00% | I14: =IF(keuze_S_V=1,Standaard!E16,IF(keuze_S_V=2,variant!E16,"")) -> 0.00% | J14: =IF(keuze_S_V=1,Standaard!F16,IF(keuze_S_V=2,variant!F16,"")) -> 0.00% | K14: =IF(keuze_S_V=1,Standaard!G16,IF(keuze_S_V=2,variant!G16,"")) -> 0.00% | L14: =IF(keuze_S_V=1,Standaard!H16,IF(keuze_S_V=2,variant!H16,"")) -> 0.00% | M14: =IF(keuze_S_V=1,Standaard!I16,IF(keuze_S_V=2,variant!I16,"")) -> 35.00% | N14: =IF(keuze_S_V=1,Standaard!J16,IF(keuze_S_V=2,variant!J16,"")) -> 100.00%
F15: 12:00:00 | G15: 13:00:00 | H15: =IF(keuze_S_V=1,Standaard!D15,IF(keuze_S_V=2,variant!D15,"")) -> 0.00% | I15: =IF(keuze_S_V=1,Standaard!E15,IF(keuze_S_V=2,variant!E15,"")) -> 0.00% | J15: =IF(keuze_S_V=1,Standaard!F15,IF(keuze_S_V=2,variant!F15,"")) -> 0.00% | K15: =IF(keuze_S_V=1,Standaard!G15,IF(keuze_S_V=2,variant!G15,"")) -> 0.00% | L15: =IF(keuze_S_V=1,Standaard!H15,IF(keuze_S_V=2,variant!H15,"")) -> 0.00% | M15: =IF(keuze_S_V=1,Standaard!I15,IF(keuze_S_V=2,variant!I15,"")) -> 35.00% | N15: =IF(keuze_S_V=1,Standaard!J15,IF(keuze_S_V=2,variant!J15,"")) -> 100.00%
F16: 13:00:00 | G16: 14:00:00 | H16: =IF(keuze_S_V=1,Standaard!D14,IF(keuze_S_V=2,variant!D14,"")) -> 0.00% | I16: =IF(keuze_S_V=1,Standaard!E14,IF(keuze_S_V=2,variant!E14,"")) -> 0.00% | J16: =IF(keuze_S_V=1,Standaard!F14,IF(keuze_S_V=2,variant!F14,"")) -> 0.00% | K16: =IF(keuze_S_V=1,Standaard!G14,IF(keuze_S_V=2,variant!G14,"")) -> 0.00% | L16: =IF(keuze_S_V=1,Standaard!H14,IF(keuze_S_V=2,variant!H14,"")) -> 0.00% | M16: =IF(keuze_S_V=1,Standaard!I14,IF(keuze_S_V=2,variant!I14,"")) -> 35.00% | N16: =IF(keuze_S_V=1,Standaard!J14,IF(keuze_S_V=2,variant!J14,"")) -> 100.00%
F17: 14:00:00 | G17: 15:00:00 | H17: =IF(keuze_S_V=1,Standaard!D13,IF(keuze_S_V=2,variant!D13,"")) -> 0.00% | I17: =IF(keuze_S_V=1,Standaard!E13,IF(keuze_S_V=2,variant!E13,"")) -> 0.00% | J17: =IF(keuze_S_V=1,Standaard!F13,IF(keuze_S_V=2,variant!F13,"")) -> 0.00% | K17: =IF(keuze_S_V=1,Standaard!G13,IF(keuze_S_V=2,variant!G13,"")) -> 0.00% | L17: =IF(keuze_S_V=1,Standaard!H13,IF(keuze_S_V=2,variant!H13,"")) -> 0.00% | M17: =IF(keuze_S_V=1,Standaard!I13,IF(keuze_S_V=2,variant!I13,"")) -> 35.00% | N17: =IF(keuze_S_V=1,Standaard!J13,IF(keuze_S_V=2,variant!J13,"")) -> 100.00%
F18: 15:00:00 | G18: 16:00:00 | H18: =IF(keuze_S_V=1,Standaard!D12,IF(keuze_S_V=2,variant!D12,"")) -> 0.00% | I18: =IF(keuze_S_V=1,Standaard!E12,IF(keuze_S_V=2,variant!E12,"")) -> 0.00% | J18: =IF(keuze_S_V=1,Standaard!F12,IF(keuze_S_V=2,variant!F12,"")) -> 0.00% | K18: =IF(keuze_S_V=1,Standaard!G12,IF(keuze_S_V=2,variant!G12,"")) -> 0.00% | L18: =IF(keuze_S_V=1,Standaard!H12,IF(keuze_S_V=2,variant!H12,"")) -> 0.00% | M18: =IF(keuze_S_V=1,Standaard!I12,IF(keuze_S_V=2,variant!I12,"")) -> 35.00% | N18: =IF(keuze_S_V=1,Standaard!J12,IF(keuze_S_V=2,variant!J12,"")) -> 100.00%
F19: 16:00:00 | G19: 17:00:00 | H19: =IF(keuze_S_V=1,Standaard!D11,IF(keuze_S_V=2,variant!D11,"")) -> 0.00% | I19: =IF(keuze_S_V=1,Standaard!E11,IF(keuze_S_V=2,variant!E11,"")) -> 0.00% | J19: =IF(keuze_S_V=1,Standaard!F11,IF(keuze_S_V=2,variant!F11,"")) -> 0.00% | K19: =IF(keuze_S_V=1,Standaard!G11,IF(keuze_S_V=2,variant!G11,"")) -> 0.00% | L19: =IF(keuze_S_V=1,Standaard!H11,IF(keuze_S_V=2,variant!H11,"")) -> 0.00% | M19: =IF(keuze_S_V=1,Standaard!I11,IF(keuze_S_V=2,variant!I11,"")) -> 35.00% | N19: =IF(keuze_S_V=1,Standaard!J11,IF(keuze_S_V=2,variant!J11,"")) -> 100.00%
F20: 17:00:00 | G20: 18:00:00 | H20: =IF(keuze_S_V=1,Standaard!D10,IF(keuze_S_V=2,variant!D10,"")) -> 0.00% | I20: =IF(keuze_S_V=1,Standaard!E10,IF(keuze_S_V=2,variant!E10,"")) -> 0.00% | J20: =IF(keuze_S_V=1,Standaard!F10,IF(keuze_S_V=2,variant!F10,"")) -> 0.00% | K20: =IF(keuze_S_V=1,Standaard!G10,IF(keuze_S_V=2,variant!G10,"")) -> 0.00% | L20: =IF(keuze_S_V=1,Standaard!H10,IF(keuze_S_V=2,variant!H10,"")) -> 0.00% | M20: =IF(keuze_S_V=1,Standaard!I10,IF(keuze_S_V=2,variant!I10,"")) -> 35.00% | N20: =IF(keuze_S_V=1,Standaard!J10,IF(keuze_S_V=2,variant!J10,"")) -> 100.00%
F21: 18:00:00 | G21: 19:00:00 | H21: =IF(keuze_S_V=1,Standaard!D9,IF(keuze_S_V=2,variant!D9,"")) -> 33.00% | I21: =IF(keuze_S_V=1,Standaard!E9,IF(keuze_S_V=2,variant!E9,"")) -> 33.00% | J21: =IF(keuze_S_V=1,Standaard!F9,IF(keuze_S_V=2,variant!F9,"")) -> 33.00% | K21: =IF(keuze_S_V=1,Standaard!G9,IF(keuze_S_V=2,variant!G9,"")) -> 33.00% | L21: =IF(keuze_S_V=1,Standaard!H9,IF(keuze_S_V=2,variant!H9,"")) -> 33.00% | M21: =IF(keuze_S_V=1,Standaard!I9,IF(keuze_S_V=2,variant!I9,"")) -> 35.00% | N21: =IF(keuze_S_V=1,Standaard!J9,IF(keuze_S_V=2,variant!J9,"")) -> 100.00%
F22: 19:00:00 | G22: 20:00:00 | H22: =IF(keuze_S_V=1,Standaard!D8,IF(keuze_S_V=2,variant!D8,"")) -> 33.00% | I22: =IF(keuze_S_V=1,Standaard!E8,IF(keuze_S_V=2,variant!E8,"")) -> 33.00% | J22: =IF(keuze_S_V=1,Standaard!F8,IF(keuze_S_V=2,variant!F8,"")) -> 33.00% | K22: =IF(keuze_S_V=1,Standaard!G8,IF(keuze_S_V=2,variant!G8,"")) -> 33.00% | L22: =IF(keuze_S_V=1,Standaard!H8,IF(keuze_S_V=2,variant!H8,"")) -> 33.00% | M22: =IF(keuze_S_V=1,Standaard!I8,IF(keuze_S_V=2,variant!I8,"")) -> 35.00% | N22: =IF(keuze_S_V=1,Standaard!J8,IF(keuze_S_V=2,variant!J8,"")) -> 100.00%
F23: 20:00:00 | G23: 21:00:00 | H23: =IF(keuze_S_V=1,Standaard!D7,IF(keuze_S_V=2,variant!D7,"")) -> 33.00% | I23: =IF(keuze_S_V=1,Standaard!E7,IF(keuze_S_V=2,variant!E7,"")) -> 33.00% | J23: =IF(keuze_S_V=1,Standaard!F7,IF(keuze_S_V=2,variant!F7,"")) -> 33.00% | K23: =IF(keuze_S_V=1,Standaard!G7,IF(keuze_S_V=2,variant!G7,"")) -> 33.00% | L23: =IF(keuze_S_V=1,Standaard!H7,IF(keuze_S_V=2,variant!H7,"")) -> 33.00% | M23: =IF(keuze_S_V=1,Standaard!I7,IF(keuze_S_V=2,variant!I7,"")) -> 35.00% | N23: =IF(keuze_S_V=1,Standaard!J7,IF(keuze_S_V=2,variant!J7,"")) -> 100.00%
F24: 21:00:00 | G24: 22:00:00 | H24: =IF(keuze_S_V=1,Standaard!D6,IF(keuze_S_V=2,variant!D6,"")) -> 33.00% | I24: =IF(keuze_S_V=1,Standaard!E6,IF(keuze_S_V=2,variant!E6,"")) -> 33.00% | J24: =IF(keuze_S_V=1,Standaard!F6,IF(keuze_S_V=2,variant!F6,"")) -> 33.00% | K24: =IF(keuze_S_V=1,Standaard!G6,IF(keuze_S_V=2,variant!G6,"")) -> 33.00% | L24: =IF(keuze_S_V=1,Standaard!H6,IF(keuze_S_V=2,variant!H6,"")) -> 33.00% | M24: =IF(keuze_S_V=1,Standaard!I6,IF(keuze_S_V=2,variant!I6,"")) -> 35.00% | N24: =IF(keuze_S_V=1,Standaard!J6,IF(keuze_S_V=2,variant!J6,"")) -> 100.00%
F25: 22:00:00 | G25: 23:00:00 | H25: =IF(keuze_S_V=1,Standaard!D5,IF(keuze_S_V=2,variant!D5,"")) -> 33.00% | I25: =IF(keuze_S_V=1,Standaard!E5,IF(keuze_S_V=2,variant!E5,"")) -> 33.00% | J25: =IF(keuze_S_V=1,Standaard!F5,IF(keuze_S_V=2,variant!F5,"")) -> 33.00% | K25: =IF(keuze_S_V=1,Standaard!G5,IF(keuze_S_V=2,variant!G5,"")) -> 33.00% | L25: =IF(keuze_S_V=1,Standaard!H5,IF(keuze_S_V=2,variant!H5,"")) -> 33.00% | M25: =IF(keuze_S_V=1,Standaard!I5,IF(keuze_S_V=2,variant!I5,"")) -> 35.00% | N25: =IF(keuze_S_V=1,Standaard!J5,IF(keuze_S_V=2,variant!J5,"")) -> 100.00%
F26: 23:00:00 | G26: 00:00:00 | H26: =IF(keuze_S_V=1,Standaard!D4,IF(keuze_S_V=2,variant!D4,"")) -> 33.00% | I26: =IF(keuze_S_V=1,Standaard!E4,IF(keuze_S_V=2,variant!E4,"")) -> 33.00% | J26: =IF(keuze_S_V=1,Standaard!F4,IF(keuze_S_V=2,variant!F4,"")) -> 33.00% | K26: =IF(keuze_S_V=1,Standaard!G4,IF(keuze_S_V=2,variant!G4,"")) -> 33.00% | L26: =IF(keuze_S_V=1,Standaard!H4,IF(keuze_S_V=2,variant!H4,"")) -> 33.00% | M26: =IF(keuze_S_V=1,Standaard!I4,IF(keuze_S_V=2,variant!I4,"")) -> 35.00% | N26: =IF(keuze_S_V=1,Standaard!J4,IF(keuze_S_V=2,variant!J4,"")) -> 100.00%
F27: Toeslagpercentages over basisuurloon

Sheet Standaard (hidden)
B2: Toeslagpercentages over basisuurloon | AF2: =SUM(AF4:AF1443)/60 -> 408.0% | AG2: =SUM(AG4:AG1443)/60 -> 408% | AH2: 408% | AI2: 408% | AJ2: 408% | AK2: 840% | AL2: 2400% | AM2: =SUM(AF2:AL2) -> 5280.000% | BB2: =+SUM(BH8:BN17) -> 0 | BO2: =IF(AND(SUM(BP8:BP17)>15,SUM(BP8:BP17)>0),SUM(BP8:BP17)-15,0) -> 0 | BP2: 0.21% | BT2: =SMALL('toeslag berekening'!D10:D19,COUNTIF('toeslag berekening'!D10:D19,0)+1) -> 0.25
B3: van | C3: tot | D3: Ma | E3: Di | F3: Wo | G3: Do | H3: Vr | I3: Za | J3: Zo | L3: Uitgangspunten berekening toeslagen: | AD3: start | AE3: eind | AF3: 3 | AG3: =+AF3+1 -> 4 | AH3: =+AG3+1 -> 5 | AI3: 6 | AJ3: 7 | AK3: 8 | AL3: 9 | BO3: =SUM(BP8:BP17) -> 0 | BT3: =LARGE('toeslag berekening'!D10:D19,COUNTIF('toeslag berekening'!D10:D19,0)+1) -> 0.9166666667
B4: 23:00:00 | C4: 00:00:00 | D4: =$D$31 -> 33.00% | E4: 33.00% | F4: 33.00% | G4: 33.00% | H4: 33.00% | I4: =$D$32 -> 35.00% | J4: =$D$33 -> 100.00% | L4: Gemiddeld jaar | P4: 365.25 | Q4: dagen per jaar | AD4: 0 | AE4: 0.0006944444444 | AF4: =IF($AQ$9=1,IFERROR(VLOOKUP($AD4,CorS_matrix,AF$3,FALSE),AF3),IFERROR(VLOOKUP($AD4,S_matrix,AF$3,FALSE),AF3)) -> 35.0% | AG4: =IF($AQ$9=1,IFERROR(VLOOKUP($AD4,CorS_matrix,AG$3,FALSE),AG3),IFERROR(VLOOKUP($AD4,S_matrix,AG$3,FALSE),AG3)) -> 35.0% | AH4: =IF($AQ$9=1,IFERROR(VLOOKUP($AD4,CorS_matrix,AH$3,FALSE),AH3),IFERROR(VLOOKUP($AD4,S_matrix,AH$3,FALSE),AH3)) -> 35.0% | AI4: =IF($AQ$9=1,IFERROR(VLOOKUP($AD4,CorS_matrix,AI$3,FALSE),AI3),IFERROR(VLOOKUP($AD4,S_matrix,AI$3,FALSE),AI3)) -> 35.0% | AJ4: =IF($AQ$9=1,IFERROR(VLOOKUP($AD4,CorS_matrix,AJ$3,FALSE),AJ3),IFERROR(VLOOKUP($AD4,S_matrix,AJ$3,FALSE),AJ3)) -> 35.0% | AK4: =IF($AQ$9=1,IFERROR(VLOOKUP($AD4,CorS_matrix,AK$3,FALSE),AK3),IFERROR(VLOOKUP($AD4,S_matrix,AK$3,FALSE),AK3)) -> 35.0% | AL4: =IF($AQ$9=1,IFERROR(VLOOKUP($AD4,CorS_matrix,AL$3,FALSE),AL3),IFERROR(VLOOKUP($AD4,S_matrix,AL$3,FALSE),AL3)) -> 100.0% | AN4: =IF(AND(P13>0,P22>0),0,IF(AND(P13>0,P22=0),P13,IF(AND(P13=0,P22>0),P22,0))) -> 120 | AP4: ja | AR4: Klokurenmatrix voor werknemers in ploegendiensten
B5: 22:00:00 | C5: 23:00:00 | D5: 33.00% | E5: 33.00% | F5: 33.00% | G5: 33.00% | H5: 33.00% | I5: 35.00% | J5: 100.00% | P5: =P4/7 -> 52.18 | Q5: weken per jaar | AD5: 0.0006944444444 | AE5: 0.001388888889 | AF5: =IF($AQ$9=1,IFERROR(VLOOKUP($AD5,CorS_matrix,AF$3,FALSE),AF4),IFERROR(VLOOKUP($AD5,S_matrix,AF$3,FALSE),AF4)) -> 35.0% | AG5: 35.0% | AH5: 35.0% | AI5: 35.0% | AJ5: 35.0% | AK5: 35.0% | AL5: 100.0% | AN5: =IF(AN4=0,0,AN4/wknjaar) -> 2.299795 | AP5: nee | AR5: Klokurenmatrix voor producenten van ultraverse producten | BO5: =MIN(BB8:BB17) -> 0.25 | BT5: =MAX(BD8:BD17) -> 8.00 | CJ5: TRUE | CK5: 1
B6: 21:00:00 | C6: 22:00:00 | D6: 33.00% | E6: 33.00% | F6: 33.00% | G6: 33.00% | H6: 33.00% | I6: 35.00% | J6: 100.00% | P6: =P5/12 -> 4.35 | Q6: weken per maand | AD6: 0.001388888889 | AE6: 0.002083333333 | AF6: 35.0% | AG6: 35.0% | AH6: 35.0% | AI6: 35.0% | AJ6: 35.0% | AK6: 35.0% | AL6: 100.0% | AP6: 1 | AQ6: =IF(COUNTIF(AP6:AP7,"1")=$AP$14,2,IF(AND(AP6=AP13,AP7=AP14),1,IF(AND(AP6=AP14,AP7=AP13),2,0))) -> 1 | AR6: =IF(keuze_S_V=1,$AR$4,IF(keuze_S_V=2,$AR$5,"geen matrix gekozen")) -> Klokurenmatrix voor werknemers in ploegendiensten | AX6: 0.00% | BB6: =IF(MAX($BE$21:$BE$72)=0,0,VLOOKUP((MAX($BE$21:$BE$72)),$BE$21:$BF$72,2,FALSE)) -> 0 | BC6: DEF | BD6: Aanwezig | BF6: AT | BO6: =MAX(BC8:BC17) -> 1.25 | CK6: Meenemen
B7: 20:00:00 | C7: 21:00:00 | D7: 33.00% | E7: 33.00% | F7: 33.00% | G7: 33.00% | H7: 33.00% | I7: 35.00% | J7: 100.00% | P7: 5 | Q7: werkdagen per week | AD7: 0.002083333333 | AE7: 0.002777777778 | AF7: 35.0% | AG7: 35.0% | AH7: 35.0% | AI7: 35.0% | AJ7: 35.0% | AK7: 35.0% | AL7: 100.0% | AP7: =AP10 -> 2 | AX7: 30.0% | BC7: Eind | BD7: dnst | BE7: rooster | BF7: AT-dnst | BG7: AT rooster | BH7: ma | BI7: di | BJ7: wo | BK7: do | BL7: vr | BM7: za | BN7: zo | BO7: =(BO6-BO5) -> 1.00 | BS7: Bedrijfstijd | BU7: =COUNTIF(BH8:BH17,">"&0) -> 0 | BV7: =COUNTIF(BI8:BI17,">"&0) -> 0 | BW7: =COUNTIF(BJ8:BJ17,">"&0) -> 0 | BX7: =COUNTIF(BK8:BK17,">"&0) -> 0 | BY7: =COUNTIF(BL8:BL17,">"&0) -> 0 | CK7: in ADV
B8: 19:00:00 | C8: 20:00:00 | D8: 33.00% | E8: 33.00% | F8: 33.00% | G8: 33.00% | H8: 33.00% | I8: 35.00% | J8: 100.00% | P8: =wknjaar*wrk_dgn -> 260.8928571 | Q8: diensten per jaar | AD8: 0.002777777778 | AE8: 0.003472222222 | AF8: 35.0% | AG8: 35.0% | AH8: 35.0% | AI8: 35.0% | AJ8: 35.0% | AK8: 35.0% | AL8: 100.0% | AX8: 33.00% | BA8: ='toeslag berekening'!A10 -> O | BB8: =IF('toeslag berekening'!D10=0,"",'toeslag berekening'!D10) -> 0.25 | BC8: =IF('toeslag berekening'!E10>'toeslag berekening'!D10,('toeslag berekening'!D10+('toeslag berekening'!E10-'toeslag berekening'!D10)),IF('toeslag berekening'!E10<'toeslag berekening'!D10,('toeslag berekening'!D10+('toeslag berekening'!E10+1-'toeslag berekening'!D10)),"")) -> 0.5833333333 | BD8: =IF(BC8="",0,(BC8-'toeslag berekening'!D10)*24) -> 8.00 | BE8: =IF(SUM(BH8:BN8)>0,SUM(BH8:BN8)*BD8,0) -> 0.00 | BF8: =IF(BC8="","",IF('toeslag berekening'!I10="nee",(BC8-'toeslag berekening'!D10-'toeslag berekening'!H10)*24,BD8)) -> 8.00 | BG8: =IF(SUM(BH8:BN8)>0,SUM(BH8:BN8)*BF8,0) -> 0.00 | BH8: =COUNTIF('toeslag berekening'!L$7:L$58,'toeslag berekening'!$A10) -> 0 | BI8: =COUNTIF('toeslag berekening'!M$7:M$58,'toeslag berekening'!$A10) -> 0 | BJ8: =COUNTIF('toeslag berekening'!N$7:N$58,'toeslag berekening'!$A10) -> 0 | BK8: =COUNTIF('toeslag berekening'!O$7:O$58,'toeslag berekening'!$A10) -> 0 | BL8: =COUNTIF('toeslag berekening'!P$7:P$58,'toeslag berekening'!$A10) -> 0 | BM8: =COUNTIF('toeslag berekening'!Q$7:Q$58,'toeslag berekening'!$A10) -> 0 | BN8: =COUNTIF('toeslag berekening'!R$7:R$58,'toeslag berekening'!$A10) -> 0 | BO8: =IF(BA8=0,"","X") -> X | BP8: =IF(BO8="x",COUNTIF(BH8:BN8,">"&0),0) -> 0 | BS8: =IF(BT8=1,COUNTIF(BH8:BN8,">"&0)*BD8,0) -> 0 | BT8: =IF(BD8>0,1,0) -> 1.00 | BU8: =IF(BH8>=1,'toeslag berekening'!$D10,0) -> 0 | BV8: =IF(BI8>=1,'toeslag berekening'!$D10,0) -> 0 | BW8: =IF(BJ8>=1,'toeslag berekening'!$D10,0) -> 0 | BX8: =IF(BK8>=1,'toeslag berekening'!$D10,0) -> 0 | BY8: =IF(BL8>=1,'toeslag berekening'!$D10,0) -> 0 | BZ8: =IF(BM8>=1,'toeslag berekening'!$D10,0) -> 0 | CA8: =IF(BN8>=1,'toeslag berekening'!$D10,0) -> 0 | CB8: =IF(BH8>=1,$BC8,0) -> 0 | CC8: =IF(BI8>=1,$BC8,0) -> 0 | CD8: 0 | CE8: 0 | CF8: 0 | CG8: 0 | CH8: 0 | CJ8: Pauze | CK8: ADV in pauze | CN8: =BB8 -> 0.25 | CO8: =BC8 -> 0.5833333333 | CP8: ma | CQ8: di | CR8: wo | CS8: do | CT8: vr | CU8: za | CV8: zo | CX8: ma | CY8: di | CZ8: wo | DA8: do | DB8: vr | DC8: za | DD8: zo
B9: 18:00:00 | C9: 19:00:00 | D9: =$D$31 -> 33.00% | E9: =$D$31 -> 33.00% | F9: 33.00% | G9: 33.00% | H9: 33.00% | I9: 35.00% | J9: 100.00% | AD9: 0.003472222222 | AE9: 0.004166666667 | AF9: 35.0% | AG9: 35.0% | AH9: 35.0% | AI9: 35.0% | AJ9: 35.0% | AK9: 35.0% | AL9: 100.0% | AP9: 1 | AQ9: =IF(AND(AP9=1,AP10=2,AP11>=2,AP11<=7),1,IF(AND(AP9=1,AP10=1,AP11>=2,AP11<=7),2,0)) -> 0 | AX9: 35.00% | BA9: ='toeslag berekening'!A11 -> M | BB9: =IF('toeslag berekening'!D11=0,"",'toeslag berekening'!D11) -> 0.5833333333 | BC9: =IF('toeslag berekening'!E11>'toeslag berekening'!D11,('toeslag berekening'!D11+('toeslag berekening'!E11-'toeslag berekening'!D11)),IF('toeslag berekening'!E11<'toeslag berekening'!D11,('toeslag berekening'!D11+('toeslag berekening'!E11+1-'toeslag berekening'!D11)),"")) -> 0.9166666667 | BD9: =IF(BC9="",0,(BC9-'toeslag berekening'!D11)*24) -> 8.00 | BE9: 0.00 | BF9: =IF(BC9="","",IF('toeslag berekening'!I11="nee",(BC9-'toeslag berekening'!D11-'toeslag berekening'!H11)*24,BD9)) -> 8.00 | BG9: 0.00 | BH9: =COUNTIF('toeslag berekening'!L$7:L$58,'toeslag berekening'!$A11) -> 0 | BI9: =COUNTIF('toeslag berekening'!M$7:M$58,'toeslag berekening'!$A11) -> 0 | BJ9: =COUNTIF('toeslag berekening'!N$7:N$58,'toeslag berekening'!$A11) -> 0 | BK9: =COUNTIF('toeslag berekening'!O$7:O$58,'toeslag berekening'!$A11) -> 0 | BL9: =COUNTIF('toeslag berekening'!P$7:P$58,'toeslag berekening'!$A11) -> 0 | BM9: =COUNTIF('toeslag berekening'!Q$7:Q$58,'toeslag berekening'!$A11) -> 0 | BN9: =COUNTIF('toeslag berekening'!R$7:R$58,'toeslag berekening'!$A11) -> 0 | BO9: =IF(BA9=0,"",IF(AND(BA9<>0,BB9<>BB8,COUNTIF($BB$8:$BB$17,$BB9)=1,$BO$7>=1),"X",0)) -> X | BP9: =IF(BO9="x",COUNTIF(BH9:BN9,">"&0),0) -> 0 | BS9: 0 | BT9: =IF(BD9>0,1,0) -> 1.00 | BU9: =IF(BH9>=1,'toeslag berekening'!$D11,0) -> 0 | BV9: =IF(BI9>=1,'toeslag berekening'!$D11,0) -> 0 | BW9: =IF(BJ9>=1,'toeslag berekening'!$D11,0) -> 0 | BX9: =IF(BK9>=1,'toeslag berekening'!$D11,0) -> 0 | BY9: =IF(BL9>=1,'toeslag berekening'!$D11,0) -> 0 | BZ9: =IF(BM9>=1,'toeslag berekening'!$D11,0) -> 0 | CA9: =IF(BN9>=1,'toeslag berekening'!$D11,0) -> 0 | CB9: =IF(BH9>=1,$BC9,0) -> 0 | CC9: 0 | CD9: 0 | CE9: 0 | CF9: 0 | CG9: 0 | CH9: 0 | CJ9: betaald | CK9: =IF(AND(Standaard!CJ10>0,'toeslag berekening'!I10="ja"),Standaard!CJ10*24,"") ->  | CL9: =IFERROR(SUM(BH8:BN8)*CK9,0) -> 0 | CO9: 0.00% | CP9: =IF(OR($BC$8="",BH$8=0),0,(COUNTIFS(S_time,">="&$BB$8,S_time,"<"&$BC$8,S_ma,$CO9)/60)*BH$8) -> 0 | CQ9: =IF(OR($BC$8="",BI$8=0),0,(COUNTIFS(S_time,">="&$BB$8,S_time,"<"&$BC$8,S_di,$CO9)/60)*BI$8) -> 0 | CR9: =IF(OR($BC$8="",BJ$8=0),0,(COUNTIFS(S_time,">="&$BB$8,S_time,"<"&$BC$8,S_wo,$CO9)/60)*BJ$8) -> 0 | CS9: =IF(OR($BC$8="",BK$8=0),0,(COUNTIFS(S_time,">="&$BB$8,S_time,"<"&$BC$8,S_do,$CO9)/60)*BK$8) -> 0 | CT9: =IF(OR($BC$8="",BL$8=0),0,(COUNTIFS(S_time,">="&$BB$8,S_time,"<"&$BC$8,S_vr,$CO9)/60)*BL$8) -> 0 | CU9: =IF(OR($BC$8="",BM$8=0),0,(COUNTIFS(S_time,">="&$BB$8,S_time,"<"&$BC$8,S_za,$CO9)/60)*BM$8) -> 0 | CV9: =IF(OR($BC$8="",BN$8=0),0,(COUNTIFS(S_time,">="&$BB$8,S_time,"<"&$BC$8,S_zo,$CO9)/60)*BN$8) -> 0 | CX9: =IF(OR($BC$8="",BH$8=0),0,(COUNTIFS(V_time,">="&$BB$8,V_time,"<"&$BC$8,V_ma,$CO9)/60)*BH$8) -> 0 | CY9: =IF(OR($BC$8="",BI$8=0),0,(COUNTIFS(V_time,">="&$BB$8,V_time,"<"&$BC$8,V_di,$CO9)/60)*BI$8) -> 0 | CZ9: =IF(OR($BC$8="",BJ$8=0),0,(COUNTIFS(V_time,">="&$BB$8,V_time,"<"&$BC$8,V_wo,$CO9)/60)*BJ$8) -> 0 | DA9: =IF(OR($BC$8="",BK$8=0),0,(COUNTIFS(V_time,">="&$BB$8,V_time,"<"&$BC$8,V_do,$CO9)/60)*BK$8) -> 0 | DB9: =IF(OR($BC$8="",BL$8=0),0,(COUNTIFS(V_time,">="&$BB$8,V_time,"<"&$BC$8,V_vr,$CO9)/60)*BL$8) -> 0 | DC9: =IF(OR($BC$8="",BM$8=0),0,(COUNTIFS(V_time,">="&$BB$8,V_time,"<"&$BC$8,V_za,$CO9)/60)*BM$8) -> 0 | DD9: =IF(OR($BC$8="",BN$8=0),0,(COUNTIFS(V_time,">="&$BB$8,V_time,"<"&$BC$8,V_zo,$CO9)/60)*BN$8) -> 0
B10: 17:00:00 | C10: 18:00:00 | D10: =$D$30 -> 0.00% | E10: 0.00% | F10: 0.00% | G10: 0.00% | H10: 0.00% | I10: 35.00% | J10: 100.00% | L10: Bruto voltijdnorm | P10: 40.00 | Q10: uren per week | AD10: 0.004166666667 | AE10: 0.004861111111 | AF10: 35.0% | AG10: 35.0% | AH10: 35.0% | AI10: 35.0% | AJ10: 35.0% | AK10: 35.0% | AL10: 100.0% | AP10: 2 | AX10: 50.0% | BA10: ='toeslag berekening'!A12 -> N | BB10: =IF('toeslag berekening'!D12=0,"",'toeslag berekening'!D12) -> 0.9166666667 | BC10: =IF('toeslag berekening'!E12>'toeslag berekening'!D12,('toeslag berekening'!D12+('toeslag berekening'!E12-'toeslag berekening'!D12)),IF('toeslag berekening'!E12<'toeslag berekening'!D12,('toeslag berekening'!D12+('toeslag berekening'!E12+1-'toeslag berekening'!D12)),"")) -> 1.25 | BD10: =IF(BC10="",0,(BC10-'toeslag berekening'!D12)*24) -> 8.00 | BE10: 0.00 | BF10: =IF(BC10="","",IF('toeslag berekening'!I12="nee",(BC10-'toeslag berekening'!D12-'toeslag berekening'!H12)*24,BD10)) -> 8.00 | BG10: 0.00 | BH10: =COUNTIF('toeslag berekening'!L$7:L$58,'toeslag berekening'!$A12) -> 0 | BI10: =COUNTIF('toeslag berekening'!M$7:M$58,'toeslag berekening'!$A12) -> 0 | BJ10: =COUNTIF('toeslag berekening'!N$7:N$58,'toeslag berekening'!$A12) -> 0 | BK10: =COUNTIF('toeslag berekening'!O$7:O$58,'toeslag berekening'!$A12) -> 0 | BL10: =COUNTIF('toeslag berekening'!P$7:P$58,'toeslag berekening'!$A12) -> 0 | BM10: =COUNTIF('toeslag berekening'!Q$7:Q$58,'toeslag berekening'!$A12) -> 0 | BN10: =COUNTIF('toeslag berekening'!R$7:R$58,'toeslag berekening'!$A12) -> 0 | BO10: =IF(BA10=0,"",IF(AND(BA10<>0,BB10<>BB9,COUNTIF($BB$8:$BB$17,$BB10)=1,$BO$7>=1),"X",0)) -> X | BP10: =IF(BO10="x",COUNTIF(BH10:BN10,">"&0),0) -> 0 | BS10: 0 | BT10: 1.00 | BU10: =IF(BH10>=1,'toeslag berekening'!$D12,0) -> 0 | BV10: =IF(BI10>=1,'toeslag berekening'!$D12,0) -> 0 | BW10: =IF(BJ10>=1,'toeslag berekening'!$D12,0) -> 0 | BX10: =IF(BK10>=1,'toeslag berekening'!$D12,0) -> 0 | BY10: =IF(BL10>=1,'toeslag berekening'!$D12,0) -> 0 | BZ10: =IF(BM10>=1,'toeslag berekening'!$D12,0) -> 0 | CA10: =IF(BN10>=1,'toeslag berekening'!$D12,0) -> 0 | CB10: 0 | CC10: 0 | CD10: 0 | CE10: 0 | CF10: 0 | CG10: 0 | CH10: 0 | CJ10: 00:00:00 | CK10: =IF(AND(Standaard!CJ11>0,'toeslag berekening'!I11="ja"),Standaard!CJ11*24,"") ->  | CL10: 0 | CO10: 30.0% | CP10: 0 | CQ10: 0 | CR10: 0 | CS10: 0 | CT10: 0 | CU10: 0 | CV10: 0 | CX10: 0 | CY10: 0 | CZ10: 0 | DA10: 0 | DB10: 0 | DC10: 0 | DD10: 0
B11: 16:00:00 | C11: 17:00:00 | D11: 0.00% | E11: 0.00% | F11: 0.00% | G11: 0.00% | H11: 0.00% | I11: 35.00% | J11: 100.00% | L11: Bruto voltijd uren | P11: =ROUND(contract*wknjaar,0) -> 2087.00 | Q11: uren per jaar | AD11: 0.004861111111 | AE11: 0.005555555556 | AF11: 35.0% | AG11: 35.0% | AH11: 35.0% | AI11: 35.0% | AJ11: 35.0% | AK11: 35.0% | AL11: 100.0% | AP11: 1 | AQ11: =IFERROR(HLOOKUP(AQ9,#REF!,Standaard!AP11+1,FALSE),"X") -> X | AX11: 100.00% | BA11: ='toeslag berekening'!A13 -> D | BB11: =IF('toeslag berekening'!D13=0,"",'toeslag berekening'!D13) -> 0.3333333333 | BC11: =IF('toeslag berekening'!E13>'toeslag berekening'!D13,('toeslag berekening'!D13+('toeslag berekening'!E13-'toeslag berekening'!D13)),IF('toeslag berekening'!E13<'toeslag berekening'!D13,('toeslag berekening'!D13+('toeslag berekening'!E13+1-'toeslag berekening'!D13)),"")) -> 0.6666666667 | BD11: =IF(BC11="",0,(BC11-'toeslag berekening'!D13)*24) -> 8.00 | BE11: 0.00 | BF11: =IF(BC11="","",IF('toeslag berekening'!I13="nee",(BC11-'toeslag berekening'!D13-'toeslag berekening'!H13)*24,BD11)) -> 8.00 | BG11: 0.00 | BH11: =COUNTIF('toeslag berekening'!L$7:L$58,'toeslag berekening'!$A13) -> 0 | BI11: =COUNTIF('toeslag berekening'!M$7:M$58,'toeslag berekening'!$A13) -> 0 | BJ11: =COUNTIF('toeslag berekening'!N$7:N$58,'toeslag berekening'!$A13) -> 0 | BK11: =COUNTIF('toeslag berekening'!O$7:O$58,'toeslag berekening'!$A13) -> 0 | BL11: =COUNTIF('toeslag berekening'!P$7:P$58,'toeslag berekening'!$A13) -> 0 | BM11: =COUNTIF('toeslag berekening'!Q$7:Q$58,'toeslag berekening'!$A13) -> 0 | BN11: =COUNTIF('toeslag berekening'!R$7:R$58,'toeslag berekening'!$A13) -> 0 | BO11: X | BP11: 0 | BS11: 0 | BT11: 1.00 | BU11: =IF(BH11>=1,'toeslag berekening'!$D13,0) -> 0 | BV11: =IF(BI11>=1,'toeslag berekening'!$D13,0) -> 0 | BW11: =IF(BJ11>=1,'toeslag berekening'!$D13,0) -> 0 | BX11: =IF(BK11>=1,'toeslag berekening'!$D13,0) -> 0 | BY11: =IF(BL11>=1,'toeslag berekening'!$D13,0) -> 0 | BZ11: =IF(BM11>=1,'toeslag berekening'!$D13,0) -> 0 | CA11: =IF(BN11>=1,'toeslag berekening'!$D13,0) -> 0 | CB11: 0 | CC11: 0 | CD11: 0 | CE11: 0 | CF11: 0 | CG11: 0 | CH11: 0 | CJ11: 00:00:00 | CK11: =IF(AND(Standaard!CJ12>0,'toeslag berekening'!I12="ja"),Standaard!CJ12*24,"") ->  | CL11: 0 | CO11: 33.00% | CP11: 0 | CQ11: 0 | CR11: 0 | CS11: 0 | CT11: 0 | CU11: 0 | CV11: 0 | CX11: 0 | CY11: 0 | CZ11: 0 | DA11: 0 | DB11: 0 | DC11: 0 | DD11: 0
B12: 15:00:00 | C12: 16:00:00 | D12: 0.00% | E12: 0.00% | F12: 0.00% | G12: 0.00% | H12: 0.00% | I12: 35.00% | J12: 100.00% | P12: =P11/12 -> 173.92 | Q12: uren per maand | AD12: 0.005555555556 | AE12: 0.00625 | AF12: 35.0% | AG12: 35.0% | AH12: 35.0% | AI12: 35.0% | AJ12: 35.0% | AK12: 35.0% | AL12: 100.0% | BA12: ='toeslag berekening'!A14 -> 0 | BB12: =IF('toeslag berekening'!D14=0,"",'toeslag berekening'!D14) ->  | BC12: =IF('toeslag berekening'!E14>'toeslag berekening'!D14,('toeslag berekening'!D14+('toeslag berekening'!E14-'toeslag berekening'!D14)),IF('toeslag berekening'!E14<'toeslag berekening'!D14,('toeslag berekening'!D14+('toeslag berekening'!E14+1-'toeslag berekening'!D14)),"")) ->  | BD12: =IF(BC12="",0,(BC12-'toeslag berekening'!D14)*24) -> 0.00 | BE12: 0.00 | BF12: =IF(BC12="","",IF('toeslag berekening'!I14="nee",(BC12-'toeslag berekening'!D14-'toeslag berekening'!H14)*24,BD12)) ->  | BG12: 0.00 | BH12: =COUNTIF('toeslag berekening'!L$7:L$58,'toeslag berekening'!$A14) -> 0 | BI12: =COUNTIF('toeslag berekening'!M$7:M$58,'toeslag berekening'!$A14) -> 0 | BJ12: =COUNTIF('toeslag berekening'!N$7:N$58,'toeslag berekening'!$A14) -> 0 | BK12: =COUNTIF('toeslag berekening'!O$7:O$58,'toeslag berekening'!$A14) -> 0 | BL12: =COUNTIF('toeslag berekening'!P$7:P$58,'toeslag berekening'!$A14) -> 0 | BM12: =COUNTIF('toeslag berekening'!Q$7:Q$58,'toeslag berekening'!$A14) -> 0 | BN12: =COUNTIF('toeslag berekening'!R$7:R$58,'toeslag berekening'!$A14) -> 0 | BP12: 0 | BS12: 0 | BT12: 0.00 | BU12: =IF(BH12>=1,'toeslag berekening'!$D14,0) -> 0 | BV12: =IF(BI12>=1,'toeslag berekening'!$D14,0) -> 0 | BW12: =IF(BJ12>=1,'toeslag berekening'!$D14,0) -> 0 | BX12: =IF(BK12>=1,'toeslag berekening'!$D14,0) -> 0 | BY12: =IF(BL12>=1,'toeslag berekening'!$D14,0) -> 0 | BZ12: =IF(BM12>=1,'toeslag berekening'!$D14,0) -> 0 | CA12: =IF(BN12>=1,'toeslag berekening'!$D14,0) -> 0 | CB12: 0 | CC12: 0 | CD12: 0 | CE12: 0 | CF12: 0 | CG12: 0 | CH12: 0 | CJ12: 00:00:00 | CK12: =IF(AND(Standaard!CJ13>0,'toeslag berekening'!I13="ja"),Standaard!CJ13*24,"") ->  | CL12: 0 | CO12: 35.00% | CP12: 0 | CQ12: 0 | CR12: 0 | CS12: 0 | CT12: 0 | CU12: 0 | CV12: 0 | CX12: 0 | CY12: 0 | CZ12: 0 | DA12: 0 | DB12: 0 | DC12: 0 | DD12: 0
B13: 14:00:00 | C13: 15:00:00 | D13: 0.00% | E13: 0.00% | F13: 0.00% | G13: 0.00% | H13: 0.00% | I13: 35.00% | J13: 100.00% | L13: Bruto ADV | M13: 6% | P13: =IF(OR(M22>0,,M13=0),0,IF(AND(M22=0,M13>0),(P11*$M$13),0)) -> 120.00 | AD13: 0.00625 | AE13: 0.006944444444 | AF13: 35.0% | AG13: 35.0% | AH13: 35.0% | AI13: 35.0% | AJ13: 35.0% | AK13: 35.0% | AL13: 100.0% | AP13: 1 | BA13: ='toeslag berekening'!A15 -> 0 | BB13: =IF('toeslag berekening'!D15=0,"",'toeslag berekening'!D15) ->  | BC13: =IF('toeslag berekening'!E15>'toeslag berekening'!D15,('toeslag berekening'!D15+('toeslag berekening'!E15-'toeslag berekening'!D15)),IF('toeslag berekening'!E15<'toeslag berekening'!D15,('toeslag berekening'!D15+('toeslag berekening'!E15+1-'toeslag berekening'!D15)),"")) ->  | BD13: =IF(BC13="",0,(BC13-'toeslag berekening'!D15)*24) -> 0.00 | BE13: 0.00 | BF13: =IF(BC13="","",IF('toeslag berekening'!I15="nee",(BC13-'toeslag berekening'!D15-'toeslag berekening'!H15)*24,BD13)) ->  | BG13: 0.00 | BH13: =COUNTIF('toeslag berekening'!L$7:L$58,'toeslag berekening'!$A15) -> 0 | BI13: =COUNTIF('toeslag berekening'!M$7:M$58,'toeslag berekening'!$A15) -> 0 | BJ13: =COUNTIF('toeslag berekening'!N$7:N$58,'toeslag berekening'!$A15) -> 0 | BK13: =COUNTIF('toeslag berekening'!O$7:O$58,'toeslag berekening'!$A15) -> 0 | BL13: =COUNTIF('toeslag berekening'!P$7:P$58,'toeslag berekening'!$A15) -> 0 | BM13: =COUNTIF('toeslag berekening'!Q$7:Q$58,'toeslag berekening'!$A15) -> 0 | BN13: =COUNTIF('toeslag berekening'!R$7:R$58,'toeslag berekening'!$A15) -> 0 | BP13: 0 | BS13: 0 | BT13: 0.00 | BU13: =IF(BH13>=1,'toeslag berekening'!$D15,0) -> 0 | BV13: =IF(BI13>=1,'toeslag berekening'!$D15,0) -> 0 | BW13: =IF(BJ13>=1,'toeslag berekening'!$D15,0) -> 0 | BX13: =IF(BK13>=1,'toeslag berekening'!$D15,0) -> 0 | BY13: =IF(BL13>=1,'toeslag berekening'!$D15,0) -> 0 | BZ13: =IF(BM13>=1,'toeslag berekening'!$D15,0) -> 0 | CA13: =IF(BN13>=1,'toeslag berekening'!$D15,0) -> 0 | CB13: 0 | CC13: 0 | CD13: 0 | CE13: 0 | CF13: 0 | CG13: 0 | CH13: 0 | CJ13: 00:00:00 | CK13: =IF(AND(Standaard!CJ14>0,'toeslag berekening'!I14="ja"),Standaard!CJ14*24,"") ->  | CL13: 0 | CO13: 50.0% | CP13: 0 | CQ13: 0 | CR13: 0 | CS13: 0 | CT13: 0 | CU13: 0 | CV13: 0 | CX13: 0 | CY13: 0 | CZ13: 0 | DA13: 0 | DB13: 0 | DC13: 0 | DD13: 0
B14: 13:00:00 | C14: 14:00:00 | D14: 0.00% | E14: 0.00% | F14: 0.00% | G14: 0.00% | H14: 0.00% | I14: 35.00% | J14: 100.00% | L14: Arbeidsduur na ADV | P14: =(P11/wknjaar)-adv_jr/(((wknjaar*5)-fst_dgn-vk_dgn)/5) -> 37.37 | Q14: uur per week | AD14: 0.006944444444 | AE14: 0.007638888889 | AF14: 35.0% | AG14: 35.0% | AH14: 35.0% | AI14: 35.0% | AJ14: 35.0% | AK14: 35.0% | AL14: 100.0% | AP14: 2 | BA14: ='toeslag berekening'!A16 -> 0 | BB14: =IF('toeslag berekening'!D16=0,"",'toeslag berekening'!D16) ->  | BC14: =IF('toeslag berekening'!E16>'toeslag berekening'!D16,('toeslag berekening'!D16+('toeslag berekening'!E16-'toeslag berekening'!D16)),IF('toeslag berekening'!E16<'toeslag berekening'!D16,('toeslag berekening'!D16+('toeslag berekening'!E16+1-'toeslag berekening'!D16)),"")) ->  | BD14: =IF(BC14="",0,(BC14-'toeslag berekening'!D16)*24) -> 0.00 | BE14: 0.00 | BF14: =IF(BC14="","",IF('toeslag berekening'!I16="nee",(BC14-'toeslag berekening'!D16-'toeslag berekening'!H16)*24,BD14)) ->  | BG14: 0.00 | BH14: =COUNTIF('toeslag berekening'!L$7:L$58,'toeslag berekening'!$A16) -> 0 | BI14: =COUNTIF('toeslag berekening'!M$7:M$58,'toeslag berekening'!$A16) -> 0 | BJ14: =COUNTIF('toeslag berekening'!N$7:N$58,'toeslag berekening'!$A16) -> 0 | BK14: =COUNTIF('toeslag berekening'!O$7:O$58,'toeslag berekening'!$A16) -> 0 | BL14: =COUNTIF('toeslag berekening'!P$7:P$58,'toeslag berekening'!$A16) -> 0 | BM14: =COUNTIF('toeslag berekening'!Q$7:Q$58,'toeslag berekening'!$A16) -> 0 | BN14: =COUNTIF('toeslag berekening'!R$7:R$58,'toeslag berekening'!$A16) -> 0 | BP14: 0 | BS14: 0 | BT14: 0.00 | BU14: =IF(BH14>=1,'toeslag berekening'!$D16,0) -> 0 | BV14: =IF(BI14>=1,'toeslag berekening'!$D16,0) -> 0 | BW14: =IF(BJ14>=1,'toeslag berekening'!$D16,0) -> 0 | BX14: =IF(BK14>=1,'toeslag berekening'!$D16,0) -> 0 | BY14: =IF(BL14>=1,'toeslag berekening'!$D16,0) -> 0 | BZ14: =IF(BM14>=1,'toeslag berekening'!$D16,0) -> 0 | CA14: =IF(BN14>=1,'toeslag berekening'!$D16,0) -> 0 | CB14: 0 | CC14: 0 | CD14: 0 | CE14: 0 | CF14: 0 | CG14: 0 | CH14: 0 | CJ14: 00:00:00 | CK14: =IF(AND(Standaard!CJ15>0,'toeslag berekening'!I15="ja"),Standaard!CJ15*24,"") ->  | CL14: 0 | CO14: 100.00% | CP14: 0 | CQ14: 0 | CR14: 0 | CS14: 0 | CT14: 0 | CU14: 0 | CV14: 0 | CX14: 0 | CY14: 0 | CZ14: 0 | DA14: 0 | DB14: 0 | DC14: 0 | DD14: 0
B15: 12:00:00 | C15: 13:00:00 | D15: 0.00% | E15: 0.00% | F15: 0.00% | G15: 0.00% | H15: 0.00% | I15: 35.00% | J15: 100.00% | L15: weken ADV | P15: =(dnstn_pj-fst_dgn-vk_dgn)/wrk_dgn -> 45.73857143 | Q15: weken per jaar | AD15: 0.007638888889 | AE15: 0.008333333333 | AF15: 35.0% | AG15: 35.0% | AH15: 35.0% | AI15: 35.0% | AJ15: 35.0% | AK15: 35.0% | AL15: 100.0% | BA15: ='toeslag berekening'!A17 -> 0 | BB15: =IF('toeslag berekening'!D17=0,"",'toeslag berekening'!D17) ->  | BC15: =IF('toeslag berekening'!E17>'toeslag berekening'!D17,('toeslag berekening'!D17+('toeslag berekening'!E17-'toeslag berekening'!D17)),IF('toeslag berekening'!E17<'toeslag berekening'!D17,('toeslag berekening'!D17+('toeslag berekening'!E17+1-'toeslag berekening'!D17)),"")) ->  | BD15: =IF(BC15="",0,(BC15-'toeslag berekening'!D17)*24) -> 0.00 | BE15: 0.00 | BF15: =IF(BC15="","",IF('toeslag berekening'!I17="nee",(BC15-'toeslag berekening'!D17-'toeslag berekening'!H17)*24,BD15)) ->  | BG15: 0.00 | BH15: =COUNTIF('toeslag berekening'!L$7:L$58,'toeslag berekening'!$A17) -> 0 | BI15: =COUNTIF('toeslag berekening'!M$7:M$58,'toeslag berekening'!$A17) -> 0 | BJ15: =COUNTIF('toeslag berekening'!N$7:N$58,'toeslag berekening'!$A17) -> 0 | BK15: =COUNTIF('toeslag berekening'!O$7:O$58,'toeslag berekening'!$A17) -> 0 | BL15: =COUNTIF('toeslag berekening'!P$7:P$58,'toeslag berekening'!$A17) -> 0 | BM15: =COUNTIF('toeslag berekening'!Q$7:Q$58,'toeslag berekening'!$A17) -> 0 | BN15: =COUNTIF('toeslag berekening'!R$7:R$58,'toeslag berekening'!$A17) -> 0 | BP15: 0 | BS15: 0 | BT15: 0.00 | BU15: =IF(BH15>=1,'toeslag berekening'!$D17,0) -> 0 | BV15: =IF(BI15>=1,'toeslag berekening'!$D17,0) -> 0 | BW15: =IF(BJ15>=1,'toeslag berekening'!$D17,0) -> 0 | BX15: =IF(BK15>=1,'toeslag berekening'!$D17,0) -> 0 | BY15: =IF(BL15>=1,'toeslag berekening'!$D17,0) -> 0 | BZ15: =IF(BM15>=1,'toeslag berekening'!$D17,0) -> 0 | CA15: =IF(BN15>=1,'toeslag berekening'!$D17,0) -> 0 | CB15: 0 | CC15: 0 | CD15: 0 | CE15: 0 | CF15: 0 | CG15: 0 | CH15: 0 | CJ15: 00:00:00 | CK15: =IF(AND(Standaard!CJ16>0,'toeslag berekening'!I16="ja"),Standaard!CJ16*24,"") ->  | CL15: 0
B16: 11:00:00 | C16: 12:00:00 | D16: 0.00% | E16: 0.00% | F16: 0.00% | G16: 0.00% | H16: 0.00% | I16: 35.00% | J16: 100.00% | AD16: 0.008333333333 | AE16: 0.009027777778 | AF16: 35.0% | AG16: 35.0% | AH16: 35.0% | AI16: 35.0% | AJ16: 35.0% | AK16: 35.0% | AL16: 100.0% | BA16: ='toeslag berekening'!A18 -> 0 | BB16: =IF('toeslag berekening'!D18=0,"",'toeslag berekening'!D18) ->  | BC16: =IF('toeslag berekening'!E18>'toeslag berekening'!D18,('toeslag berekening'!D18+('toeslag berekening'!E18-'toeslag berekening'!D18)),IF('toeslag berekening'!E18<'toeslag berekening'!D18,('toeslag berekening'!D18+('toeslag berekening'!E18+1-'toeslag berekening'!D18)),"")) ->  | BD16: =IF(BC16="",0,(BC16-'toeslag berekening'!D18)*24) -> 0.00 | BE16: 0.00 | BF16: =IF(BC16="","",IF('toeslag berekening'!I18="nee",(BC16-'toeslag berekening'!D18-'toeslag berekening'!H18)*24,BD16)) ->  | BG16: 0.00 | BH16: =COUNTIF('toeslag berekening'!L$7:L$58,'toeslag berekening'!$A18) -> 0 | BI16: =COUNTIF('toeslag berekening'!M$7:M$58,'toeslag berekening'!$A18) -> 0 | BJ16: =COUNTIF('toeslag berekening'!N$7:N$58,'toeslag berekening'!$A18) -> 0 | BK16: =COUNTIF('toeslag berekening'!O$7:O$58,'toeslag berekening'!$A18) -> 0 | BL16: =COUNTIF('toeslag berekening'!P$7:P$58,'toeslag berekening'!$A18) -> 0 | BM16: =COUNTIF('toeslag berekening'!Q$7:Q$58,'toeslag berekening'!$A18) -> 0 | BN16: =COUNTIF('toeslag berekening'!R$7:R$58,'toeslag berekening'!$A18) -> 0 | BP16: 0 | BS16: 0 | BT16: 0.00 | BU16: =IF(BH16>=1,'toeslag berekening'!$D18,0) -> 0 | BV16: =IF(BI16>=1,'toeslag berekening'!$D18,0) -> 0 | BW16: =IF(BJ16>=1,'toeslag berekening'!$D18,0) -> 0 | BX16: =IF(BK16>=1,'toeslag berekening'!$D18,0) -> 0 | BY16: =IF(BL16>=1,'toeslag berekening'!$D18,0) -> 0 | BZ16: =IF(BM16>=1,'toeslag berekening'!$D18,0) -> 0 | CA16: =IF(BN16>=1,'toeslag berekening'!$D18,0) -> 0 | CB16: 0 | CC16: 0 | CD16: 0 | CE16: 0 | CF16: 0 | CG16: 0 | CH16: 0 | CJ16: 00:00:00 | CK16: =IF(AND(Standaard!CJ17>0,'toeslag berekening'!I17="ja"),Standaard!CJ17*24,"") ->  | CL16: 0
B17: 10:00:00 | C17: 11:00:00 | D17: 0.00% | E17: 0.00% | F17: 0.00% | G17: 0.00% | H17: 0.00% | I17: 35.00% | J17: 100.00% | L17: Dagwaarde | P17: =((contract*wknjaar))/wknjaar/5 -> 8.00 | Q17: uren | AD17: 0.009027777778 | AE17: 0.009722222222 | AF17: 35.0% | AG17: 35.0% | AH17: 35.0% | AI17: 35.0% | AJ17: 35.0% | AK17: 35.0% | AL17: 100.0% | BA17: ='toeslag berekening'!A19 -> 0 | BB17: =IF('toeslag berekening'!D19=0,"",'toeslag berekening'!D19) ->  | BC17: =IF('toeslag berekening'!E19>'toeslag berekening'!D19,('toeslag berekening'!D19+('toeslag berekening'!E19-'toeslag berekening'!D19)),IF('toeslag berekening'!E19<'toeslag berekening'!D19,('toeslag berekening'!D19+('toeslag berekening'!E19+1-'toeslag berekening'!D19)),"")) ->  | BD17: =IF(BC17="",0,(BC17-'toeslag berekening'!D19)*24) -> 0.00 | BE17: 0.00 | BF17: =IF(BC17="","",IF('toeslag berekening'!I19="nee",(BC17-'toeslag berekening'!D19-'toeslag berekening'!H19)*24,BD17)) ->  | BG17: 0.00 | BH17: =COUNTIF('toeslag berekening'!L$7:L$58,'toeslag berekening'!$A19) -> 0 | BI17: =COUNTIF('toeslag berekening'!M$7:M$58,'toeslag berekening'!$A19) -> 0 | BJ17: =COUNTIF('toeslag berekening'!N$7:N$58,'toeslag berekening'!$A19) -> 0 | BK17: =COUNTIF('toeslag berekening'!O$7:O$58,'toeslag berekening'!$A19) -> 0 | BL17: =COUNTIF('toeslag berekening'!P$7:P$58,'toeslag berekening'!$A19) -> 0 | BM17: =COUNTIF('toeslag berekening'!Q$7:Q$58,'toeslag berekening'!$A19) -> 0 | BN17: =COUNTIF('toeslag berekening'!R$7:R$58,'toeslag berekening'!$A19) -> 0 | BP17: 0 | BS17: 0 | BT17: 0.00 | BU17: =IF(BH17>=1,'toeslag berekening'!$D19,0) -> 0 | BV17: =IF(BI17>=1,'toeslag berekening'!$D19,0) -> 0 | BW17: =IF(BJ17>=1,'toeslag berekening'!$D19,0) -> 0 | BX17: =IF(BK17>=1,'toeslag berekening'!$D19,0) -> 0 | BY17: =IF(BL17>=1,'toeslag berekening'!$D19,0) -> 0 | BZ17: =IF(BM17>=1,'toeslag berekening'!$D19,0) -> 0 | CA17: =IF(BN17>=1,'toeslag berekening'!$D19,0) -> 0 | CB17: 0 | CC17: 0 | CD17: 0 | CE17: 0 | CF17: 0 | CG17: 0 | CH17: 0 | CJ17: 00:00:00 | CK17: =IF(AND(Standaard!CJ18>0,'toeslag berekening'!I18="ja"),Standaard!CJ18*24,"") ->  | CL17: 0 | CN17: =BB9 -> 0.5833333333 | CO17: =BC9 -> 0.9166666667 | CP17: ma | CQ17: di | CR17: wo | CS17: do | CT17: vr | CU17: za | CV17: zo | CX17: ma | CY17: di | CZ17: wo | DA17: do | DB17: vr | DC17: za | DD17: zo
B18: 09:00:00 | C18: 10:00:00 | D18: 0.00% | E18: 0.00% | F18: 0.00% | G18: 0.00% | H18: 0.00% | I18: 35.00% | J18: 100.00% | L18: Doorbetaalde vrije feestdagen | P18: =7 +1/5 -> 7.20 | Q18: dagen per jaar | AD18: 0.009722222222 | AE18: 0.01041666667 | AF18: 35.0% | AG18: 35.0% | AH18: 35.0% | AI18: 35.0% | AJ18: 35.0% | AK18: 35.0% | AL18: 100.0% | BA18: R | BB18: =BA18 -> R | BD18: 08:00:00 | BE18: =IF(SUM(BH18:BN18)>0,SUM(BH18:BN18)*BF18,0) -> 0.00 | BF18: =IF(BB18=0,"",$BD$18*24) -> 8.00 | BG18: 0.00 | BH18: =COUNTIF('toeslag berekening'!L$7:L$58,$BA18) -> 0 | BI18: =COUNTIF('toeslag berekening'!M$7:M$58,$BA18) -> 0 | BJ18: =COUNTIF('toeslag berekening'!N$7:N$58,$BA18) -> 0 | BK18: =COUNTIF('toeslag berekening'!O$7:O$58,$BA18) -> 0 | BL18: =COUNTIF('toeslag berekening'!P$7:P$58,$BA18) -> 0 | BM18: =COUNTIF('toeslag berekening'!Q$7:Q$58,$BA18) -> 0 | BN18: =COUNTIF('toeslag berekening'!R$7:R$58,$BA18) -> 0 | BS18: =SUM(BS8:BS17) -> 0 | BU18: =IFERROR(SMALL(BU8:BU17,COUNTIF(BU8:BU17,0)+1),0) -> 0 | BV18: =IFERROR(SMALL(BV8:BV17,COUNTIF(BV8:BV17,0)+1),0) -> 0 | BW18: 0 | BX18: 0 | BY18: 0 | BZ18: 0 | CA18: 0 | CB18: =IFERROR(SMALL(CB8:CB17,COUNTIF(CB8:CB17,0)+1),0) -> 0 | CC18: =IFERROR(SMALL(CC8:CC17,COUNTIF(CC8:CC17,0)+1),0) -> 0 | CD18: 0 | CE18: 0 | CF18: 0 | CG18: 0 | CH18: 0 | CJ18: 00:00:00 | CK18: =IF(AND(Standaard!CJ19>0,'toeslag berekening'!I19="ja"),Standaard!CJ19*24,"") ->  | CL18: 0 | CO18: 0.00% | CP18: =IF(OR($BC$9="",BH$9=0),0,(COUNTIFS(S_time,">="&$BB$9,S_time,"<"&$BC$9,S_ma,$CO18)/60)*BH$9) -> 0 | CQ18: =IF(OR($BC$9="",BI$9=0),0,(COUNTIFS(S_time,">="&$BB$9,S_time,"<"&$BC$9,S_di,$CO18)/60)*BI$9) -> 0 | CR18: =IF(OR($BC$9="",BJ$9=0),0,(COUNTIFS(S_time,">="&$BB$9,S_time,"<"&$BC$9,S_wo,$CO18)/60)*BJ$9) -> 0 | CS18: =IF(OR($BC$9="",BK$9=0),0,(COUNTIFS(S_time,">="&$BB$9,S_time,"<"&$BC$9,S_do,$CO18)/60)*BK$9) -> 0 | CT18: =IF(OR($BC$9="",BL$9=0),0,(COUNTIFS(S_time,">="&$BB$9,S_time,"<"&$BC$9,S_vr,$CO18)/60)*BL$9) -> 0 | CU18: =IF(OR($BC$9="",BM$9=0),0,(COUNTIFS(S_time,">="&$BB$9,S_time,"<"&$BC$9,S_za,$CO18)/60)*BM$9) -> 0 | CV18: =IF(OR($BC$9="",BN$9=0),0,(COUNTIFS(S_time,">="&$BB$9,S_time,"<"&$BC$9,S_zo,$CO18)/60)*BN$9) -> 0 | CX18: =IF(OR($BC$9="",BH$9=0),0,(COUNTIFS(V_time,">="&$BB$9,V_time,"<"&$BC$9,V_ma,$CO18)/60)*BH$9) -> 0 | CY18: =IF(OR($BC$9="",BI$9=0),0,(COUNTIFS(V_time,">="&$BB$9,V_time,"<"&$BC$9,V_di,$CO18)/60)*BI$9) -> 0 | CZ18: =IF(OR($BC$9="",BJ$9=0),0,(COUNTIFS(V_time,">="&$BB$9,V_time,"<"&$BC$9,V_wo,$CO18)/60)*BJ$9) -> 0 | DA18: =IF(OR($BC$9="",BK$9=0),0,(COUNTIFS(V_time,">="&$BB$9,V_time,"<"&$BC$9,V_do,$CO18)/60)*BK$9) -> 0 | DB18: =IF(OR($BC$9="",BL$9=0),0,(COUNTIFS(V_time,">="&$BB$9,V_time,"<"&$BC$9,V_vr,$CO18)/60)*BL$9) -> 0 | DC18: =IF(OR($BC$9="",BM$9=0),0,(COUNTIFS(V_time,">="&$BB$9,V_time,"<"&$BC$9,V_za,$CO18)/60)*BM$9) -> 0 | DD18: =IF(OR($BC$9="",BN$9=0),0,(COUNTIFS(V_time,">="&$BB$9,V_time,"<"&$BC$9,V_zo,$CO18)/60)*BN$9) -> 0
B19: 08:00:00 | C19: 09:00:00 | D19: 0.00% | E19: 0.00% | F19: 0.00% | G19: 0.00% | H19: 0.00% | I19: 35.00% | J19: 100.00% | P19: =P18*P17 -> 57.60 | Q19: uren per jaar | AD19: 0.01041666667 | AE19: 0.01111111111 | AF19: 35.0% | AG19: 35.0% | AH19: 35.0% | AI19: 35.0% | AJ19: 35.0% | AK19: 35.0% | AL19: 100.0% | BS19: =MIN(BS18,BT20) -> 0 | BU19: =MAX(BU8:BU17) -> 0 | BV19: =MAX(BV8:BV17) -> 0 | BW19: 0 | BX19: 0 | BY19: 0 | BZ19: 0 | CA19: 0 | CB19: =MAX(CB8:CB17) -> 0 | CC19: =MAX(CC8:CC17) -> 0 | CD19: 0 | CE19: 0 | CF19: 0 | CG19: 0 | CH19: 0 | CJ19: 00:00:00 | CL19: =SUM(CL9:CL18) -> 0 | CO19: 30.0% | CP19: 0 | CQ19: 0 | CR19: 0 | CS19: 0 | CT19: 0 | CU19: 0 | CV19: 0 | CX19: 0 | CY19: 0 | CZ19: 0 | DA19: 0 | DB19: 0 | DC19: 0 | DD19: 0
B20: 07:00:00 | C20: 08:00:00 | D20: =$D$30 -> 0.00% | E20: 0.00% | F20: 0.00% | G20: 0.00% | H20: 0.00% | I20: =$D$32 -> 35.00% | J20: 100.00% | L20: Basisvakantie | P20: 25.00 | Q20: dagen per jaar | AD20: 0.01111111111 | AE20: 0.01180555556 | AF20: 35.0% | AG20: 35.0% | AH20: 35.0% | AI20: 35.0% | AJ20: 35.0% | AK20: 35.0% | AL20: 100.0% | BE20: 0 | BH20: =IF(OR($BC8="",BH8=0),0,((SUM(IF(S_time>='toeslag berekening'!$D10,IF(S_time<$BC8,S_ma,0),0))/60)*BH8)) -> 0% | BI20: =IF(OR($BC8="",BI8=0),0,((SUM(IF(S_time>='toeslag berekening'!$D10,IF(S_time<$BC8,S_di,0),0))/60)*BI8)) -> 0% | BJ20: =IF(OR($BC8="",BJ8=0),0,((SUM(IF(S_time>='toeslag berekening'!$D10,IF(S_time<$BC8,S_wo,0),0))/60)*BJ8)) -> 0% | BK20: =IF(OR($BC8="",BK8=0),0,((SUM(IF(S_time>='toeslag berekening'!$D10,IF(S_time<$BC8,S_do,0),0))/60)*BK8)) -> 0% | BL20: =IF(OR($BC8="",BL8=0),0,((SUM(IF(S_time>='toeslag berekening'!$D10,IF(S_time<$BC8,S_vr,0),0))/60)*BL8)) -> 0% | BM20: =IF(OR($BC8="",BM8=0),0,((SUM(IF(S_time>='toeslag berekening'!$D10,IF(S_time<$BC8,S_za,0),0))/60)*BM8)) -> 0% | BN20: =IF(OR($BC8="",BN8=0),0,((SUM(IF(S_time>='toeslag berekening'!$D10,IF(S_time<$BC8,S_zo,0),0))/60)*BN8)) -> 0% | BT20: =SUM(BU20:CA20) -> 0 | BU20: =(CB19-BU18)*24 -> 0 | BV20: =(CC19-BV18)*24 -> 0 | BW20: 0 | BX20: 0 | BY20: 0 | BZ20: 0 | CA20: 0 | CO20: 33.00% | CP20: 0 | CQ20: 0 | CR20: 0 | CS20: 0 | CT20: 0 | CU20: 0 | CV20: 0 | CX20: 0 | CY20: 0 | CZ20: 0 | DA20: 0 | DB20: 0 | DC20: 0 | DD20: 0
B21: 06:00:00 | C21: 07:00:00 | D21: =$D$30 -> 0.00% | E21: 0.00% | F21: 0.00% | G21: 0.00% | H21: 0.00% | I21: =$D$32 -> 35.00% | J21: 100.00% | P21: =P20*P17 -> 200.00 | Q21: uren per jaar | AD21: 0.01180555556 | AE21: 0.0125 | AF21: 35.0% | AG21: 35.0% | AH21: 35.0% | AI21: 35.0% | AJ21: 35.0% | AK21: 35.0% | AL21: 100.0% | BE21: =IF(COUNTA('toeslag berekening'!L7:R7)>=1,$BE$20+1,0) -> 0 | BF21: =MAX($BE$21:$BE21)+COUNTIF($BE$21:$BE21,0) -> 1 | BH21: =IF(OR($BC9="",BH9=0),0,((SUM(IF(S_time>='toeslag berekening'!$D11,IF(S_time<$BC9,S_ma,0),0))/60)*BH9)) -> 0% | BI21: =IF(OR($BC9="",BI9=0),0,((SUM(IF(S_time>='toeslag berekening'!$D11,IF(S_time<$BC9,S_di,0),0))/60)*BI9)) -> 0% | BJ21: =IF(OR($BC9="",BJ9=0),0,((SUM(IF(S_time>='toeslag berekening'!$D11,IF(S_time<$BC9,S_wo,0),0))/60)*BJ9)) -> 0% | BK21: =IF(OR($BC9="",BK9=0),0,((SUM(IF(S_time>='toeslag berekening'!$D11,IF(S_time<$BC9,S_do,0),0))/60)*BK9)) -> 0% | BL21: =IF(OR($BC9="",BL9=0),0,((SUM(IF(S_time>='toeslag berekening'!$D11,IF(S_time<$BC9,S_vr,0),0))/60)*BL9)) -> 0% | BM21: =IF(OR($BC9="",BM9=0),0,((SUM(IF(S_time>='toeslag berekening'!$D11,IF(S_time<$BC9,S_za,0),0))/60)*BM9)) -> 0% | BN21: =IF(OR($BC9="",BN9=0),0,((SUM(IF(S_time>='toeslag berekening'!$D11,IF(S_time<$BC9,S_zo,0),0))/60)*BN9)) -> 0% | CO21: 35.00% | CP21: 0 | CQ21: 0 | CR21: 0 | CS21: 0 | CT21: 0 | CU21: 0 | CV21: 0 | CX21: 0 | CY21: 0 | CZ21: 0 | DA21: 0 | DB21: 0 | DC21: 0 | DD21: 0
B22: 05:00:00 | C22: 06:00:00 | D22: =$D$32 -> 35.00% | E22: 35.00% | F22: 35.00% | G22: 35.00% | H22: 35.00% | I22: 35.00% | J22: =$D$33 -> 100.00% | L22: Netto ADV | P22: =IF(OR(M13>0,P13>0,M22=0),0,IF(AND(M13=0,P13=0,M22>0),(P11-P19-P21)*$M$22)) -> 0.00 | AD22: 0.0125 | AE22: 0.01319444444 | AF22: 35.0% | AG22: 35.0% | AH22: 35.0% | AI22: 35.0% | AJ22: 35.0% | AK22: 35.0% | AL22: 100.0% | BE22: =IF(COUNTA('toeslag berekening'!L8:R8)>=1,MAX($BE$21:BE21)+1,0) -> 0 | BF22: =MAX($BE$21:$BE22)+COUNTIF($BE$21:$BE22,0) -> 2 | BH22: =IF(OR($BC10="",BH10=0),0,((SUM(IF(S_time>='toeslag berekening'!$D12,IF(S_time<$BC10,S_ma,0),0))/60)*BH10)) -> 0% | BI22: =IF(OR($BC10="",BI10=0),0,((SUM(IF(S_time>='toeslag berekening'!$D12,IF(S_time<$BC10,S_di,0),0))/60)*BI10)) -> 0% | BJ22: =IF(OR($BC10="",BJ10=0),0,((SUM(IF(S_time>='toeslag berekening'!$D12,IF(S_time<$BC10,S_wo,0),0))/60)*BJ10)) -> 0% | BK22: =IF(OR($BC10="",BK10=0),0,((SUM(IF(S_time>='toeslag berekening'!$D12,IF(S_time<$BC10,S_do,0),0))/60)*BK10)) -> 0% | BL22: =IF(OR($BC10="",BL10=0),0,((SUM(IF(S_time>='toeslag berekening'!$D12,IF(S_time<$BC10,S_vr,0),0))/60)*BL10)) -> 0% | BM22: =IF(OR($BC10="",BM10=0),0,((SUM(IF(S_time>='toeslag berekening'!$D12,IF(S_time<$BC10,S_za,0),0))/60)*BM10)) -> 0% | BN22: =IF(OR($BC10="",BN10=0),0,((SUM(IF(S_time>='toeslag berekening'!$D12,IF(S_time<$BC10,S_zo,0),0))/60)*BN10)) -> 0% | CO22: 50.0% | CP22: 0 | CQ22: 0 | CR22: 0 | CS22: 0 | CT22: 0 | CU22: 0 | CV22: 0 | CX22: 0 | CY22: 0 | CZ22: 0 | DA22: 0 | DB22: 0 | DC22: 0 | DD22: 0
B23: 04:00:00 | C23: 05:00:00 | D23: =$D$32 -> 35.00% | E23: 35.00% | F23: 35.00% | G23: 35.00% | H23: 35.00% | I23: 35.00% | J23: 100.00% | L23: Netto arbeidsduur | P23: =P11-P13-P19-P21-P22 -> 1709.40 | Q23: uren per jaar | AD23: 0.01319444444 | AE23: 0.01388888889 | AF23: 35.0% | AG23: 35.0% | AH23: 35.0% | AI23: 35.0% | AJ23: 35.0% | AK23: 35.0% | AL23: 100.0% | BE23: =IF(COUNTA('toeslag berekening'!L9:R9)>=1,MAX($BE$21:BE22)+1,0) -> 0 | BF23: =MAX($BE$21:$BE23)+COUNTIF($BE$21:$BE23,0) -> 3 | BH23: =IF(OR($BC11="",BH11=0),0,((SUM(IF(S_time>='toeslag berekening'!$D13,IF(S_time<$BC11,S_ma,0),0))/60)*BH11)) -> 0% | BI23: =IF(OR($BC11="",BI11=0),0,((SUM(IF(S_time>='toeslag berekening'!$D13,IF(S_time<$BC11,S_di,0),0))/60)*BI11)) -> 0% | BJ23: =IF(OR($BC11="",BJ11=0),0,((SUM(IF(S_time>='toeslag berekening'!$D13,IF(S_time<$BC11,S_wo,0),0))/60)*BJ11)) -> 0% | BK23: =IF(OR($BC11="",BK11=0),0,((SUM(IF(S_time>='toeslag berekening'!$D13,IF(S_time<$BC11,S_do,0),0))/60)*BK11)) -> 0% | BL23: =IF(OR($BC11="",BL11=0),0,((SUM(IF(S_time>='toeslag berekening'!$D13,IF(S_time<$BC11,S_vr,0),0))/60)*BL11)) -> 0% | BM23: =IF(OR($BC11="",BM11=0),0,((SUM(IF(S_time>='toeslag berekening'!$D13,IF(S_time<$BC11,S_za,0),0))/60)*BM11)) -> 0% | BN23: =IF(OR($BC11="",BN11=0),0,((SUM(IF(S_time>='toeslag berekening'!$D13,IF(S_time<$BC11,S_zo,0),0))/60)*BN11)) -> 0% | CO23: 100.00% | CP23: 0 | CQ23: 0 | CR23: 0 | CS23: 0 | CT23: 0 | CU23: 0 | CV23: 0 | CX23: 0 | CY23: 0 | CZ23: 0 | DA23: 0 | DB23: 0 | DC23: 0 | DD23: 0
B24: 03:00:00 | C24: 04:00:00 | D24: 35.00% | E24: 35.00% | F24: 35.00% | G24: 35.00% | H24: 35.00% | I24: 35.00% | J24: 100.00% | L24: Netto werkweek | P24: =+P23/wknjaar -> 32.76 | Q24: uren per week | AD24: 0.01388888889 | AE24: 0.01458333333 | AF24: 35.0% | AG24: 35.0% | AH24: 35.0% | AI24: 35.0% | AJ24: 35.0% | AK24: 35.0% | AL24: 100.0% | BE24: =IF(COUNTA('toeslag berekening'!M10:R10)>=1,MAX($BE$21:BE23)+1,0) -> 0 | BF24: =MAX($BE$21:$BE24)+COUNTIF($BE$21:$BE24,0) -> 4 | BH24: =IF(OR($BC12="",BH12=0),0,((SUM(IF(S_time>='toeslag berekening'!$D14,IF(S_time<$BC12,S_ma,0),0))/60)*BH12)) -> 0% | BI24: =IF(OR($BC12="",BI12=0),0,((SUM(IF(S_time>='toeslag berekening'!$D14,IF(S_time<$BC12,S_di,0),0))/60)*BI12)) -> 0% | BJ24: =IF(OR($BC12="",BJ12=0),0,((SUM(IF(S_time>='toeslag berekening'!$D14,IF(S_time<$BC12,S_wo,0),0))/60)*BJ12)) -> 0% | BK24: =IF(OR($BC12="",BK12=0),0,((SUM(IF(S_time>='toeslag berekening'!$D14,IF(S_time<$BC12,S_do,0),0))/60)*BK12)) -> 0% | BL24: =IF(OR($BC12="",BL12=0),0,((SUM(IF(S_time>='toeslag berekening'!$D14,IF(S_time<$BC12,S_vr,0),0))/60)*BL12)) -> 0% | BM24: =IF(OR($BC12="",BM12=0),0,((SUM(IF(S_time>='toeslag berekening'!$D14,IF(S_time<$BC12,S_za,0),0))/60)*BM12)) -> 0% | BN24: =IF(OR($BC12="",BN12=0),0,((SUM(IF(S_time>='toeslag berekening'!$D14,IF(S_time<$BC12,S_zo,0),0))/60)*BN12)) -> 0%
B25: 02:00:00 | C25: 03:00:00 | D25: 35.00% | E25: 35.00% | F25: 35.00% | G25: 35.00% | H25: 35.00% | I25: 35.00% | J25: 100.00% | L25: Basisuurloon | P25: =1/voltijd_uren -> 0.048% | Q25: van het basismaandsalaris | AD25: 0.01458333333 | AE25: 0.01527777778 | AF25: 35.0% | AG25: 35.0% | AH25: 35.0% | AI25: 35.0% | AJ25: 35.0% | AK25: 35.0% | AL25: 100.0% | BE25: =IF(COUNTA('toeslag berekening'!L11:R11)>=1,MAX($BE$21:BE24)+1,0) -> 0 | BF25: =MAX($BE$21:$BE25)+COUNTIF($BE$21:$BE25,0) -> 5 | BH25: =IF(OR($BC13="",BH13=0),0,((SUM(IF(S_time>='toeslag berekening'!$D15,IF(S_time<$BC13,S_ma,0),0))/60)*BH13)) -> 0% | BI25: =IF(OR($BC13="",BI13=0),0,((SUM(IF(S_time>='toeslag berekening'!$D15,IF(S_time<$BC13,S_di,0),0))/60)*BI13)) -> 0% | BJ25: =IF(OR($BC13="",BJ13=0),0,((SUM(IF(S_time>='toeslag berekening'!$D15,IF(S_time<$BC13,S_wo,0),0))/60)*BJ13)) -> 0% | BK25: =IF(OR($BC13="",BK13=0),0,((SUM(IF(S_time>='toeslag berekening'!$D15,IF(S_time<$BC13,S_do,0),0))/60)*BK13)) -> 0% | BL25: =IF(OR($BC13="",BL13=0),0,((SUM(IF(S_time>='toeslag berekening'!$D15,IF(S_time<$BC13,S_vr,0),0))/60)*BL13)) -> 0% | BM25: =IF(OR($BC13="",BM13=0),0,((SUM(IF(S_time>='toeslag berekening'!$D15,IF(S_time<$BC13,S_za,0),0))/60)*BM13)) -> 0% | BN25: =IF(OR($BC13="",BN13=0),0,((SUM(IF(S_time>='toeslag berekening'!$D15,IF(S_time<$BC13,S_zo,0),0))/60)*BN13)) -> 0%
B26: 01:00:00 | C26: 02:00:00 | D26: 35.00% | E26: 35.00% | F26: 35.00% | G26: 35.00% | H26: 35.00% | I26: 35.00% | J26: 100.00% | L26: =IF(OR(P13>0,P22>0),"Er is sprake van ADV","") -> Er is sprake van ADV | AD26: 0.01527777778 | AE26: 0.01597222222 | AF26: 35.0% | AG26: 35.0% | AH26: 35.0% | AI26: 35.0% | AJ26: 35.0% | AK26: 35.0% | AL26: 100.0% | BE26: =IF(COUNTA('toeslag berekening'!L12:R12)>=1,MAX($BE$21:BE25)+1,0) -> 0 | BF26: =MAX($BE$21:$BE26)+COUNTIF($BE$21:$BE26,0) -> 6 | BH26: =IF(OR($BC14="",BH14=0),0,((SUM(IF(S_time>='toeslag berekening'!$D16,IF(S_time<$BC14,S_ma,0),0))/60)*BH14)) -> 0% | BI26: =IF(OR($BC14="",BI14=0),0,((SUM(IF(S_time>='toeslag berekening'!$D16,IF(S_time<$BC14,S_di,0),0))/60)*BI14)) -> 0% | BJ26: =IF(OR($BC14="",BJ14=0),0,((SUM(IF(S_time>='toeslag berekening'!$D16,IF(S_time<$BC14,S_wo,0),0))/60)*BJ14)) -> 0% | BK26: =IF(OR($BC14="",BK14=0),0,((SUM(IF(S_time>='toeslag berekening'!$D16,IF(S_time<$BC14,S_do,0),0))/60)*BK14)) -> 0% | BL26: =IF(OR($BC14="",BL14=0),0,((SUM(IF(S_time>='toeslag berekening'!$D16,IF(S_time<$BC14,S_vr,0),0))/60)*BL14)) -> 0% | BM26: =IF(OR($BC14="",BM14=0),0,((SUM(IF(S_time>='toeslag berekening'!$D16,IF(S_time<$BC14,S_za,0),0))/60)*BM14)) -> 0% | BN26: =IF(OR($BC14="",BN14=0),0,((SUM(IF(S_time>='toeslag berekening'!$D16,IF(S_time<$BC14,S_zo,0),0))/60)*BN14)) -> 0% | CN26: =BB10 -> 0.9166666667 | CO26: =BC10 -> 1.25 | CP26: ma | CQ26: di | CR26: wo | CS26: do | CT26: vr | CU26: za | CV26: zo | CX26: ma | CY26: di | CZ26: wo | DA26: do | DB26: vr | DC26: za | DD26: zo
B27: 00:00:00 | C27: 01:00:00 | D27: 35.00% | E27: 35.00% | F27: 35.00% | G27: 35.00% | H27: 35.00% | I27: 35.00% | J27: 100.00% | L27: =IF(L26="","",IF(P13>0,L13&" "&ROUND(P13,2)&" uur per jaar",IF(P22>0,L22&" "&ROUND(P22,2)&" uur per jaar",""))) -> Bruto ADV 120 uur per jaar | AD27: 0.01597222222 | AE27: 0.01666666667 | AF27: 35.0% | AG27: 35.0% | AH27: 35.0% | AI27: 35.0% | AJ27: 35.0% | AK27: 35.0% | AL27: 100.0% | BE27: =IF(COUNTA('toeslag berekening'!L13:R13)>=1,MAX($BE$21:BE26)+1,0) -> 0 | BF27: =MAX($BE$21:$BE27)+COUNTIF($BE$21:$BE27,0) -> 7 | BH27: =IF(OR($BC15="",BH15=0),0,((SUM(IF(S_time>='toeslag berekening'!$D17,IF(S_time<$BC15,S_ma,0),0))/60)*BH15)) -> 0% | BI27: =IF(OR($BC15="",BI15=0),0,((SUM(IF(S_time>='toeslag berekening'!$D17,IF(S_time<$BC15,S_di,0),0))/60)*BI15)) -> 0% | BJ27: =IF(OR($BC15="",BJ15=0),0,((SUM(IF(S_time>='toeslag berekening'!$D17,IF(S_time<$BC15,S_wo,0),0))/60)*BJ15)) -> 0% | BK27: =IF(OR($BC15="",BK15=0),0,((SUM(IF(S_time>='toeslag berekening'!$D17,IF(S_time<$BC15,S_do,0),0))/60)*BK15)) -> 0% | BL27: =IF(OR($BC15="",BL15=0),0,((SUM(IF(S_time>='toeslag berekening'!$D17,IF(S_time<$BC15,S_vr,0),0))/60)*BL15)) -> 0% | BM27: =IF(OR($BC15="",BM15=0),0,((SUM(IF(S_time>='toeslag berekening'!$D17,IF(S_time<$BC15,S_za,0),0))/60)*BM15)) -> 0% | BN27: =IF(OR($BC15="",BN15=0),0,((SUM(IF(S_time>='toeslag berekening'!$D17,IF(S_time<$BC15,S_zo,0),0))/60)*BN15)) -> 0% | CO27: 0.00% | CP27: =IF(OR($BC$10="",BH$10=0),0,(COUNTIFS(S_time,">="&$BB$10,S_time,"<"&$BC$10,S_ma,$CO27)/60)*BH$10) -> 0 | CQ27: =IF(OR($BC$10="",BI$10=0),0,(COUNTIFS(S_time,">="&$BB$10,S_time,"<"&$BC$10,S_di,$CO27)/60)*BI$10) -> 0 | CR27: =IF(OR($BC$10="",BJ$10=0),0,(COUNTIFS(S_time,">="&$BB$10,S_time,"<"&$BC$10,S_wo,$CO27)/60)*BJ$10) -> 0 | CS27: =IF(OR($BC$10="",BK$10=0),0,(COUNTIFS(S_time,">="&$BB$10,S_time,"<"&$BC$10,S_do,$CO27)/60)*BK$10) -> 0 | CT27: =IF(OR($BC$10="",BL$10=0),0,(COUNTIFS(S_time,">="&$BB$10,S_time,"<"&$BC$10,S_vr,$CO27)/60)*BL$10) -> 0 | CU27: =IF(OR($BC$10="",BM$10=0),0,(COUNTIFS(S_time,">="&$BB$10,S_time,"<"&$BC$10,S_za,$CO27)/60)*BM$10) -> 0 | CV27: =IF(OR($BC$10="",BN$10=0),0,(COUNTIFS(S_time,">="&$BB$10,S_time,"<"&$BC$10,S_zo,$CO27)/60)*BN$10) -> 0 | CX27: =IF(OR($BC$10="",BH$10=0),0,(COUNTIFS(V_time,">="&$BB$10,V_time,"<"&$BC$10,V_ma,$CO27)/60)*BH$10) -> 0 | CY27: =IF(OR($BC$10="",BI$10=0),0,(COUNTIFS(V_time,">="&$BB$10,V_time,"<"&$BC$10,V_di,$CO27)/60)*BI$10) -> 0 | CZ27: =IF(OR($BC$10="",BJ$10=0),0,(COUNTIFS(V_time,">="&$BB$10,V_time,"<"&$BC$10,V_wo,$CO27)/60)*BJ$10) -> 0 | DA27: =IF(OR($BC$10="",BK$10=0),0,(COUNTIFS(V_time,">="&$BB$10,V_time,"<"&$BC$10,V_do,$CO27)/60)*BK$10) -> 0 | DB27: =IF(OR($BC$10="",BL$10=0),0,(COUNTIFS(V_time,">="&$BB$10,V_time,"<"&$BC$10,V_vr,$CO27)/60)*BL$10) -> 0 | DC27: =IF(OR($BC$10="",BM$10=0),0,(COUNTIFS(V_time,">="&$BB$10,V_time,"<"&$BC$10,V_za,$CO27)/60)*BM$10) -> 0 | DD27: =IF(OR($BC$10="",BN$10=0),0,(COUNTIFS(V_time,">="&$BB$10,V_time,"<"&$BC$10,V_zo,$CO27)/60)*BN$10) -> 0
AD28: 0.01666666667 | AE28: 0.01736111111 | AF28: 35.0% | AG28: 35.0% | AH28: 35.0% | AI28: 35.0% | AJ28: 35.0% | AK28: 35.0% | AL28: 100.0% | BE28: =IF(COUNTA('toeslag berekening'!L14:R14)>=1,MAX($BE$21:BE27)+1,0) -> 0 | BF28: =MAX($BE$21:$BE28)+COUNTIF($BE$21:$BE28,0) -> 8 | BH28: =IF(OR($BC16="",BH16=0),0,((SUM(IF(S_time>='toeslag berekening'!$D18,IF(S_time<$BC16,S_ma,0),0))/60)*BH16)) -> 0% | BI28: =IF(OR($BC16="",BI16=0),0,((SUM(IF(S_time>='toeslag berekening'!$D18,IF(S_time<$BC16,S_di,0),0))/60)*BI16)) -> 0% | BJ28: =IF(OR($BC16="",BJ16=0),0,((SUM(IF(S_time>='toeslag berekening'!$D18,IF(S_time<$BC16,S_wo,0),0))/60)*BJ16)) -> 0% | BK28: =IF(OR($BC16="",BK16=0),0,((SUM(IF(S_time>='toeslag berekening'!$D18,IF(S_time<$BC16,S_do,0),0))/60)*BK16)) -> 0% | BL28: =IF(OR($BC16="",BL16=0),0,((SUM(IF(S_time>='toeslag berekening'!$D18,IF(S_time<$BC16,S_vr,0),0))/60)*BL16)) -> 0% | BM28: =IF(OR($BC16="",BM16=0),0,((SUM(IF(S_time>='toeslag berekening'!$D18,IF(S_time<$BC16,S_za,0),0))/60)*BM16)) -> 0% | BN28: =IF(OR($BC16="",BN16=0),0,((SUM(IF(S_time>='toeslag berekening'!$D18,IF(S_time<$BC16,S_zo,0),0))/60)*BN16)) -> 0% | CO28: 30.0% | CP28: 0 | CQ28: 0 | CR28: 0 | CS28: 0 | CT28: 0 | CU28: 0 | CV28: 0 | CX28: 0 | CY28: 0 | CZ28: 0 | DA28: 0 | DB28: 0 | DC28: 0 | DD28: 0
AD29: 0.01736111111 | AE29: 0.01805555556 | AF29: 35.0% | AG29: 35.0% | AH29: 35.0% | AI29: 35.0% | AJ29: 35.0% | AK29: 35.0% | AL29: 100.0% | BE29: =IF(COUNTA('toeslag berekening'!L15:R15)>=1,MAX($BE$21:BE28)+1,0) -> 0 | BF29: =MAX($BE$21:$BE29)+COUNTIF($BE$21:$BE29,0) -> 9 | BH29: =IF(OR($BC17="",BH17=0),0,((SUM(IF(S_time>='toeslag berekening'!$D19,IF(S_time<$BC17,S_ma,0),0))/60)*BH17)) -> 0% | BI29: =IF(OR($BC17="",BI17=0),0,((SUM(IF(S_time>='toeslag berekening'!$D19,IF(S_time<$BC17,S_di,0),0))/60)*BI17)) -> 0% | BJ29: =IF(OR($BC17="",BJ17=0),0,((SUM(IF(S_time>='toeslag berekening'!$D19,IF(S_time<$BC17,S_wo,0),0))/60)*BJ17)) -> 0% | BK29: =IF(OR($BC17="",BK17=0),0,((SUM(IF(S_time>='toeslag berekening'!$D19,IF(S_time<$BC17,S_do,0),0))/60)*BK17)) -> 0% | BL29: =IF(OR($BC17="",BL17=0),0,((SUM(IF(S_time>='toeslag berekening'!$D19,IF(S_time<$BC17,S_vr,0),0))/60)*BL17)) -> 0% | BM29: =IF(OR($BC17="",BM17=0),0,((SUM(IF(S_time>='toeslag berekening'!$D19,IF(S_time<$BC17,S_za,0),0))/60)*BM17)) -> 0% | BN29: =IF(OR($BC17="",BN17=0),0,((SUM(IF(S_time>='toeslag berekening'!$D19,IF(S_time<$BC17,S_zo,0),0))/60)*BN17)) -> 0% | CO29: 33.00% | CP29: 0 | CQ29: 0 | CR29: 0 | CS29: 0 | CT29: 0 | CU29: 0 | CV29: 0 | CX29: 0 | CY29: 0 | CZ29: 0 | DA29: 0 | DB29: 0 | DC29: 0 | DD29: 0
D30: 0.00% | AD30: 0.01805555556 | AE30: 0.01875 | AF30: 35.0% | AG30: 35.0% | AH30: 35.0% | AI30: 35.0% | AJ30: 35.0% | AK30: 35.0% | AL30: 100.0% | BE30: =IF(COUNTA('toeslag berekening'!L16:R16)>=1,MAX($BE$21:BE29)+1,0) -> 0 | BF30: =MAX($BE$21:$BE30)+COUNTIF($BE$21:$BE30,0) -> 10 | BH30: =SUM(Standaard!D4:D27)/24*$BF$18 -> 136% | BI30: =SUM(Standaard!E4:E27)/24*$BF$18 -> 136% | BJ30: =SUM(Standaard!F4:F27)/24*$BF$18 -> 136% | BK30: =SUM(Standaard!G4:G27)/24*$BF$18 -> 136% | BL30: =SUM(Standaard!H4:H27)/24*$BF$18 -> 136% | BM30: =SUM(Standaard!I4:I27)/24*$BF$18 -> 280% | BN30: =SUM(Standaard!J4:J27)/24*$BF$18 -> 800% | CO30: 35.00% | CP30: 0 | CQ30: 0 | CR30: 0 | CS30: 0 | CT30: 0 | CU30: 0 | CV30: 0 | CX30: 0 | CY30: 0 | CZ30: 0 | DA30: 0 | DB30: 0 | DC30: 0 | DD30: 0
D31: 33.00% | K31: 0% | AD31: 0.01875 | AE31: 0.01944444444 | AF31: 35.0% | AG31: 35.0% | AH31: 35.0% | AI31: 35.0% | AJ31: 35.0% | AK31: 35.0% | AL31: 100.0% | BE31: =IF(COUNTA('toeslag berekening'!L17:R17)>=1,MAX($BE$21:BE30)+1,0) -> 0 | BF31: =MAX($BE$21:$BE31)+COUNTIF($BE$21:$BE31,0) -> 11 | CO31: 50.0% | CP31: 0 | CQ31: 0 | CR31: 0 | CS31: 0 | CT31: 0 | CU31: 0 | CV31: 0 | CX31: 0 | CY31: 0 | CZ31: 0 | DA31: 0 | DB31: 0 | DC31: 0 | DD31: 0
D32: 35.00% | AD32: 0.01944444444 | AE32: 0.02013888889 | AF32: 35.0% | AG32: 35.0% | AH32: 35.0% | AI32: 35.0% | AJ32: 35.0% | AK32: 35.0% | AL32: 100.0% | BE32: =IF(COUNTA('toeslag berekening'!L18:R18)>=1,MAX($BE$21:BE31)+1,0) -> 0 | BF32: =MAX($BE$21:$BE32)+COUNTIF($BE$21:$BE32,0) -> 12 | CO32: 100.00% | CP32: 0 | CQ32: 0 | CR32: 0 | CS32: 0 | CT32: 0 | CU32: 0 | CV32: 0 | CX32: 0 | CY32: 0 | CZ32: 0 | DA32: 0 | DB32: 0 | DC32: 0 | DD32: 0
D33: 100.00% | AD33: 0.02013888889 | AE33: 0.02083333333 | AF33: 35.0% | AG33: 35.0% | AH33: 35.0% | AI33: 35.0% | AJ33: 35.0% | AK33: 35.0% | AL33: 100.0% | BE33: =IF(COUNTA('toeslag berekening'!L19:R19)>=1,MAX($BE$21:BE32)+1,0) -> 0 | BF33: =MAX($BE$21:$BE33)+COUNTIF($BE$21:$BE33,0) -> 13 | BH33: =IF(OR($BC8="",BH8=0),0,((SUM(IF(V_time>='toeslag berekening'!$D10,IF(V_time<$BC8,V_ma,0),0))/60)*BH8)) -> 0% | BI33: =IF(OR($BC8="",BI8=0),0,((SUM(IF(V_time>='toeslag berekening'!$D10,IF(V_time<$BC8,V_di,0),0))/60)*BI8)) -> 0% | BJ33: =IF(OR($BC8="",BJ8=0),0,((SUM(IF(V_time>='toeslag berekening'!$D10,IF(V_time<$BC8,V_wo,0),0))/60)*BJ8)) -> 0% | BK33: =IF(OR($BC8="",BK8=0),0,((SUM(IF(V_time>='toeslag berekening'!$D10,IF(V_time<$BC8,V_do,0),0))/60)*BK8)) -> 0% | BL33: =IF(OR($BC8="",BL8=0),0,((SUM(IF(V_time>='toeslag berekening'!$D10,IF(V_time<$BC8,V_vr,0),0))/60)*BL8)) -> 0% | BM33: =IF(OR($BC8="",BM8=0),0,((SUM(IF(V_time>='toeslag berekening'!$D10,IF(V_time<$BC8,V_za,0),0))/60)*BM8)) -> 0% | BN33: =IF(OR($BC8="",BN8=0),0,((SUM(IF(V_time>='toeslag berekening'!$D10,IF(V_time<$BC8,V_zo,0),0))/60)*BN8)) -> 0%
D34: x | AD34: 0.02083333333 | AE34: 0.02152777778 | AF34: 35.0% | AG34: 35.0% | AH34: 35.0% | AI34: 35.0% | AJ34: 35.0% | AK34: 35.0% | AL34: 100.0% | BE34: =IF(COUNTA('toeslag berekening'!L20:R20)>=1,MAX($BE$21:BE33)+1,0) -> 0 | BF34: =MAX($BE$21:$BE34)+COUNTIF($BE$21:$BE34,0) -> 14 | BH34: =IF(OR($BC9="",BH9=0),0,((SUM(IF(V_time>='toeslag berekening'!$D11,IF(V_time<$BC9,V_ma,0),0))/60)*BH9)) -> 0% | BI34: =IF(OR($BC9="",BI9=0),0,((SUM(IF(V_time>='toeslag berekening'!$D11,IF(V_time<$BC9,V_di,0),0))/60)*BI9)) -> 0% | BJ34: =IF(OR($BC9="",BJ9=0),0,((SUM(IF(V_time>='toeslag berekening'!$D11,IF(V_time<$BC9,V_wo,0),0))/60)*BJ9)) -> 0% | BK34: =IF(OR($BC9="",BK9=0),0,((SUM(IF(V_time>='toeslag berekening'!$D11,IF(V_time<$BC9,V_do,0),0))/60)*BK9)) -> 0% | BL34: =IF(OR($BC9="",BL9=0),0,((SUM(IF(V_time>='toeslag berekening'!$D11,IF(V_time<$BC9,V_vr,0),0))/60)*BL9)) -> 0% | BM34: =IF(OR($BC9="",BM9=0),0,((SUM(IF(V_time>='toeslag berekening'!$D11,IF(V_time<$BC9,V_za,0),0))/60)*BM9)) -> 0% | BN34: =IF(OR($BC9="",BN9=0),0,((SUM(IF(V_time>='toeslag berekening'!$D11,IF(V_time<$BC9,V_zo,0),0))/60)*BN9)) -> 0%
D35: x | AD35: 0.02152777778 | AE35: 0.02222222222 | AF35: 35.0% | AG35: 35.0% | AH35: 35.0% | AI35: 35.0% | AJ35: 35.0% | AK35: 35.0% | AL35: 100.0% | BE35: =IF(COUNTA('toeslag berekening'!L21:R21)>=1,MAX($BE$21:BE34)+1,0) -> 0 | BF35: =MAX($BE$21:$BE35)+COUNTIF($BE$21:$BE35,0) -> 15 | BH35: =IF(OR($BC10="",BH10=0),0,((SUM(IF(V_time>='toeslag berekening'!$D12,IF(V_time<$BC10,V_ma,0),0))/60)*BH10)) -> 0% | BI35: =IF(OR($BC10="",BI10=0),0,((SUM(IF(V_time>='toeslag berekening'!$D12,IF(V_time<$BC10,V_di,0),0))/60)*BI10)) -> 0% | BJ35: =IF(OR($BC10="",BJ10=0),0,((SUM(IF(V_time>='toeslag berekening'!$D12,IF(V_time<$BC10,V_wo,0),0))/60)*BJ10)) -> 0% | BK35: =IF(OR($BC10="",BK10=0),0,((SUM(IF(V_time>='toeslag berekening'!$D12,IF(V_time<$BC10,V_do,0),0))/60)*BK10)) -> 0% | BL35: =IF(OR($BC10="",BL10=0),0,((SUM(IF(V_time>='toeslag berekening'!$D12,IF(V_time<$BC10,V_vr,0),0))/60)*BL10)) -> 0% | BM35: =IF(OR($BC10="",BM10=0),0,((SUM(IF(V_time>='toeslag berekening'!$D12,IF(V_time<$BC10,V_za,0),0))/60)*BM10)) -> 0% | BN35: =IF(OR($BC10="",BN10=0),0,((SUM(IF(V_time>='toeslag berekening'!$D12,IF(V_time<$BC10,V_zo,0),0))/60)*BN10)) -> 0% | CN35: =BB11 -> 0.3333333333 | CO35: =BC11 -> 0.6666666667 | CP35: ma | CQ35: di | CR35: wo | CS35: do | CT35: vr | CU35: za | CV35: zo | CX35: ma | CY35: di | CZ35: wo | DA35: do | DB35: vr | DC35: za | DD35: zo
D36: Gemiddelde toeslag per uur over aanwezigheidstijd | AD36: 0.02222222222 | AE36: 0.02291666667 | AF36: 35.0% | AG36: 35.0% | AH36: 35.0% | AI36: 35.0% | AJ36: 35.0% | AK36: 35.0% | AL36: 100.0% | BE36: =IF(COUNTA('toeslag berekening'!L22:R22)>=1,MAX($BE$21:BE35)+1,0) -> 0 | BF36: =MAX($BE$21:$BE36)+COUNTIF($BE$21:$BE36,0) -> 16 | BH36: =IF(OR($BC11="",BH11=0),0,((SUM(IF(V_time>='toeslag berekening'!$D13,IF(V_time<$BC11,V_ma,0),0))/60)*BH11)) -> 0% | BI36: =IF(OR($BC11="",BI11=0),0,((SUM(IF(V_time>='toeslag berekening'!$D13,IF(V_time<$BC11,V_di,0),0))/60)*BI11)) -> 0% | BJ36: =IF(OR($BC11="",BJ11=0),0,((SUM(IF(V_time>='toeslag berekening'!$D13,IF(V_time<$BC11,V_wo,0),0))/60)*BJ11)) -> 0% | BK36: =IF(OR($BC11="",BK11=0),0,((SUM(IF(V_time>='toeslag berekening'!$D13,IF(V_time<$BC11,V_do,0),0))/60)*BK11)) -> 0% | BL36: =IF(OR($BC11="",BL11=0),0,((SUM(IF(V_time>='toeslag berekening'!$D13,IF(V_time<$BC11,V_vr,0),0))/60)*BL11)) -> 0% | BM36: =IF(OR($BC11="",BM11=0),0,((SUM(IF(V_time>='toeslag berekening'!$D13,IF(V_time<$BC11,V_za,0),0))/60)*BM11)) -> 0% | BN36: =IF(OR($BC11="",BN11=0),0,((SUM(IF(V_time>='toeslag berekening'!$D13,IF(V_time<$BC11,V_zo,0),0))/60)*BN11)) -> 0% | CO36: 0.00% | CP36: =IF(OR($BC$11="",BH$11=0),0,(COUNTIFS(S_time,">="&$BB$11,S_time,"<"&$BC$11,S_ma,$CO36)/60)*BH$11) -> 0 | CQ36: =IF(OR($BC$11="",BI$11=0),0,(COUNTIFS(S_time,">="&$BB$11,S_time,"<"&$BC$11,S_di,$CO36)/60)*BI$11) -> 0 | CR36: =IF(OR($BC$11="",BJ$11=0),0,(COUNTIFS(S_time,">="&$BB$11,S_time,"<"&$BC$11,S_wo,$CO36)/60)*BJ$11) -> 0 | CS36: =IF(OR($BC$11="",BK$11=0),0,(COUNTIFS(S_time,">="&$BB$11,S_time,"<"&$BC$11,S_do,$CO36)/60)*BK$11) -> 0 | CT36: =IF(OR($BC$11="",BL$11=0),0,(COUNTIFS(S_time,">="&$BB$11,S_time,"<"&$BC$11,S_vr,$CO36)/60)*BL$11) -> 0 | CU36: =IF(OR($BC$11="",BM$11=0),0,(COUNTIFS(S_time,">="&$BB$11,S_time,"<"&$BC$11,S_za,$CO36)/60)*BM$11) -> 0 | CV36: =IF(OR($BC$11="",BN$11=0),0,(COUNTIFS(S_time,">="&$BB$11,S_time,"<"&$BC$11,S_zo,$CO36)/60)*BN$11) -> 0 | CX36: =IF(OR($BC$11="",BH$11=0),0,(COUNTIFS(V_time,">="&$BB$11,V_time,"<"&$BC$11,V_ma,$CO36)/60)*BH$11) -> 0 | CY36: =IF(OR($BC$11="",BI$11=0),0,(COUNTIFS(V_time,">="&$BB$11,V_time,"<"&$BC$11,V_di,$CO36)/60)*BI$11) -> 0 | CZ36: =IF(OR($BC$11="",BJ$11=0),0,(COUNTIFS(V_time,">="&$BB$11,V_time,"<"&$BC$11,V_wo,$CO36)/60)*BJ$11) -> 0 | DA36: =IF(OR($BC$11="",BK$11=0),0,(COUNTIFS(V_time,">="&$BB$11,V_time,"<"&$BC$11,V_do,$CO36)/60)*BK$11) -> 0 | DB36: =IF(OR($BC$11="",BL$11=0),0,(COUNTIFS(V_time,">="&$BB$11,V_time,"<"&$BC$11,V_vr,$CO36)/60)*BL$11) -> 0 | DC36: =IF(OR($BC$11="",BM$11=0),0,(COUNTIFS(V_time,">="&$BB$11,V_time,"<"&$BC$11,V_za,$CO36)/60)*BM$11) -> 0 | DD36: =IF(OR($BC$11="",BN$11=0),0,(COUNTIFS(V_time,">="&$BB$11,V_time,"<"&$BC$11,V_zo,$CO36)/60)*BN$11) -> 0
D37: Gelijkmatige inroostering extra opkomsturen/reservediensten (gemiddelde toeslag) | AD37: 0.02291666667 | AE37: 0.02361111111 | AF37: 35.0% | AG37: 35.0% | AH37: 35.0% | AI37: 35.0% | AJ37: 35.0% | AK37: 35.0% | AL37: 100.0% | BE37: =IF(COUNTA('toeslag berekening'!L23:R23)>=1,MAX($BE$21:BE36)+1,0) -> 0 | BF37: =MAX($BE$21:$BE37)+COUNTIF($BE$21:$BE37,0) -> 17 | BH37: =IF(OR($BC12="",BH12=0),0,((SUM(IF(V_time>='toeslag berekening'!$D14,IF(V_time<$BC12,V_ma,0),0))/60)*BH12)) -> 0% | BI37: =IF(OR($BC12="",BI12=0),0,((SUM(IF(V_time>='toeslag berekening'!$D14,IF(V_time<$BC12,V_di,0),0))/60)*BI12)) -> 0% | BJ37: =IF(OR($BC12="",BJ12=0),0,((SUM(IF(V_time>='toeslag berekening'!$D14,IF(V_time<$BC12,V_wo,0),0))/60)*BJ12)) -> 0% | BK37: =IF(OR($BC12="",BK12=0),0,((SUM(IF(V_time>='toeslag berekening'!$D14,IF(V_time<$BC12,V_do,0),0))/60)*BK12)) -> 0% | BL37: =IF(OR($BC12="",BL12=0),0,((SUM(IF(V_time>='toeslag berekening'!$D14,IF(V_time<$BC12,V_vr,0),0))/60)*BL12)) -> 0% | BM37: =IF(OR($BC12="",BM12=0),0,((SUM(IF(V_time>='toeslag berekening'!$D14,IF(V_time<$BC12,V_za,0),0))/60)*BM12)) -> 0% | BN37: =IF(OR($BC12="",BN12=0),0,((SUM(IF(V_time>='toeslag berekening'!$D14,IF(V_time<$BC12,V_zo,0),0))/60)*BN12)) -> 0% | CO37: 30.0% | CP37: 0 | CQ37: 0 | CR37: 0 | CS37: 0 | CT37: 0 | CU37: 0 | CV37: 0 | CX37: 0 | CY37: 0 | CZ37: 0 | DA37: 0 | DB37: 0 | DC37: 0 | DD37: 0
D38: Gelijkmatige uitroostering "+"-uren | AD38: 0.02361111111 | AE38: 0.02430555556 | AF38: 35.0% | AG38: 35.0% | AH38: 35.0% | AI38: 35.0% | AJ38: 35.0% | AK38: 35.0% | AL38: 100.0% | BE38: =IF(COUNTA('toeslag berekening'!L24:R24)>=1,MAX($BE$21:BE37)+1,0) -> 0 | BF38: =MAX($BE$21:$BE38)+COUNTIF($BE$21:$BE38,0) -> 18 | BH38: =IF(OR($BC13="",BH13=0),0,((SUM(IF(V_time>='toeslag berekening'!$D15,IF(V_time<$BC13,V_ma,0),0))/60)*BH13)) -> 0% | BI38: =IF(OR($BC13="",BI13=0),0,((SUM(IF(V_time>='toeslag berekening'!$D15,IF(V_time<$BC13,V_di,0),0))/60)*BI13)) -> 0% | BJ38: =IF(OR($BC13="",BJ13=0),0,((SUM(IF(V_time>='toeslag berekening'!$D15,IF(V_time<$BC13,V_wo,0),0))/60)*BJ13)) -> 0% | BK38: =IF(OR($BC13="",BK13=0),0,((SUM(IF(V_time>='toeslag berekening'!$D15,IF(V_time<$BC13,V_do,0),0))/60)*BK13)) -> 0% | BL38: =IF(OR($BC13="",BL13=0),0,((SUM(IF(V_time>='toeslag berekening'!$D15,IF(V_time<$BC13,V_vr,0),0))/60)*BL13)) -> 0% | BM38: =IF(OR($BC13="",BM13=0),0,((SUM(IF(V_time>='toeslag berekening'!$D15,IF(V_time<$BC13,V_za,0),0))/60)*BM13)) -> 0% | BN38: =IF(OR($BC13="",BN13=0),0,((SUM(IF(V_time>='toeslag berekening'!$D15,IF(V_time<$BC13,V_zo,0),0))/60)*BN13)) -> 0% | CO38: 33.00% | CP38: 0 | CQ38: 0 | CR38: 0 | CS38: 0 | CT38: 0 | CU38: 0 | CV38: 0 | CX38: 0 | CY38: 0 | CZ38: 0 | DA38: 0 | DB38: 0 | DC38: 0 | DD38: 0
D39: "-"-uren (tijdcompensatie) gecorrigeerd in ploegentoeslag | AD39: 0.02430555556 | AE39: 0.025 | AF39: 35.0% | AG39: 35.0% | AH39: 35.0% | AI39: 35.0% | AJ39: 35.0% | AK39: 35.0% | AL39: 100.0% | BE39: =IF(COUNTA('toeslag berekening'!L25:R25)>=1,MAX($BE$21:BE38)+1,0) -> 0 | BF39: =MAX($BE$21:$BE39)+COUNTIF($BE$21:$BE39,0) -> 19 | BH39: =IF(OR($BC14="",BH14=0),0,((SUM(IF(V_time>='toeslag berekening'!$D16,IF(V_time<$BC14,V_ma,0),0))/60)*BH14)) -> 0% | BI39: =IF(OR($BC14="",BI14=0),0,((SUM(IF(V_time>='toeslag berekening'!$D16,IF(V_time<$BC14,V_di,0),0))/60)*BI14)) -> 0% | BJ39: =IF(OR($BC14="",BJ14=0),0,((SUM(IF(V_time>='toeslag berekening'!$D16,IF(V_time<$BC14,V_wo,0),0))/60)*BJ14)) -> 0% | BK39: =IF(OR($BC14="",BK14=0),0,((SUM(IF(V_time>='toeslag berekening'!$D16,IF(V_time<$BC14,V_do,0),0))/60)*BK14)) -> 0% | BL39: =IF(OR($BC14="",BL14=0),0,((SUM(IF(V_time>='toeslag berekening'!$D16,IF(V_time<$BC14,V_vr,0),0))/60)*BL14)) -> 0% | BM39: =IF(OR($BC14="",BM14=0),0,((SUM(IF(V_time>='toeslag berekening'!$D16,IF(V_time<$BC14,V_za,0),0))/60)*BM14)) -> 0% | BN39: =IF(OR($BC14="",BN14=0),0,((SUM(IF(V_time>='toeslag berekening'!$D16,IF(V_time<$BC14,V_zo,0),0))/60)*BN14)) -> 0% | CO39: 35.00% | CP39: 0 | CQ39: 0 | CR39: 0 | CS39: 0 | CT39: 0 | CU39: 0 | CV39: 0 | CX39: 0 | CY39: 0 | CZ39: 0 | DA39: 0 | DB39: 0 | DC39: 0 | DD39: 0
AD40: 0.025 | AE40: 0.02569444444 | AF40: 35.0% | AG40: 35.0% | AH40: 35.0% | AI40: 35.0% | AJ40: 35.0% | AK40: 35.0% | AL40: 100.0% | BE40: =IF(COUNTA('toeslag berekening'!L26:R26)>=1,MAX($BE$21:BE39)+1,0) -> 0 | BF40: =MAX($BE$21:$BE40)+COUNTIF($BE$21:$BE40,0) -> 20 | BH40: =IF(OR($BC15="",BH15=0),0,((SUM(IF(V_time>='toeslag berekening'!$D17,IF(V_time<$BC15,V_ma,0),0))/60)*BH15)) -> 0% | BI40: =IF(OR($BC15="",BI15=0),0,((SUM(IF(V_time>='toeslag berekening'!$D17,IF(V_time<$BC15,V_di,0),0))/60)*BI15)) -> 0% | BJ40: =IF(OR($BC15="",BJ15=0),0,((SUM(IF(V_time>='toeslag berekening'!$D17,IF(V_time<$BC15,V_wo,0),0))/60)*BJ15)) -> 0% | BK40: =IF(OR($BC15="",BK15=0),0,((SUM(IF(V_time>='toeslag berekening'!$D17,IF(V_time<$BC15,V_do,0),0))/60)*BK15)) -> 0% | BL40: =IF(OR($BC15="",BL15=0),0,((SUM(IF(V_time>='toeslag berekening'!$D17,IF(V_time<$BC15,V_vr,0),0))/60)*BL15)) -> 0% | BM40: =IF(OR($BC15="",BM15=0),0,((SUM(IF(V_time>='toeslag berekening'!$D17,IF(V_time<$BC15,V_za,0),0))/60)*BM15)) -> 0% | BN40: =IF(OR($BC15="",BN15=0),0,((SUM(IF(V_time>='toeslag berekening'!$D17,IF(V_time<$BC15,V_zo,0),0))/60)*BN15)) -> 0% | CO40: 50.0% | CP40: 0 | CQ40: 0 | CR40: 0 | CS40: 0 | CT40: 0 | CU40: 0 | CV40: 0 | CX40: 0 | CY40: 0 | CZ40: 0 | DA40: 0 | DB40: 0 | DC40: 0 | DD40: 0
AD41: 0.02569444444 | AE41: 0.02638888889 | AF41: 35.0% | AG41: 35.0% | AH41: 35.0% | AI41: 35.0% | AJ41: 35.0% | AK41: 35.0% | AL41: 100.0% | BE41: =IF(COUNTA('toeslag berekening'!L27:R27)>=1,MAX($BE$21:BE40)+1,0) -> 0 | BF41: =MAX($BE$21:$BE41)+COUNTIF($BE$21:$BE41,0) -> 21 | BH41: =IF(OR($BC16="",BH16=0),0,((SUM(IF(V_time>='toeslag berekening'!$D18,IF(V_time<$BC16,V_ma,0),0))/60)*BH16)) -> 0% | BI41: =IF(OR($BC16="",BI16=0),0,((SUM(IF(V_time>='toeslag berekening'!$D18,IF(V_time<$BC16,V_di,0),0))/60)*BI16)) -> 0% | BJ41: =IF(OR($BC16="",BJ16=0),0,((SUM(IF(V_time>='toeslag berekening'!$D18,IF(V_time<$BC16,V_wo,0),0))/60)*BJ16)) -> 0% | BK41: =IF(OR($BC16="",BK16=0),0,((SUM(IF(V_time>='toeslag berekening'!$D18,IF(V_time<$BC16,V_do,0),0))/60)*BK16)) -> 0% | BL41: =IF(OR($BC16="",BL16=0),0,((SUM(IF(V_time>='toeslag berekening'!$D18,IF(V_time<$BC16,V_vr,0),0))/60)*BL16)) -> 0% | BM41: =IF(OR($BC16="",BM16=0),0,((SUM(IF(V_time>='toeslag berekening'!$D18,IF(V_time<$BC16,V_za,0),0))/60)*BM16)) -> 0% | BN41: =IF(OR($BC16="",BN16=0),0,((SUM(IF(V_time>='toeslag berekening'!$D18,IF(V_time<$BC16,V_zo,0),0))/60)*BN16)) -> 0% | CO41: 100.00% | CP41: 0 | CQ41: 0 | CR41: 0 | CS41: 0 | CT41: 0 | CU41: 0 | CV41: 0 | CX41: 0 | CY41: 0 | CZ41: 0 | DA41: 0 | DB41: 0 | DC41: 0 | DD41: 0
AD42: 0.02638888889 | AE42: 0.02708333333 | AF42: 35.0% | AG42: 35.0% | AH42: 35.0% | AI42: 35.0% | AJ42: 35.0% | AK42: 35.0% | AL42: 100.0% | BE42: =IF(COUNTA('toeslag berekening'!L28:R28)>=1,MAX($BE$21:BE41)+1,0) -> 0 | BF42: =MAX($BE$21:$BE42)+COUNTIF($BE$21:$BE42,0) -> 22 | BH42: =IF(OR($BC17="",BH17=0),0,((SUM(IF(V_time>='toeslag berekening'!$D19,IF(V_time<$BC17,V_ma,0),0))/60)*BH17)) -> 0% | BI42: =IF(OR($BC17="",BI17=0),0,((SUM(IF(V_time>='toeslag berekening'!$D19,IF(V_time<$BC17,V_di,0),0))/60)*BI17)) -> 0% | BJ42: =IF(OR($BC17="",BJ17=0),0,((SUM(IF(V_time>='toeslag berekening'!$D19,IF(V_time<$BC17,V_wo,0),0))/60)*BJ17)) -> 0% | BK42: =IF(OR($BC17="",BK17=0),0,((SUM(IF(V_time>='toeslag berekening'!$D19,IF(V_time<$BC17,V_do,0),0))/60)*BK17)) -> 0% | BL42: =IF(OR($BC17="",BL17=0),0,((SUM(IF(V_time>='toeslag berekening'!$D19,IF(V_time<$BC17,V_vr,0),0))/60)*BL17)) -> 0% | BM42: =IF(OR($BC17="",BM17=0),0,((SUM(IF(V_time>='toeslag berekening'!$D19,IF(V_time<$BC17,V_za,0),0))/60)*BM17)) -> 0% | BN42: =IF(OR($BC17="",BN17=0),0,((SUM(IF(V_time>='toeslag berekening'!$D19,IF(V_time<$BC17,V_zo,0),0))/60)*BN17)) -> 0%
B43: van | C43: tot | D43: Ma | E43: Di | F43: Wo | G43: Do | H43: Vr | I43: Za | J43: Zo | AD43: 0.02708333333 | AE43: 0.02777777778 | AF43: 35.0% | AG43: 35.0% | AH43: 35.0% | AI43: 35.0% | AJ43: 35.0% | AK43: 35.0% | AL43: 100.0% | BE43: =IF(COUNTA('toeslag berekening'!L29:R29)>=1,MAX($BE$21:BE42)+1,0) -> 0 | BF43: =MAX($BE$21:$BE43)+COUNTIF($BE$21:$BE43,0) -> 23 | BH43: =SUM(variant!D4:D27)/24*$BF$18 -> 136% | BI43: =SUM(variant!E4:E27)/24*$BF$18 -> 136% | BJ43: =SUM(variant!F4:F27)/24*$BF$18 -> 136% | BK43: =SUM(variant!G4:G27)/24*$BF$18 -> 136% | BL43: =SUM(variant!H4:H27)/24*$BF$18 -> 136% | BM43: =SUM(variant!I4:I27)/24*$BF$18 -> 260% | BN43: =SUM(variant!J4:J27)/24*$BF$18 -> 400% | CN43: =BB12 ->  | CO43: =BC12 ->  | CP43: ma | CQ43: di | CR43: wo | CS43: do | CT43: vr | CU43: za | CV43: zo | CX43: ma | CY43: di | CZ43: wo | DA43: do | DB43: vr | DC43: za | DD43: zo
B44: 23:00:00 | C44: 00:00:00 | D44: =IF($AQ$9=1,D4+VLOOKUP($AQ$11,correctie_rstr,7,FALSE),0) -> 0.00% | E44: 0.00% | F44: 0.00% | G44: 0.00% | H44: 0.00% | I44: 0.00% | J44: 0.00% | AD44: 0.02777777778 | AE44: 0.02847222222 | AF44: 35.0% | AG44: 35.0% | AH44: 35.0% | AI44: 35.0% | AJ44: 35.0% | AK44: 35.0% | AL44: 100.0% | BE44: =IF(COUNTA('toeslag berekening'!L30:R30)>=1,MAX($BE$21:BE43)+1,0) -> 0 | BF44: =MAX($BE$21:$BE44)+COUNTIF($BE$21:$BE44,0) -> 24 | CO44: 0.00% | CP44: =IF(OR($BC$12="",BH$12=0),0,(COUNTIFS(S_time,">="&$BB$12,S_time,"<"&$BC$12,S_ma,$CO44)/60)*BH$12) -> 0 | CQ44: =IF(OR($BC$12="",BI$12=0),0,(COUNTIFS(S_time,">="&$BB$12,S_time,"<"&$BC$12,S_di,$CO44)/60)*BI$12) -> 0 | CR44: =IF(OR($BC$12="",BJ$12=0),0,(COUNTIFS(S_time,">="&$BB$12,S_time,"<"&$BC$12,S_wo,$CO44)/60)*BJ$12) -> 0 | CS44: =IF(OR($BC$12="",BK$12=0),0,(COUNTIFS(S_time,">="&$BB$12,S_time,"<"&$BC$12,S_do,$CO44)/60)*BK$12) -> 0 | CT44: =IF(OR($BC$12="",BL$12=0),0,(COUNTIFS(S_time,">="&$BB$12,S_time,"<"&$BC$12,S_vr,$CO44)/60)*BL$12) -> 0 | CU44: =IF(OR($BC$12="",BM$12=0),0,(COUNTIFS(S_time,">="&$BB$12,S_time,"<"&$BC$12,S_za,$CO44)/60)*BM$12) -> 0 | CV44: =IF(OR($BC$12="",BN$12=0),0,(COUNTIFS(S_time,">="&$BB$12,S_time,"<"&$BC$12,S_zo,$CO44)/60)*BN$12) -> 0 | CX44: =IF(OR($BC$12="",BH$12=0),0,(COUNTIFS(V_time,">="&$BB$12,V_time,"<"&$BC$12,V_ma,$CO44)/60)*BH$12) -> 0 | CY44: =IF(OR($BC$12="",BI$12=0),0,(COUNTIFS(V_time,">="&$BB$12,V_time,"<"&$BC$12,V_di,$CO44)/60)*BI$12) -> 0 | CZ44: =IF(OR($BC$12="",BJ$12=0),0,(COUNTIFS(V_time,">="&$BB$12,V_time,"<"&$BC$12,V_wo,$CO44)/60)*BJ$12) -> 0 | DA44: =IF(OR($BC$12="",BK$12=0),0,(COUNTIFS(V_time,">="&$BB$12,V_time,"<"&$BC$12,V_do,$CO44)/60)*BK$12) -> 0 | DB44: =IF(OR($BC$12="",BL$12=0),0,(COUNTIFS(V_time,">="&$BB$12,V_time,"<"&$BC$12,V_vr,$CO44)/60)*BL$12) -> 0 | DC44: =IF(OR($BC$12="",BM$12=0),0,(COUNTIFS(V_time,">="&$BB$12,V_time,"<"&$BC$12,V_za,$CO44)/60)*BM$12) -> 0 | DD44: =IF(OR($BC$12="",BN$12=0),0,(COUNTIFS(V_time,">="&$BB$12,V_time,"<"&$BC$12,V_zo,$CO44)/60)*BN$12) -> 0
B45: 22:00:00 | C45: 23:00:00 | D45: 0.00% | E45: 0.00% | F45: 0.00% | G45: 0.00% | H45: 0.00% | I45: 0.00% | J45: 0.00% | AD45: 0.02847222222 | AE45: 0.02916666667 | AF45: 35.0% | AG45: 35.0% | AH45: 35.0% | AI45: 35.0% | AJ45: 35.0% | AK45: 35.0% | AL45: 100.0% | BE45: =IF(COUNTA('toeslag berekening'!L31:R31)>=1,MAX($BE$21:BE44)+1,0) -> 0 | BF45: =MAX($BE$21:$BE45)+COUNTIF($BE$21:$BE45,0) -> 25 | CO45: 30.0% | CP45: 0 | CQ45: 0 | CR45: 0 | CS45: 0 | CT45: 0 | CU45: 0 | CV45: 0 | CX45: 0 | CY45: 0 | CZ45: 0 | DA45: 0 | DB45: 0 | DC45: 0 | DD45: 0
B46: 21:00:00 | C46: 22:00:00 | D46: 0.00% | E46: 0.00% | F46: 0.00% | G46: 0.00% | H46: 0.00% | I46: 0.00% | J46: 0.00% | AD46: 0.02916666667 | AE46: 0.02986111111 | AF46: 35.0% | AG46: 35.0% | AH46: 35.0% | AI46: 35.0% | AJ46: 35.0% | AK46: 35.0% | AL46: 100.0% | BE46: =IF(COUNTA('toeslag berekening'!L32:R32)>=1,MAX($BE$21:BE45)+1,0) -> 0 | BF46: =MAX($BE$21:$BE46)+COUNTIF($BE$21:$BE46,0) -> 26 | BH46: =CO9 -> 0.00% | BI46: =SUMIF($CO$9:$CO$94,$BH46,CP$9:CP$94) -> 0 | BJ46: 0 | BK46: 0 | BL46: 0 | BM46: 0 | BN46: 0 | BO46: 0 | BP46: =SUM(BI46:BO46) -> 0 | BQ46: =BP46*BH46 -> 0% | CO46: 33.00% | CP46: 0 | CQ46: 0 | CR46: 0 | CS46: 0 | CT46: 0 | CU46: 0 | CV46: 0 | CX46: 0 | CY46: 0 | CZ46: 0 | DA46: 0 | DB46: 0 | DC46: 0 | DD46: 0
B47: 20:00:00 | C47: 21:00:00 | D47: 0.00% | E47: 0.00% | F47: 0.00% | G47: 0.00% | H47: 0.00% | I47: 0.00% | J47: 0.00% | AD47: 0.02986111111 | AE47: 0.03055555556 | AF47: 35.0% | AG47: 35.0% | AH47: 35.0% | AI47: 35.0% | AJ47: 35.0% | AK47: 35.0% | AL47: 100.0% | BE47: =IF(COUNTA('toeslag berekening'!L33:R33)>=1,MAX($BE$21:BE46)+1,0) -> 0 | BF47: =MAX($BE$21:$BE47)+COUNTIF($BE$21:$BE47,0) -> 27 | BH47: =CO11 -> 33.00% | BI47: 0 | BJ47: 0 | BK47: 0 | BL47: 0 | BM47: 0 | BN47: 0 | BO47: 0 | BP47: =SUM(BI47:BO47) -> 0 | BQ47: =BP47*BH47 -> 0% | CO47: 35.00% | CP47: 0 | CQ47: 0 | CR47: 0 | CS47: 0 | CT47: 0 | CU47: 0 | CV47: 0 | CX47: 0 | CY47: 0 | CZ47: 0 | DA47: 0 | DB47: 0 | DC47: 0 | DD47: 0
B48: 19:00:00 | C48: 20:00:00 | D48: 0.00% | E48: 0.00% | F48: 0.00% | G48: 0.00% | H48: 0.00% | I48: 0.00% | J48: 0.00% | AD48: 0.03055555556 | AE48: 0.03125 | AF48: =IF($AQ$9=1,IFERROR(VLOOKUP($AD48,CorS_matrix,AF$3,FALSE),AF47),IFERROR(VLOOKUP($AD48,S_matrix,AF$3,FALSE),AF47)) -> 35.0% | AG48: 35.0% | AH48: 35.0% | AI48: 35.0% | AJ48: 35.0% | AK48: 35.0% | AL48: 100.0% | BE48: =IF(COUNTA('toeslag berekening'!L34:R34)>=1,MAX($BE$21:BE47)+1,0) -> 0 | BF48: =MAX($BE$21:$BE48)+COUNTIF($BE$21:$BE48,0) -> 28 | BH48: =CO12 -> 35.00% | BI48: 0 | BJ48: 0 | BK48: 0 | BL48: 0 | BM48: 0 | BN48: 0 | BO48: 0 | BP48: =SUM(BI48:BO48) -> 0 | BQ48: =BP48*BH48 -> 0% | CO48: 50.0% | CP48: 0 | CQ48: 0 | CR48: 0 | CS48: 0 | CT48: 0 | CU48: 0 | CV48: 0 | CX48: 0 | CY48: 0 | CZ48: 0 | DA48: 0 | DB48: 0 | DC48: 0 | DD48: 0
B49: 18:00:00 | C49: 19:00:00 | D49: 0.00% | E49: 0.00% | F49: 0.00% | G49: 0.00% | H49: 0.00% | I49: 0.00% | J49: 0.00% | AD49: 0.03125 | AE49: 0.03194444444 | AF49: 35.0% | AG49: 35.0% | AH49: 35.0% | AI49: 35.0% | AJ49: 35.0% | AK49: 35.0% | AL49: 100.0% | BE49: =IF(COUNTA('toeslag berekening'!L35:R35)>=1,MAX($BE$21:BE48)+1,0) -> 0 | BF49: =MAX($BE$21:$BE49)+COUNTIF($BE$21:$BE49,0) -> 29 | BH49: =CO14 -> 100.00% | BI49: 0 | BJ49: 0 | BK49: 0 | BL49: 0 | BM49: 0 | BN49: 0 | BO49: 0 | BP49: =SUM(BI49:BO49) -> 0 | BQ49: =BP49*BH49 -> 0% | CO49: 100.00% | CP49: 0 | CQ49: 0 | CR49: 0 | CS49: 0 | CT49: 0 | CU49: 0 | CV49: 0 | CX49: 0 | CY49: 0 | CZ49: 0 | DA49: 0 | DB49: 0 | DC49: 0 | DD49: 0
B50: 17:00:00 | C50: 18:00:00 | D50: =IF($AQ$9=1,D10,0) -> 0.00% | E50: =IF($AQ$9=1,E10,0) -> 0.00% | F50: 0.00% | G50: 0.00% | H50: 0.00% | I50: =IF($AQ$9=1,I10+VLOOKUP($AQ$11,correctie_rstr,7,FALSE),0) -> 0.00% | J50: 0.00% | AD50: 0.03194444444 | AE50: 0.03263888889 | AF50: 35.0% | AG50: 35.0% | AH50: 35.0% | AI50: 35.0% | AJ50: 35.0% | AK50: 35.0% | AL50: 100.0% | BE50: =IF(COUNTA('toeslag berekening'!L36:R36)>=1,MAX($BE$21:BE49)+1,0) -> 0 | BF50: =MAX($BE$21:$BE50)+COUNTIF($BE$21:$BE50,0) -> 30 | BH50: ="" ->  | BI50: ="" ->  | BJ50: ="" ->  | BK50: ="" ->  | BL50: ="" ->  | BM50: ="" ->  | BN50: ="" ->  | BO50: ="" -> 
B51: 16:00:00 | C51: 17:00:00 | D51: =IF($AQ$9=1,D11,0) -> 0.00% | E51: 0.00% | F51: 0.00% | G51: 0.00% | H51: 0.00% | I51: 0.00% | J51: 0.00% | AD51: 0.03263888889 | AE51: 0.03333333333 | AF51: 35.0% | AG51: 35.0% | AH51: 35.0% | AI51: 35.0% | AJ51: 35.0% | AK51: 35.0% | AL51: 100.0% | BE51: =IF(COUNTA('toeslag berekening'!L37:R37)>=1,MAX($BE$21:BE50)+1,0) -> 0 | BF51: =MAX($BE$21:$BE51)+COUNTIF($BE$21:$BE51,0) -> 31 | BQ51: =SUM(BQ46:BQ49) -> 0%
B52: 15:00:00 | C52: 16:00:00 | D52: 0.00% | E52: 0.00% | F52: 0.00% | G52: 0.00% | H52: 0.00% | I52: 0.00% | J52: 0.00% | AD52: 0.03333333333 | AE52: 0.03402777778 | AF52: 35.0% | AG52: 35.0% | AH52: 35.0% | AI52: 35.0% | AJ52: 35.0% | AK52: 35.0% | AL52: 100.0% | BE52: =IF(COUNTA('toeslag berekening'!L38:R38)>=1,MAX($BE$21:BE51)+1,0) -> 0 | BF52: =MAX($BE$21:$BE52)+COUNTIF($BE$21:$BE52,0) -> 32 | CN52: =BB13 ->  | CO52: =BC13 ->  | CP52: ma | CQ52: di | CR52: wo | CS52: do | CT52: vr | CU52: za | CV52: zo | CX52: ma | CY52: di | CZ52: wo | DA52: do | DB52: vr | DC52: za | DD52: zo
B53: 14:00:00 | C53: 15:00:00 | D53: 0.00% | E53: 0.00% | F53: 0.00% | G53: 0.00% | H53: 0.00% | I53: 0.00% | J53: 0.00% | AD53: 0.03402777778 | AE53: 0.03472222222 | AF53: 35.0% | AG53: 35.0% | AH53: 35.0% | AI53: 35.0% | AJ53: 35.0% | AK53: 35.0% | AL53: 100.0% | BE53: =IF(COUNTA('toeslag berekening'!L39:R39)>=1,MAX($BE$21:BE52)+1,0) -> 0 | BF53: =MAX($BE$21:$BE53)+COUNTIF($BE$21:$BE53,0) -> 33 | CO53: 0.00% | CP53: =IF(OR($BC$13="",BH$13=0),0,(COUNTIFS(S_time,">="&$BB$13,S_time,"<"&$BC$13,S_ma,$CO53)/60)*BH$13) -> 0 | CQ53: =IF(OR($BC$13="",BI$13=0),0,(COUNTIFS(S_time,">="&$BB$13,S_time,"<"&$BC$13,S_di,$CO53)/60)*BI$13) -> 0 | CR53: =IF(OR($BC$13="",BJ$13=0),0,(COUNTIFS(S_time,">="&$BB$13,S_time,"<"&$BC$13,S_wo,$CO53)/60)*BJ$13) -> 0 | CS53: =IF(OR($BC$13="",BK$13=0),0,(COUNTIFS(S_time,">="&$BB$13,S_time,"<"&$BC$13,S_do,$CO53)/60)*BK$13) -> 0 | CT53: =IF(OR($BC$13="",BL$13=0),0,(COUNTIFS(S_time,">="&$BB$13,S_time,"<"&$BC$13,S_vr,$CO53)/60)*BL$13) -> 0 | CU53: =IF(OR($BC$13="",BM$13=0),0,(COUNTIFS(S_time,">="&$BB$13,S_time,"<"&$BC$13,S_za,$CO53)/60)*BM$13) -> 0 | CV53: =IF(OR($BC$13="",BN$13=0),0,(COUNTIFS(S_time,">="&$BB$13,S_time,"<"&$BC$13,S_zo,$CO53)/60)*BN$13) -> 0 | CX53: =IF(OR($BC$13="",BH$13=0),0,(COUNTIFS(V_time,">="&$BB$13,V_time,"<"&$BC$13,V_ma,$CO53)/60)*BH$13) -> 0 | CY53: =IF(OR($BC$13="",BI$13=0),0,(COUNTIFS(V_time,">="&$BB$13,V_time,"<"&$BC$13,V_di,$CO53)/60)*BI$13) -> 0 | CZ53: =IF(OR($BC$13="",BJ$13=0),0,(COUNTIFS(V_time,">="&$BB$13,V_time,"<"&$BC$13,V_wo,$CO53)/60)*BJ$13) -> 0 | DA53: =IF(OR($BC$13="",BK$13=0),0,(COUNTIFS(V_time,">="&$BB$13,V_time,"<"&$BC$13,V_do,$CO53)/60)*BK$13) -> 0 | DB53: =IF(OR($BC$13="",BL$13=0),0,(COUNTIFS(V_time,">="&$BB$13,V_time,"<"&$BC$13,V_vr,$CO53)/60)*BL$13) -> 0 | DC53: =IF(OR($BC$13="",BM$13=0),0,(COUNTIFS(V_time,">="&$BB$13,V_time,"<"&$BC$13,V_za,$CO53)/60)*BM$13) -> 0 | DD53: =IF(OR($BC$13="",BN$13=0),0,(COUNTIFS(V_time,">="&$BB$13,V_time,"<"&$BC$13,V_zo,$CO53)/60)*BN$13) -> 0
B54: 13:00:00 | C54: 14:00:00 | D54: 0.00% | E54: 0.00% | F54: 0.00% | G54: 0.00% | H54: 0.00% | I54: 0.00% | J54: 0.00% | AD54: 0.03472222222 | AE54: 0.03541666667 | AF54: 35.0% | AG54: 35.0% | AH54: 35.0% | AI54: 35.0% | AJ54: 35.0% | AK54: 35.0% | AL54: 100.0% | BE54: =IF(COUNTA('toeslag berekening'!L40:R40)>=1,MAX($BE$21:BE53)+1,0) -> 0 | BF54: =MAX($BE$21:$BE54)+COUNTIF($BE$21:$BE54,0) -> 34 | CO54: 30.0% | CP54: 0 | CQ54: 0 | CR54: 0 | CS54: 0 | CT54: 0 | CU54: 0 | CV54: 0 | CX54: 0 | CY54: 0 | CZ54: 0 | DA54: 0 | DB54: 0 | DC54: 0 | DD54: 0
B55: 12:00:00 | C55: 13:00:00 | D55: 0.00% | E55: 0.00% | F55: 0.00% | G55: 0.00% | H55: 0.00% | I55: 0.00% | J55: 0.00% | AD55: 0.03541666667 | AE55: 0.03611111111 | AF55: 35.0% | AG55: 35.0% | AH55: 35.0% | AI55: 35.0% | AJ55: 35.0% | AK55: 35.0% | AL55: 100.0% | BE55: =IF(COUNTA('toeslag berekening'!L41:R41)>=1,MAX($BE$21:BE54)+1,0) -> 0 | BF55: =MAX($BE$21:$BE55)+COUNTIF($BE$21:$BE55,0) -> 35 | BH55: =BH46 -> 0.00% | BI55: =SUMIF($CO$9:$CO$94,$BH55,CX$9:CX$94) -> 0 | BJ55: 0 | BK55: 0 | BL55: 0 | BM55: 0 | BN55: 0 | BO55: 0 | BP55: =SUM(BI55:BO55) -> 0 | BQ55: =BP55*BH55 -> 0% | CO55: 33.00% | CP55: 0 | CQ55: 0 | CR55: 0 | CS55: 0 | CT55: 0 | CU55: 0 | CV55: 0 | CX55: 0 | CY55: 0 | CZ55: 0 | DA55: 0 | DB55: 0 | DC55: 0 | DD55: 0
B56: 11:00:00 | C56: 12:00:00 | D56: 0.00% | E56: 0.00% | F56: 0.00% | G56: 0.00% | H56: 0.00% | I56: 0.00% | J56: 0.00% | AD56: 0.03611111111 | AE56: 0.03680555556 | AF56: 35.0% | AG56: 35.0% | AH56: 35.0% | AI56: 35.0% | AJ56: 35.0% | AK56: 35.0% | AL56: 100.0% | BE56: =IF(COUNTA('toeslag berekening'!L42:R42)>=1,MAX($BE$21:BE55)+1,0) -> 0 | BF56: =MAX($BE$21:$BE56)+COUNTIF($BE$21:$BE56,0) -> 36 | BH56: =CO10 -> 30.0% | BI56: 0 | BJ56: 0 | BK56: 0 | BL56: 0 | BM56: 0 | BN56: 0 | BO56: 0 | BP56: =SUM(BI56:BO56) -> 0 | BQ56: =BP56*BH56 -> 0% | CO56: 35.00% | CP56: 0 | CQ56: 0 | CR56: 0 | CS56: 0 | CT56: 0 | CU56: 0 | CV56: 0 | CX56: 0 | CY56: 0 | CZ56: 0 | DA56: 0 | DB56: 0 | DC56: 0 | DD56: 0
B57: 10:00:00 | C57: 11:00:00 | D57: 0.00% | E57: 0.00% | F57: 0.00% | G57: 0.00% | H57: 0.00% | I57: 0.00% | J57: 0.00% | AD57: 0.03680555556 | AE57: 0.0375 | AF57: 35.0% | AG57: 35.0% | AH57: 35.0% | AI57: 35.0% | AJ57: 35.0% | AK57: 35.0% | AL57: 100.0% | BE57: =IF(COUNTA('toeslag berekening'!L43:R43)>=1,MAX($BE$21:BE56)+1,0) -> 0 | BF57: =MAX($BE$21:$BE57)+COUNTIF($BE$21:$BE57,0) -> 37 | BH57: =BH47 -> 33.00% | BI57: 0 | BJ57: 0 | BK57: 0 | BL57: 0 | BM57: 0 | BN57: 0 | BO57: 0 | BP57: 0 | BQ57: 0% | CO57: 50.0% | CP57: 0 | CQ57: 0 | CR57: 0 | CS57: 0 | CT57: 0 | CU57: 0 | CV57: 0 | CX57: 0 | CY57: 0 | CZ57: 0 | DA57: 0 | DB57: 0 | DC57: 0 | DD57: 0
B58: 09:00:00 | C58: 10:00:00 | D58: 0.00% | E58: 0.00% | F58: 0.00% | G58: 0.00% | H58: 0.00% | I58: 0.00% | J58: 0.00% | AD58: 0.0375 | AE58: 0.03819444444 | AF58: 35.0% | AG58: 35.0% | AH58: 35.0% | AI58: 35.0% | AJ58: 35.0% | AK58: 35.0% | AL58: 100.0% | BE58: =IF(COUNTA('toeslag berekening'!L44:R44)>=1,MAX($BE$21:BE57)+1,0) -> 0 | BF58: =MAX($BE$21:$BE58)+COUNTIF($BE$21:$BE58,0) -> 38 | BH58: =BH48 -> 35.00% | BI58: 0 | BJ58: 0 | BK58: 0 | BL58: 0 | BM58: 0 | BN58: 0 | BO58: 0 | BP58: 0 | BQ58: 0% | CO58: 100.00% | CP58: 0 | CQ58: 0 | CR58: 0 | CS58: 0 | CT58: 0 | CU58: 0 | CV58: 0 | CX58: 0 | CY58: 0 | CZ58: 0 | DA58: 0 | DB58: 0 | DC58: 0 | DD58: 0
B59: 08:00:00 | C59: 09:00:00 | D59: 0.00% | E59: 0.00% | F59: 0.00% | G59: 0.00% | H59: 0.00% | I59: 0.00% | J59: 0.00% | AD59: 0.03819444444 | AE59: 0.03888888889 | AF59: 35.0% | AG59: 35.0% | AH59: 35.0% | AI59: 35.0% | AJ59: 35.0% | AK59: 35.0% | AL59: 100.0% | BE59: =IF(COUNTA('toeslag berekening'!L45:R45)>=1,MAX($BE$21:BE58)+1,0) -> 0 | BF59: =MAX($BE$21:$BE59)+COUNTIF($BE$21:$BE59,0) -> 39 | BH59: =CO13 -> 50.0% | BI59: 0 | BJ59: 0 | BK59: 0 | BL59: 0 | BM59: 0 | BN59: 0 | BO59: 0 | BP59: 0 | BQ59: 0%
B60: 07:00:00 | C60: 08:00:00 | D60: 0.00% | E60: 0.00% | F60: 0.00% | G60: 0.00% | H60: 0.00% | I60: 0.00% | J60: 0.00% | AD60: 0.03888888889 | AE60: 0.03958333333 | AF60: 35.0% | AG60: 35.0% | AH60: 35.0% | AI60: 35.0% | AJ60: 35.0% | AK60: 35.0% | AL60: 100.0% | BE60: =IF(COUNTA('toeslag berekening'!L46:R46)>=1,MAX($BE$21:BE59)+1,0) -> 0 | BF60: =MAX($BE$21:$BE60)+COUNTIF($BE$21:$BE60,0) -> 40
B61: 06:00:00 | C61: 07:00:00 | D61: =IF($AQ$9=1,D21+VLOOKUP($AQ$11,correctie_rstr,7,FALSE),0) -> 0.00% | E61: 0.00% | F61: 0.00% | G61: 0.00% | H61: 0.00% | I61: 0.00% | J61: 0.00% | AD61: 0.03958333333 | AE61: 0.04027777778 | AF61: 35.0% | AG61: 35.0% | AH61: 35.0% | AI61: 35.0% | AJ61: 35.0% | AK61: 35.0% | AL61: 100.0% | BE61: =IF(COUNTA('toeslag berekening'!L47:R47)>=1,MAX($BE$21:BE60)+1,0) -> 0 | BF61: =MAX($BE$21:$BE61)+COUNTIF($BE$21:$BE61,0) -> 41 | BQ61: =SUM(BQ55:BQ60) -> 0% | CN61: =BB14 ->  | CO61: =BC14 ->  | CP61: ma | CQ61: di | CR61: wo | CS61: do | CT61: vr | CU61: za | CV61: zo | CX61: ma | CY61: di | CZ61: wo | DA61: do | DB61: vr | DC61: za | DD61: zo
B62: 05:00:00 | C62: 06:00:00 | D62: 0.00% | E62: 0.00% | F62: 0.00% | G62: 0.00% | H62: 0.00% | I62: 0.00% | J62: 0.00% | AD62: 0.04027777778 | AE62: 0.04097222222 | AF62: 35.0% | AG62: 35.0% | AH62: 35.0% | AI62: 35.0% | AJ62: 35.0% | AK62: 35.0% | AL62: 100.0% | BE62: =IF(COUNTA('toeslag berekening'!L48:R48)>=1,MAX($BE$21:BE61)+1,0) -> 0 | BF62: =MAX($BE$21:$BE62)+COUNTIF($BE$21:$BE62,0) -> 42 | CO62: 0.00% | CP62: =IF(OR($BC$14="",BH$14=0),0,(COUNTIFS(S_time,">="&$BB$14,S_time,"<"&$BC$14,S_ma,$CO62)/60)*BH$14) -> 0 | CQ62: =IF(OR($BC$14="",BI$14=0),0,(COUNTIFS(S_time,">="&$BB$14,S_time,"<"&$BC$14,S_di,$CO62)/60)*BI$14) -> 0 | CR62: =IF(OR($BC$14="",BJ$14=0),0,(COUNTIFS(S_time,">="&$BB$14,S_time,"<"&$BC$14,S_wo,$CO62)/60)*BJ$14) -> 0 | CS62: =IF(OR($BC$14="",BK$14=0),0,(COUNTIFS(S_time,">="&$BB$14,S_time,"<"&$BC$14,S_do,$CO62)/60)*BK$14) -> 0 | CT62: =IF(OR($BC$14="",BL$14=0),0,(COUNTIFS(S_time,">="&$BB$14,S_time,"<"&$BC$14,S_vr,$CO62)/60)*BL$14) -> 0 | CU62: =IF(OR($BC$14="",BM$14=0),0,(COUNTIFS(S_time,">="&$BB$14,S_time,"<"&$BC$14,S_za,$CO62)/60)*BM$14) -> 0 | CV62: =IF(OR($BC$14="",BN$14=0),0,(COUNTIFS(S_time,">="&$BB$14,S_time,"<"&$BC$14,S_zo,$CO62)/60)*BN$14) -> 0 | CX62: =IF(OR($BC$14="",BH$14=0),0,(COUNTIFS(V_time,">="&$BB$14,V_time,"<"&$BC$14,V_ma,$CO62)/60)*BH$14) -> 0 | CY62: =IF(OR($BC$14="",BI$14=0),0,(COUNTIFS(V_time,">="&$BB$14,V_time,"<"&$BC$14,V_di,$CO62)/60)*BI$14) -> 0 | CZ62: =IF(OR($BC$14="",BJ$14=0),0,(COUNTIFS(V_time,">="&$BB$14,V_time,"<"&$BC$14,V_wo,$CO62)/60)*BJ$14) -> 0 | DA62: =IF(OR($BC$14="",BK$14=0),0,(COUNTIFS(V_time,">="&$BB$14,V_time,"<"&$BC$14,V_do,$CO62)/60)*BK$14) -> 0 | DB62: =IF(OR($BC$14="",BL$14=0),0,(COUNTIFS(V_time,">="&$BB$14,V_time,"<"&$BC$14,V_vr,$CO62)/60)*BL$14) -> 0 | DC62: =IF(OR($BC$14="",BM$14=0),0,(COUNTIFS(V_time,">="&$BB$14,V_time,"<"&$BC$14,V_za,$CO62)/60)*BM$14) -> 0 | DD62: =IF(OR($BC$14="",BN$14=0),0,(COUNTIFS(V_time,">="&$BB$14,V_time,"<"&$BC$14,V_zo,$CO62)/60)*BN$14) -> 0
B63: 04:00:00 | C63: 05:00:00 | D63: 0.00% | E63: 0.00% | F63: 0.00% | G63: 0.00% | H63: 0.00% | I63: 0.00% | J63: 0.00% | AD63: 0.04097222222 | AE63: 0.04166666667 | AF63: 35.0% | AG63: 35.0% | AH63: 35.0% | AI63: 35.0% | AJ63: 35.0% | AK63: 35.0% | AL63: 100.0% | BE63: =IF(COUNTA('toeslag berekening'!L49:R49)>=1,MAX($BE$21:BE62)+1,0) -> 0 | BF63: =MAX($BE$21:$BE63)+COUNTIF($BE$21:$BE63,0) -> 43 | CO63: 30.0% | CP63: 0 | CQ63: 0 | CR63: 0 | CS63: 0 | CT63: 0 | CU63: 0 | CV63: 0 | CX63: 0 | CY63: 0 | CZ63: 0 | DA63: 0 | DB63: 0 | DC63: 0 | DD63: 0
B64: 03:00:00 | C64: 04:00:00 | D64: 0.00% | E64: 0.00% | F64: 0.00% | G64: 0.00% | H64: 0.00% | I64: 0.00% | J64: 0.00% | AD64: 0.04166666667 | AE64: 0.04236111111 | AF64: 35.0% | AG64: 35.0% | AH64: 35.0% | AI64: 35.0% | AJ64: 35.0% | AK64: 35.0% | AL64: 100.0% | BE64: =IF(COUNTA('toeslag berekening'!L50:R50)>=1,MAX($BE$21:BE63)+1,0) -> 0 | BF64: =MAX($BE$21:$BE64)+COUNTIF($BE$21:$BE64,0) -> 44 | CO64: 33.00% | CP64: 0 | CQ64: 0 | CR64: 0 | CS64: 0 | CT64: 0 | CU64: 0 | CV64: 0 | CX64: 0 | CY64: 0 | CZ64: 0 | DA64: 0 | DB64: 0 | DC64: 0 | DD64: 0
B65: 02:00:00 | C65: 03:00:00 | D65: 0.00% | E65: 0.00% | F65: 0.00% | G65: 0.00% | H65: 0.00% | I65: 0.00% | J65: 0.00% | AD65: 0.04236111111 | AE65: 0.04305555556 | AF65: 35.0% | AG65: 35.0% | AH65: 35.0% | AI65: 35.0% | AJ65: 35.0% | AK65: 35.0% | AL65: 100.0% | BE65: =IF(COUNTA('toeslag berekening'!L51:R51)>=1,MAX($BE$21:BE64)+1,0) -> 0 | BF65: =MAX($BE$21:$BE65)+COUNTIF($BE$21:$BE65,0) -> 45 | CO65: 35.00% | CP65: 0 | CQ65: 0 | CR65: 0 | CS65: 0 | CT65: 0 | CU65: 0 | CV65: 0 | CX65: 0 | CY65: 0 | CZ65: 0 | DA65: 0 | DB65: 0 | DC65: 0 | DD65: 0
B66: 01:00:00 | C66: 02:00:00 | D66: 0.00% | E66: 0.00% | F66: 0.00% | G66: 0.00% | H66: 0.00% | I66: 0.00% | J66: 0.00% | AD66: 0.04305555556 | AE66: 0.04375 | AF66: 35.0% | AG66: 35.0% | AH66: 35.0% | AI66: 35.0% | AJ66: 35.0% | AK66: 35.0% | AL66: 100.0% | BE66: =IF(COUNTA('toeslag berekening'!L52:R52)>=1,MAX($BE$21:BE65)+1,0) -> 0 | BF66: =MAX($BE$21:$BE66)+COUNTIF($BE$21:$BE66,0) -> 46 | CO66: 50.0% | CP66: 0 | CQ66: 0 | CR66: 0 | CS66: 0 | CT66: 0 | CU66: 0 | CV66: 0 | CX66: 0 | CY66: 0 | CZ66: 0 | DA66: 0 | DB66: 0 | DC66: 0 | DD66: 0
B67: 00:00:00 | C67: 01:00:00 | D67: 0.00% | E67: 0.00% | F67: 0.00% | G67: 0.00% | H67: 0.00% | I67: 0.00% | J67: 0.00% | AD67: 0.04375 | AE67: 0.04444444444 | AF67: 35.0% | AG67: 35.0% | AH67: 35.0% | AI67: 35.0% | AJ67: 35.0% | AK67: 35.0% | AL67: 100.0% | BE67: =IF(COUNTA('toeslag berekening'!L53:R53)>=1,MAX($BE$21:BE66)+1,0) -> 0 | BF67: =MAX($BE$21:$BE67)+COUNTIF($BE$21:$BE67,0) -> 47 | CO67: 100.00% | CP67: 0 | CQ67: 0 | CR67: 0 | CS67: 0 | CT67: 0 | CU67: 0 | CV67: 0 | CX67: 0 | CY67: 0 | CZ67: 0 | DA67: 0 | DB67: 0 | DC67: 0 | DD67: 0
AD68: 0.04444444444 | AE68: 0.04513888889 | AF68: =IF($AQ$9=1,IFERROR(VLOOKUP($AD68,CorS_matrix,AF$3,FALSE),AF67),IFERROR(VLOOKUP($AD68,S_matrix,AF$3,FALSE),AF67)) -> 35.0% | AG68: =IF($AQ$9=1,IFERROR(VLOOKUP($AD68,CorS_matrix,AG$3,FALSE),AG67),IFERROR(VLOOKUP($AD68,S_matrix,AG$3,FALSE),AG67)) -> 35.0% | AH68: =IF($AQ$9=1,IFERROR(VLOOKUP($AD68,CorS_matrix,AH$3,FALSE),AH67),IFERROR(VLOOKUP($AD68,S_matrix,AH$3,FALSE),AH67)) -> 35.0% | AI68: =IF($AQ$9=1,IFERROR(VLOOKUP($AD68,CorS_matrix,AI$3,FALSE),AI67),IFERROR(VLOOKUP($AD68,S_matrix,AI$3,FALSE),AI67)) -> 35.0% | AJ68: =IF($AQ$9=1,IFERROR(VLOOKUP($AD68,CorS_matrix,AJ$3,FALSE),AJ67),IFERROR(VLOOKUP($AD68,S_matrix,AJ$3,FALSE),AJ67)) -> 35.0% | AK68: =IF($AQ$9=1,IFERROR(VLOOKUP($AD68,CorS_matrix,AK$3,FALSE),AK67),IFERROR(VLOOKUP($AD68,S_matrix,AK$3,FALSE),AK67)) -> 35.0% | AL68: =IF($AQ$9=1,IFERROR(VLOOKUP($AD68,CorS_matrix,AL$3,FALSE),AL67),IFERROR(VLOOKUP($AD68,S_matrix,AL$3,FALSE),AL67)) -> 100.0% | BE68: =IF(COUNTA('toeslag berekening'!L54:R54)>=1,MAX($BE$21:BE67)+1,0) -> 0 | BF68: =MAX($BE$21:$BE68)+COUNTIF($BE$21:$BE68,0) -> 48
AD69: 0.04513888889 | AE69: 0.04583333333 | AF69: 35.0% | AG69: 35.0% | AH69: 35.0% | AI69: 35.0% | AJ69: 35.0% | AK69: 35.0% | AL69: 100.0% | BE69: =IF(COUNTA('toeslag berekening'!L55:R55)>=1,MAX($BE$21:BE68)+1,0) -> 0 | BF69: =MAX($BE$21:$BE69)+COUNTIF($BE$21:$BE69,0) -> 49
AD70: 0.04583333333 | AE70: 0.04652777778 | AF70: 35.0% | AG70: 35.0% | AH70: 35.0% | AI70: 35.0% | AJ70: 35.0% | AK70: 35.0% | AL70: 100.0% | BE70: =IF(COUNTA('toeslag berekening'!L56:R56)>=1,MAX($BE$21:BE69)+1,0) -> 0 | BF70: =MAX($BE$21:$BE70)+COUNTIF($BE$21:$BE70,0) -> 50 | CN70: =BB15 ->  | CO70: =BC15 ->  | CP70: ma | CQ70: di | CR70: wo | CS70: do | CT70: vr | CU70: za | CV70: zo | CX70: ma | CY70: di | CZ70: wo | DA70: do | DB70: vr | DC70: za | DD70: zo
AD71: 0.04652777778 | AE71: 0.04722222222 | AF71: 35.0% | AG71: 35.0% | AH71: 35.0% | AI71: 35.0% | AJ71: 35.0% | AK71: 35.0% | AL71: 100.0% | BE71: =IF(COUNTA('toeslag berekening'!L57:R57)>=1,MAX($BE$21:BE70)+1,0) -> 0 | BF71: =MAX($BE$21:$BE71)+COUNTIF($BE$21:$BE71,0) -> 51 | CO71: 0.00% | CP71: =IF(OR($BC$15="",BH$15=0),0,(COUNTIFS(S_time,">="&$BB$15,S_time,"<"&$BC$15,S_ma,$CO71)/60)*BH$15) -> 0 | CQ71: =IF(OR($BC$15="",BI$15=0),0,(COUNTIFS(S_time,">="&$BB$15,S_time,"<"&$BC$15,S_di,$CO71)/60)*BI$15) -> 0 | CR71: =IF(OR($BC$15="",BJ$15=0),0,(COUNTIFS(S_time,">="&$BB$15,S_time,"<"&$BC$15,S_wo,$CO71)/60)*BJ$15) -> 0 | CS71: =IF(OR($BC$15="",BK$15=0),0,(COUNTIFS(S_time,">="&$BB$15,S_time,"<"&$BC$15,S_do,$CO71)/60)*BK$15) -> 0 | CT71: =IF(OR($BC$15="",BL$15=0),0,(COUNTIFS(S_time,">="&$BB$15,S_time,"<"&$BC$15,S_vr,$CO71)/60)*BL$15) -> 0 | CU71: =IF(OR($BC$15="",BM$15=0),0,(COUNTIFS(S_time,">="&$BB$15,S_time,"<"&$BC$15,S_za,$CO71)/60)*BM$15) -> 0 | CV71: =IF(OR($BC$15="",BN$15=0),0,(COUNTIFS(S_time,">="&$BB$15,S_time,"<"&$BC$15,S_zo,$CO71)/60)*BN$15) -> 0 | CX71: =IF(OR($BC$15="",BH$15=0),0,(COUNTIFS(V_time,">="&$BB$15,V_time,"<"&$BC$15,V_ma,$CO71)/60)*BH$15) -> 0 | CY71: =IF(OR($BC$15="",BI$15=0),0,(COUNTIFS(V_time,">="&$BB$15,V_time,"<"&$BC$15,V_di,$CO71)/60)*BI$15) -> 0 | CZ71: =IF(OR($BC$15="",BJ$15=0),0,(COUNTIFS(V_time,">="&$BB$15,V_time,"<"&$BC$15,V_wo,$CO71)/60)*BJ$15) -> 0 | DA71: =IF(OR($BC$15="",BK$15=0),0,(COUNTIFS(V_time,">="&$BB$15,V_time,"<"&$BC$15,V_do,$CO71)/60)*BK$15) -> 0 | DB71: =IF(OR($BC$15="",BL$15=0),0,(COUNTIFS(V_time,">="&$BB$15,V_time,"<"&$BC$15,V_vr,$CO71)/60)*BL$15) -> 0 | DC71: =IF(OR($BC$15="",BM$15=0),0,(COUNTIFS(V_time,">="&$BB$15,V_time,"<"&$BC$15,V_za,$CO71)/60)*BM$15) -> 0 | DD71: =IF(OR($BC$15="",BN$15=0),0,(COUNTIFS(V_time,">="&$BB$15,V_time,"<"&$BC$15,V_zo,$CO71)/60)*BN$15) -> 0
AD72: 0.04722222222 | AE72: 0.04791666667 | AF72: 35.0% | AG72: 35.0% | AH72: 35.0% | AI72: 35.0% | AJ72: 35.0% | AK72: 35.0% | AL72: 100.0% | BE72: =IF(COUNTA('toeslag berekening'!L58:R58)>=1,MAX($BE$21:BE71)+1,0) -> 0 | BF72: =MAX($BE$21:$BE72)+COUNTIF($BE$21:$BE72,0) -> 52 | CO72: 30.0% | CP72: 0 | CQ72: 0 | CR72: 0 | CS72: 0 | CT72: 0 | CU72: 0 | CV72: 0 | CX72: 0 | CY72: 0 | CZ72: 0 | DA72: 0 | DB72: 0 | DC72: 0 | DD72: 0
AD73: 0.04791666667 | AE73: 0.04861111111 | AF73: 35.0% | AG73: 35.0% | AH73: 35.0% | AI73: 35.0% | AJ73: 35.0% | AK73: 35.0% | AL73: 100.0% | CO73: 33.00% | CP73: 0 | CQ73: 0 | CR73: 0 | CS73: 0 | CT73: 0 | CU73: 0 | CV73: 0 | CX73: 0 | CY73: 0 | CZ73: 0 | DA73: 0 | DB73: 0 | DC73: 0 | DD73: 0
AD74: 0.04861111111 | AE74: 0.04930555556 | AF74: 35.0% | AG74: 35.0% | AH74: 35.0% | AI74: 35.0% | AJ74: 35.0% | AK74: 35.0% | AL74: 100.0% | CO74: 35.00% | CP74: 0 | CQ74: 0 | CR74: 0 | CS74: 0 | CT74: 0 | CU74: 0 | CV74: 0 | CX74: 0 | CY74: 0 | CZ74: 0 | DA74: 0 | DB74: 0 | DC74: 0 | DD74: 0
AD75: 0.04930555556 | AE75: 0.05 | AF75: 35.0% | AG75: 35.0% | AH75: 35.0% | AI75: 35.0% | AJ75: 35.0% | AK75: 35.0% | AL75: 100.0% | CO75: 50.0% | CP75: 0 | CQ75: 0 | CR75: 0 | CS75: 0 | CT75: 0 | CU75: 0 | CV75: 0 | CX75: 0 | CY75: 0 | CZ75: 0 | DA75: 0 | DB75: 0 | DC75: 0 | DD75: 0
AD76: 0.05 | AE76: 0.05069444444 | AF76: 35.0% | AG76: 35.0% | AH76: 35.0% | AI76: 35.0% | AJ76: 35.0% | AK76: 35.0% | AL76: 100.0% | CO76: 100.00% | CP76: 0 | CQ76: 0 | CR76: 0 | CS76: 0 | CT76: 0 | CU76: 0 | CV76: 0 | CX76: 0 | CY76: 0 | CZ76: 0 | DA76: 0 | DB76: 0 | DC76: 0 | DD76: 0
AD77: 0.05069444444 | AE77: 0.05138888889 | AF77: 35.0% | AG77: 35.0% | AH77: 35.0% | AI77: 35.0% | AJ77: 35.0% | AK77: 35.0% | AL77: 100.0%
AD78: 0.05138888889 | AE78: 0.05208333333 | AF78: 35.0% | AG78: 35.0% | AH78: 35.0% | AI78: 35.0% | AJ78: 35.0% | AK78: 35.0% | AL78: 100.0%
AD79: 0.05208333333 | AE79: 0.05277777778 | AF79: 35.0% | AG79: 35.0% | AH79: 35.0% | AI79: 35.0% | AJ79: 35.0% | AK79: 35.0% | AL79: 100.0% | CN79: =BB16 ->  | CO79: =BC16 ->  | CP79: ma | CQ79: di | CR79: wo | CS79: do | CT79: vr | CU79: za | CV79: zo | CX79: ma | CY79: di | CZ79: wo | DA79: do | DB79: vr | DC79: za | DD79: zo
AD80: 0.05277777778 | AE80: 0.05347222222 | AF80: 35.0% | AG80: 35.0% | AH80: 35.0% | AI80: 35.0% | AJ80: 35.0% | AK80: 35.0% | AL80: 100.0% | CO80: 0.00% | CP80: =IF(OR($BC$16="",BH$16=0),0,(COUNTIFS(S_time,">="&$BB$16,S_time,"<"&$BC$16,S_ma,$CO80)/60)*BH$16) -> 0 | CQ80: =IF(OR($BC$16="",BI$16=0),0,(COUNTIFS(S_time,">="&$BB$16,S_time,"<"&$BC$16,S_di,$CO80)/60)*BI$16) -> 0 | CR80: =IF(OR($BC$16="",BJ$16=0),0,(COUNTIFS(S_time,">="&$BB$16,S_time,"<"&$BC$16,S_wo,$CO80)/60)*BJ$16) -> 0 | CS80: =IF(OR($BC$16="",BK$16=0),0,(COUNTIFS(S_time,">="&$BB$16,S_time,"<"&$BC$16,S_do,$CO80)/60)*BK$16) -> 0 | CT80: =IF(OR($BC$16="",BL$16=0),0,(COUNTIFS(S_time,">="&$BB$16,S_time,"<"&$BC$16,S_vr,$CO80)/60)*BL$16) -> 0 | CU80: =IF(OR($BC$16="",BM$16=0),0,(COUNTIFS(S_time,">="&$BB$16,S_time,"<"&$BC$16,S_za,$CO80)/60)*BM$16) -> 0 | CV80: =IF(OR($BC$16="",BN$16=0),0,(COUNTIFS(S_time,">="&$BB$16,S_time,"<"&$BC$16,S_zo,$CO80)/60)*BN$16) -> 0 | CX80: =IF(OR($BC$16="",BH$16=0),0,(COUNTIFS(V_time,">="&$BB$16,V_time,"<"&$BC$16,V_ma,$CO80)/60)*BH$16) -> 0 | CY80: =IF(OR($BC$16="",BI$16=0),0,(COUNTIFS(V_time,">="&$BB$16,V_time,"<"&$BC$16,V_di,$CO80)/60)*BI$16) -> 0 | CZ80: =IF(OR($BC$16="",BJ$16=0),0,(COUNTIFS(V_time,">="&$BB$16,V_time,"<"&$BC$16,V_wo,$CO80)/60)*BJ$16) -> 0 | DA80: =IF(OR($BC$16="",BK$16=0),0,(COUNTIFS(V_time,">="&$BB$16,V_time,"<"&$BC$16,V_do,$CO80)/60)*BK$16) -> 0 | DB80: =IF(OR($BC$16="",BL$16=0),0,(COUNTIFS(V_time,">="&$BB$16,V_time,"<"&$BC$16,V_vr,$CO80)/60)*BL$16) -> 0 | DC80: =IF(OR($BC$16="",BM$16=0),0,(COUNTIFS(V_time,">="&$BB$16,V_time,"<"&$BC$16,V_za,$CO80)/60)*BM$16) -> 0 | DD80: =IF(OR($BC$16="",BN$16=0),0,(COUNTIFS(V_time,">="&$BB$16,V_time,"<"&$BC$16,V_zo,$CO80)/60)*BN$16) -> 0
AD81: 0.05347222222 | AE81: 0.05416666667 | AF81: 35.0% | AG81: 35.0% | AH81: 35.0% | AI81: 35.0% | AJ81: 35.0% | AK81: 35.0% | AL81: 100.0% | CO81: 30.0% | CP81: 0 | CQ81: 0 | CR81: 0 | CS81: 0 | CT81: 0 | CU81: 0 | CV81: 0 | CX81: 0 | CY81: 0 | CZ81: 0 | DA81: 0 | DB81: 0 | DC81: 0 | DD81: 0
AD82: 0.05416666667 | AE82: 0.05486111111 | AF82: 35.0% | AG82: 35.0% | AH82: 35.0% | AI82: 35.0% | AJ82: 35.0% | AK82: 35.0% | AL82: 100.0% | CO82: 33.00% | CP82: 0 | CQ82: 0 | CR82: 0 | CS82: 0 | CT82: 0 | CU82: 0 | CV82: 0 | CX82: 0 | CY82: 0 | CZ82: 0 | DA82: 0 | DB82: 0 | DC82: 0 | DD82: 0
AD83: 0.05486111111 | AE83: 0.05555555556 | AF83: 35.0% | AG83: 35.0% | AH83: 35.0% | AI83: 35.0% | AJ83: 35.0% | AK83: 35.0% | AL83: 100.0% | CO83: 35.00% | CP83: 0 | CQ83: 0 | CR83: 0 | CS83: 0 | CT83: 0 | CU83: 0 | CV83: 0 | CX83: 0 | CY83: 0 | CZ83: 0 | DA83: 0 | DB83: 0 | DC83: 0 | DD83: 0
AD84: 0.05555555556 | AE84: 0.05625 | AF84: 35.0% | AG84: 35.0% | AH84: 35.0% | AI84: 35.0% | AJ84: 35.0% | AK84: 35.0% | AL84: 100.0% | CO84: 50.0% | CP84: 0 | CQ84: 0 | CR84: 0 | CS84: 0 | CT84: 0 | CU84: 0 | CV84: 0 | CX84: 0 | CY84: 0 | CZ84: 0 | DA84: 0 | DB84: 0 | DC84: 0 | DD84: 0
AD85: 0.05625 | AE85: 0.05694444444 | AF85: 35.0% | AG85: 35.0% | AH85: 35.0% | AI85: 35.0% | AJ85: 35.0% | AK85: 35.0% | AL85: 100.0% | CO85: 100.00% | CP85: 0 | CQ85: 0 | CR85: 0 | CS85: 0 | CT85: 0 | CU85: 0 | CV85: 0 | CX85: 0 | CY85: 0 | CZ85: 0 | DA85: 0 | DB85: 0 | DC85: 0 | DD85: 0
AD86: 0.05694444444 | AE86: 0.05763888889 | AF86: 35.0% | AG86: 35.0% | AH86: 35.0% | AI86: 35.0% | AJ86: 35.0% | AK86: 35.0% | AL86: 100.0%
AD87: 0.05763888889 | AE87: 0.05833333333 | AF87: 35.0% | AG87: 35.0% | AH87: 35.0% | AI87: 35.0% | AJ87: 35.0% | AK87: 35.0% | AL87: 100.0%
AD88: 0.05833333333 | AE88: 0.05902777778 | AF88: 35.0% | AG88: 35.0% | AH88: 35.0% | AI88: 35.0% | AJ88: 35.0% | AK88: 35.0% | AL88: 100.0% | CN88: =BB17 ->  | CO88: =BC17 ->  | CP88: ma | CQ88: di | CR88: wo | CS88: do | CT88: vr | CU88: za | CV88: zo | CX88: ma | CY88: di | CZ88: wo | DA88: do | DB88: vr | DC88: za | DD88: zo
AD89: 0.05902777778 | AE89: 0.05972222222 | AF89: 35.0% | AG89: 35.0% | AH89: 35.0% | AI89: 35.0% | AJ89: 35.0% | AK89: 35.0% | AL89: 100.0% | CO89: 0.00% | CP89: =IF(OR($BC$17="",BH$17=0),0,(COUNTIFS(S_time,">="&$BB$17,S_time,"<"&$BC$17,S_ma,$CO89)/60)*BH$17) -> 0 | CQ89: =IF(OR($BC$17="",BI$17=0),0,(COUNTIFS(S_time,">="&$BB$17,S_time,"<"&$BC$17,S_di,$CO89)/60)*BI$17) -> 0 | CR89: =IF(OR($BC$17="",BJ$17=0),0,(COUNTIFS(S_time,">="&$BB$17,S_time,"<"&$BC$17,S_wo,$CO89)/60)*BJ$17) -> 0 | CS89: =IF(OR($BC$17="",BK$17=0),0,(COUNTIFS(S_time,">="&$BB$17,S_time,"<"&$BC$17,S_do,$CO89)/60)*BK$17) -> 0 | CT89: =IF(OR($BC$17="",BL$17=0),0,(COUNTIFS(S_time,">="&$BB$17,S_time,"<"&$BC$17,S_vr,$CO89)/60)*BL$17) -> 0 | CU89: =IF(OR($BC$17="",BM$17=0),0,(COUNTIFS(S_time,">="&$BB$17,S_time,"<"&$BC$17,S_za,$CO89)/60)*BM$17) -> 0 | CV89: =IF(OR($BC$17="",BN$17=0),0,(COUNTIFS(S_time,">="&$BB$17,S_time,"<"&$BC$17,S_zo,$CO89)/60)*BN$17) -> 0 | CX89: =IF(OR($BC$17="",BH$17=0),0,(COUNTIFS(V_time,">="&$BB$17,V_time,"<"&$BC$17,V_ma,$CO89)/60)*BH$17) -> 0 | CY89: =IF(OR($BC$17="",BI$17=0),0,(COUNTIFS(V_time,">="&$BB$17,V_time,"<"&$BC$17,V_di,$CO89)/60)*BI$17) -> 0 | CZ89: =IF(OR($BC$17="",BJ$17=0),0,(COUNTIFS(V_time,">="&$BB$17,V_time,"<"&$BC$17,V_wo,$CO89)/60)*BJ$17) -> 0 | DA89: =IF(OR($BC$17="",BK$17=0),0,(COUNTIFS(V_time,">="&$BB$17,V_time,"<"&$BC$17,V_do,$CO89)/60)*BK$17) -> 0 | DB89: =IF(OR($BC$17="",BL$17=0),0,(COUNTIFS(V_time,">="&$BB$17,V_time,"<"&$BC$17,V_vr,$CO89)/60)*BL$17) -> 0 | DC89: =IF(OR($BC$17="",BM$17=0),0,(COUNTIFS(V_time,">="&$BB$17,V_time,"<"&$BC$17,V_za,$CO89)/60)*BM$17) -> 0 | DD89: =IF(OR($BC$17="",BN$17=0),0,(COUNTIFS(V_time,">="&$BB$17,V_time,"<"&$BC$17,V_zo,$CO89)/60)*BN$17) -> 0
AD90: 0.05972222222 | AE90: 0.06041666667 | AF90: 35.0% | AG90: 35.0% | AH90: 35.0% | AI90: 35.0% | AJ90: 35.0% | AK90: 35.0% | AL90: 100.0% | CO90: 30.0% | CP90: 0 | CQ90: 0 | CR90: 0 | CS90: 0 | CT90: 0 | CU90: 0 | CV90: 0 | CX90: 0 | CY90: 0 | CZ90: 0 | DA90: 0 | DB90: 0 | DC90: 0 | DD90: 0
AD91: 0.06041666667 | AE91: 0.06111111111 | AF91: 35.0% | AG91: 35.0% | AH91: 35.0% | AI91: 35.0% | AJ91: 35.0% | AK91: 35.0% | AL91: 100.0% | CO91: 33.00% | CP91: 0 | CQ91: 0 | CR91: 0 | CS91: 0 | CT91: 0 | CU91: 0 | CV91: 0 | CX91: 0 | CY91: 0 | CZ91: 0 | DA91: 0 | DB91: 0 | DC91: 0 | DD91: 0
AD92: 0.06111111111 | AE92: 0.06180555556 | AF92: 35.0% | AG92: 35.0% | AH92: 35.0% | AI92: 35.0% | AJ92: 35.0% | AK92: 35.0% | AL92: 100.0% | CO92: 35.00% | CP92: 0 | CQ92: 0 | CR92: 0 | CS92: 0 | CT92: 0 | CU92: 0 | CV92: 0 | CX92: 0 | CY92: 0 | CZ92: 0 | DA92: 0 | DB92: 0 | DC92: 0 | DD92: 0
AD93: 0.06180555556 | AE93: 0.0625 | AF93: 35.0% | AG93: 35.0% | AH93: 35.0% | AI93: 35.0% | AJ93: 35.0% | AK93: 35.0% | AL93: 100.0% | CO93: 50.0% | CP93: 0 | CQ93: 0 | CR93: 0 | CS93: 0 | CT93: 0 | CU93: 0 | CV93: 0 | CX93: 0 | CY93: 0 | CZ93: 0 | DA93: 0 | DB93: 0 | DC93: 0 | DD93: 0
AD94: 0.0625 | AE94: 0.06319444444 | AF94: 35.0% | AG94: 35.0% | AH94: 35.0% | AI94: 35.0% | AJ94: 35.0% | AK94: 35.0% | AL94: 100.0% | CO94: 100.00% | CP94: 0 | CQ94: 0 | CR94: 0 | CS94: 0 | CT94: 0 | CU94: 0 | CV94: 0 | CX94: 0 | CY94: 0 | CZ94: 0 | DA94: 0 | DB94: 0 | DC94: 0 | DD94: 0
AD95: 0.06319444444 | AE95: 0.06388888889 | AF95: 35.0% | AG95: 35.0% | AH95: 35.0% | AI95: 35.0% | AJ95: 35.0% | AK95: 35.0% | AL95: 100.0%
AD96: 0.06388888889 | AE96: 0.06458333333 | AF96: 35.0% | AG96: 35.0% | AH96: 35.0% | AI96: 35.0% | AJ96: 35.0% | AK96: 35.0% | AL96: 100.0%
AD97: 0.06458333333 | AE97: 0.06527777778 | AF97: 35.0% | AG97: 35.0% | AH97: 35.0% | AI97: 35.0% | AJ97: 35.0% | AK97: 35.0% | AL97: 100.0%
AD98: 0.06527777778 | AE98: 0.06597222222 | AF98: 35.0% | AG98: 35.0% | AH98: 35.0% | AI98: 35.0% | AJ98: 35.0% | AK98: 35.0% | AL98: 100.0%
AD99: 0.06597222222 | AE99: 0.06666666667 | AF99: 35.0% | AG99: 35.0% | AH99: 35.0% | AI99: 35.0% | AJ99: 35.0% | AK99: 35.0% | AL99: 100.0%
AD100: 0.06666666667 | AE100: 0.06736111111 | AF100: 35.0% | AG100: 35.0% | AH100: 35.0% | AI100: 35.0% | AJ100: 35.0% | AK100: 35.0% | AL100: 100.0%
AD101: 0.06736111111 | AE101: 0.06805555556 | AF101: 35.0% | AG101: 35.0% | AH101: 35.0% | AI101: 35.0% | AJ101: 35.0% | AK101: 35.0% | AL101: 100.0%
AD102: 0.06805555556 | AE102: 0.06875 | AF102: 35.0% | AG102: 35.0% | AH102: 35.0% | AI102: 35.0% | AJ102: 35.0% | AK102: 35.0% | AL102: 100.0%
AD103: 0.06875 | AE103: 0.06944444444 | AF103: 35.0% | AG103: 35.0% | AH103: 35.0% | AI103: 35.0% | AJ103: 35.0% | AK103: 35.0% | AL103: 100.0%
AD104: 0.06944444444 | AE104: 0.07013888889 | AF104: 35.0% | AG104: 35.0% | AH104: 35.0% | AI104: 35.0% | AJ104: 35.0% | AK104: 35.0% | AL104: 100.0%
AD105: 0.07013888889 | AE105: 0.07083333333 | AF105: 35.0% | AG105: 35.0% | AH105: 35.0% | AI105: 35.0% | AJ105: 35.0% | AK105: 35.0% | AL105: 100.0%
AD106: 0.07083333333 | AE106: 0.07152777778 | AF106: 35.0% | AG106: 35.0% | AH106: 35.0% | AI106: 35.0% | AJ106: 35.0% | AK106: 35.0% | AL106: 100.0%
AD107: 0.07152777778 | AE107: 0.07222222222 | AF107: 35.0% | AG107: 35.0% | AH107: 35.0% | AI107: 35.0% | AJ107: 35.0% | AK107: 35.0% | AL107: 100.0%
AD108: 0.07222222222 | AE108: 0.07291666667 | AF108: 35.0% | AG108: 35.0% | AH108: 35.0% | AI108: 35.0% | AJ108: 35.0% | AK108: 35.0% | AL108: 100.0%
AD109: 0.07291666667 | AE109: 0.07361111111 | AF109: 35.0% | AG109: 35.0% | AH109: 35.0% | AI109: 35.0% | AJ109: 35.0% | AK109: 35.0% | AL109: 100.0%
AD110: 0.07361111111 | AE110: 0.07430555556 | AF110: 35.0% | AG110: 35.0% | AH110: 35.0% | AI110: 35.0% | AJ110: 35.0% | AK110: 35.0% | AL110: 100.0%
AD111: 0.07430555556 | AE111: 0.075 | AF111: 35.0% | AG111: 35.0% | AH111: 35.0% | AI111: 35.0% | AJ111: 35.0% | AK111: 35.0% | AL111: 100.0%
AD112: 0.075 | AE112: 0.07569444444 | AF112: 35.0% | AG112: 35.0% | AH112: 35.0% | AI112: 35.0% | AJ112: 35.0% | AK112: 35.0% | AL112: 100.0%
AD113: 0.07569444444 | AE113: 0.07638888889 | AF113: 35.0% | AG113: 35.0% | AH113: 35.0% | AI113: 35.0% | AJ113: 35.0% | AK113: 35.0% | AL113: 100.0%
AD114: 0.07638888889 | AE114: 0.07708333333 | AF114: 35.0% | AG114: 35.0% | AH114: 35.0% | AI114: 35.0% | AJ114: 35.0% | AK114: 35.0% | AL114: 100.0%
AD115: 0.07708333333 | AE115: 0.07777777778 | AF115: 35.0% | AG115: 35.0% | AH115: 35.0% | AI115: 35.0% | AJ115: 35.0% | AK115: 35.0% | AL115: 100.0%
AD116: 0.07777777778 | AE116: 0.07847222222 | AF116: 35.0% | AG116: 35.0% | AH116: 35.0% | AI116: 35.0% | AJ116: 35.0% | AK116: 35.0% | AL116: 100.0%
AD117: 0.07847222222 | AE117: 0.07916666667 | AF117: 35.0% | AG117: 35.0% | AH117: 35.0% | AI117: 35.0% | AJ117: 35.0% | AK117: 35.0% | AL117: 100.0%
AD118: 0.07916666667 | AE118: 0.07986111111 | AF118: 35.0% | AG118: 35.0% | AH118: 35.0% | AI118: 35.0% | AJ118: 35.0% | AK118: 35.0% | AL118: 100.0%
AD119: 0.07986111111 | AE119: 0.08055555556 | AF119: 35.0% | AG119: 35.0% | AH119: 35.0% | AI119: 35.0% | AJ119: 35.0% | AK119: 35.0% | AL119: 100.0%
AD120: 0.08055555556 | AE120: 0.08125 | AF120: 35.0% | AG120: 35.0% | AH120: 35.0% | AI120: 35.0% | AJ120: 35.0% | AK120: 35.0% | AL120: 100.0%
AD121: 0.08125 | AE121: 0.08194444444 | AF121: 35.0% | AG121: 35.0% | AH121: 35.0% | AI121: 35.0% | AJ121: 35.0% | AK121: 35.0% | AL121: 100.0%
AD122: 0.08194444444 | AE122: 0.08263888889 | AF122: 35.0% | AG122: 35.0% | AH122: 35.0% | AI122: 35.0% | AJ122: 35.0% | AK122: 35.0% | AL122: 100.0%
AD123: 0.08263888889 | AE123: 0.08333333333 | AF123: 35.0% | AG123: 35.0% | AH123: 35.0% | AI123: 35.0% | AJ123: 35.0% | AK123: 35.0% | AL123: 100.0%
AD124: 0.08333333333 | AE124: 0.08402777778 | AF124: 35.0% | AG124: 35.0% | AH124: 35.0% | AI124: 35.0% | AJ124: 35.0% | AK124: 35.0% | AL124: 100.0%
AD125: 0.08402777778 | AE125: 0.08472222222 | AF125: 35.0% | AG125: 35.0% | AH125: 35.0% | AI125: 35.0% | AJ125: 35.0% | AK125: 35.0% | AL125: 100.0%
AD126: 0.08472222222 | AE126: 0.08541666667 | AF126: 35.0% | AG126: 35.0% | AH126: 35.0% | AI126: 35.0% | AJ126: 35.0% | AK126: 35.0% | AL126: 100.0%
AD127: 0.08541666667 | AE127: 0.08611111111 | AF127: 35.0% | AG127: 35.0% | AH127: 35.0% | AI127: 35.0% | AJ127: 35.0% | AK127: 35.0% | AL127: 100.0%
AD128: 0.08611111111 | AE128: 0.08680555556 | AF128: 35.0% | AG128: 35.0% | AH128: 35.0% | AI128: 35.0% | AJ128: 35.0% | AK128: 35.0% | AL128: 100.0%
AD129: 0.08680555556 | AE129: 0.0875 | AF129: 35.0% | AG129: 35.0% | AH129: 35.0% | AI129: 35.0% | AJ129: 35.0% | AK129: 35.0% | AL129: 100.0%
AD130: 0.0875 | AE130: 0.08819444444 | AF130: 35.0% | AG130: 35.0% | AH130: 35.0% | AI130: 35.0% | AJ130: 35.0% | AK130: 35.0% | AL130: 100.0%
AD131: 0.08819444444 | AE131: 0.08888888889 | AF131: 35.0% | AG131: 35.0% | AH131: 35.0% | AI131: 35.0% | AJ131: 35.0% | AK131: 35.0% | AL131: 100.0%
AD132: 0.08888888889 | AE132: 0.08958333333 | AF132: =IF($AQ$9=1,IFERROR(VLOOKUP($AD132,CorS_matrix,AF$3,FALSE),AF131),IFERROR(VLOOKUP($AD132,S_matrix,AF$3,FALSE),AF131)) -> 35.0% | AG132: =IF($AQ$9=1,IFERROR(VLOOKUP($AD132,CorS_matrix,AG$3,FALSE),AG131),IFERROR(VLOOKUP($AD132,S_matrix,AG$3,FALSE),AG131)) -> 35.0% | AH132: =IF($AQ$9=1,IFERROR(VLOOKUP($AD132,CorS_matrix,AH$3,FALSE),AH131),IFERROR(VLOOKUP($AD132,S_matrix,AH$3,FALSE),AH131)) -> 35.0% | AI132: =IF($AQ$9=1,IFERROR(VLOOKUP($AD132,CorS_matrix,AI$3,FALSE),AI131),IFERROR(VLOOKUP($AD132,S_matrix,AI$3,FALSE),AI131)) -> 35.0% | AJ132: =IF($AQ$9=1,IFERROR(VLOOKUP($AD132,CorS_matrix,AJ$3,FALSE),AJ131),IFERROR(VLOOKUP($AD132,S_matrix,AJ$3,FALSE),AJ131)) -> 35.0% | AK132: =IF($AQ$9=1,IFERROR(VLOOKUP($AD132,CorS_matrix,AK$3,FALSE),AK131),IFERROR(VLOOKUP($AD132,S_matrix,AK$3,FALSE),AK131)) -> 35.0% | AL132: =IF($AQ$9=1,IFERROR(VLOOKUP($AD132,CorS_matrix,AL$3,FALSE),AL131),IFERROR(VLOOKUP($AD132,S_matrix,AL$3,FALSE),AL131)) -> 100.0%
AD133: 0.08958333333 | AE133: 0.09027777778 | AF133: 35.0% | AG133: 35.0% | AH133: 35.0% | AI133: 35.0% | AJ133: 35.0% | AK133: 35.0% | AL133: 100.0%
AD134: 0.09027777778 | AE134: 0.09097222222 | AF134: 35.0% | AG134: 35.0% | AH134: 35.0% | AI134: 35.0% | AJ134: 35.0% | AK134: 35.0% | AL134: 100.0%
AD135: 0.09097222222 | AE135: 0.09166666667 | AF135: 35.0% | AG135: 35.0% | AH135: 35.0% | AI135: 35.0% | AJ135: 35.0% | AK135: 35.0% | AL135: 100.0%
AD136: 0.09166666667 | AE136: 0.09236111111 | AF136: 35.0% | AG136: 35.0% | AH136: 35.0% | AI136: 35.0% | AJ136: 35.0% | AK136: 35.0% | AL136: 100.0%
AD137: 0.09236111111 | AE137: 0.09305555556 | AF137: 35.0% | AG137: 35.0% | AH137: 35.0% | AI137: 35.0% | AJ137: 35.0% | AK137: 35.0% | AL137: 100.0%
AD138: 0.09305555556 | AE138: 0.09375 | AF138: 35.0% | AG138: 35.0% | AH138: 35.0% | AI138: 35.0% | AJ138: 35.0% | AK138: 35.0% | AL138: 100.0%
AD139: 0.09375 | AE139: 0.09444444444 | AF139: 35.0% | AG139: 35.0% | AH139: 35.0% | AI139: 35.0% | AJ139: 35.0% | AK139: 35.0% | AL139: 100.0%
AD140: 0.09444444444 | AE140: 0.09513888889 | AF140: 35.0% | AG140: 35.0% | AH140: 35.0% | AI140: 35.0% | AJ140: 35.0% | AK140: 35.0% | AL140: 100.0%
AD141: 0.09513888889 | AE141: 0.09583333333 | AF141: 35.0% | AG141: 35.0% | AH141: 35.0% | AI141: 35.0% | AJ141: 35.0% | AK141: 35.0% | AL141: 100.0%
AD142: 0.09583333333 | AE142: 0.09652777778 | AF142: 35.0% | AG142: 35.0% | AH142: 35.0% | AI142: 35.0% | AJ142: 35.0% | AK142: 35.0% | AL142: 100.0%
AD143: 0.09652777778 | AE143: 0.09722222222 | AF143: 35.0% | AG143: 35.0% | AH143: 35.0% | AI143: 35.0% | AJ143: 35.0% | AK143: 35.0% | AL143: 100.0%
AD144: 0.09722222222 | AE144: 0.09791666667 | AF144: 35.0% | AG144: 35.0% | AH144: 35.0% | AI144: 35.0% | AJ144: 35.0% | AK144: 35.0% | AL144: 100.0%
AD145: 0.09791666667 | AE145: 0.09861111111 | AF145: 35.0% | AG145: 35.0% | AH145: 35.0% | AI145: 35.0% | AJ145: 35.0% | AK145: 35.0% | AL145: 100.0%
AD146: 0.09861111111 | AE146: 0.09930555556 | AF146: 35.0% | AG146: 35.0% | AH146: 35.0% | AI146: 35.0% | AJ146: 35.0% | AK146: 35.0% | AL146: 100.0%
AD147: 0.09930555556 | AE147: 0.1 | AF147: 35.0% | AG147: 35.0% | AH147: 35.0% | AI147: 35.0% | AJ147: 35.0% | AK147: 35.0% | AL147: 100.0%
AD148: 0.1 | AE148: 0.1006944444 | AF148: 35.0% | AG148: 35.0% | AH148: 35.0% | AI148: 35.0% | AJ148: 35.0% | AK148: 35.0% | AL148: 100.0%
AD149: 0.1006944444 | AE149: 0.1013888889 | AF149: 35.0% | AG149: 35.0% | AH149: 35.0% | AI149: 35.0% | AJ149: 35.0% | AK149: 35.0% | AL149: 100.0%
AD150: 0.1013888889 | AE150: 0.1020833333 | AF150: 35.0% | AG150: 35.0% | AH150: 35.0% | AI150: 35.0% | AJ150: 35.0% | AK150: 35.0% | AL150: 100.0%
AD151: 0.1020833333 | AE151: 0.1027777778 | AF151: 35.0% | AG151: 35.0% | AH151: 35.0% | AI151: 35.0% | AJ151: 35.0% | AK151: 35.0% | AL151: 100.0%
AD152: 0.1027777778 | AE152: 0.1034722222 | AF152: 35.0% | AG152: 35.0% | AH152: 35.0% | AI152: 35.0% | AJ152: 35.0% | AK152: 35.0% | AL152: 100.0%
AD153: 0.1034722222 | AE153: 0.1041666667 | AF153: 35.0% | AG153: 35.0% | AH153: 35.0% | AI153: 35.0% | AJ153: 35.0% | AK153: 35.0% | AL153: 100.0%
AD154: 0.1041666667 | AE154: 0.1048611111 | AF154: 35.0% | AG154: 35.0% | AH154: 35.0% | AI154: 35.0% | AJ154: 35.0% | AK154: 35.0% | AL154: 100.0%
AD155: 0.1048611111 | AE155: 0.1055555556 | AF155: 35.0% | AG155: 35.0% | AH155: 35.0% | AI155: 35.0% | AJ155: 35.0% | AK155: 35.0% | AL155: 100.0%
AD156: 0.1055555556 | AE156: 0.10625 | AF156: 35.0% | AG156: 35.0% | AH156: 35.0% | AI156: 35.0% | AJ156: 35.0% | AK156: 35.0% | AL156: 100.0%
AD157: 0.10625 | AE157: 0.1069444444 | AF157: 35.0% | AG157: 35.0% | AH157: 35.0% | AI157: 35.0% | AJ157: 35.0% | AK157: 35.0% | AL157: 100.0%
AD158: 0.1069444444 | AE158: 0.1076388889 | AF158: 35.0% | AG158: 35.0% | AH158: 35.0% | AI158: 35.0% | AJ158: 35.0% | AK158: 35.0% | AL158: 100.0%
AD159: 0.1076388889 | AE159: 0.1083333333 | AF159: 35.0% | AG159: 35.0% | AH159: 35.0% | AI159: 35.0% | AJ159: 35.0% | AK159: 35.0% | AL159: 100.0%
AD160: 0.1083333333 | AE160: 0.1090277778 | AF160: 35.0% | AG160: 35.0% | AH160: 35.0% | AI160: 35.0% | AJ160: 35.0% | AK160: 35.0% | AL160: 100.0%
AD161: 0.1090277778 | AE161: 0.1097222222 | AF161: 35.0% | AG161: 35.0% | AH161: 35.0% | AI161: 35.0% | AJ161: 35.0% | AK161: 35.0% | AL161: 100.0%
AD162: 0.1097222222 | AE162: 0.1104166667 | AF162: 35.0% | AG162: 35.0% | AH162: 35.0% | AI162: 35.0% | AJ162: 35.0% | AK162: 35.0% | AL162: 100.0%
AD163: 0.1104166667 | AE163: 0.1111111111 | AF163: 35.0% | AG163: 35.0% | AH163: 35.0% | AI163: 35.0% | AJ163: 35.0% | AK163: 35.0% | AL163: 100.0%
AD164: 0.1111111111 | AE164: 0.1118055556 | AF164: 35.0% | AG164: 35.0% | AH164: 35.0% | AI164: 35.0% | AJ164: 35.0% | AK164: 35.0% | AL164: 100.0%
AD165: 0.1118055556 | AE165: 0.1125 | AF165: 35.0% | AG165: 35.0% | AH165: 35.0% | AI165: 35.0% | AJ165: 35.0% | AK165: 35.0% | AL165: 100.0%
AD166: 0.1125 | AE166: 0.1131944444 | AF166: 35.0% | AG166: 35.0% | AH166: 35.0% | AI166: 35.0% | AJ166: 35.0% | AK166: 35.0% | AL166: 100.0%
AD167: 0.1131944444 | AE167: 0.1138888889 | AF167: 35.0% | AG167: 35.0% | AH167: 35.0% | AI167: 35.0% | AJ167: 35.0% | AK167: 35.0% | AL167: 100.0%
AD168: 0.1138888889 | AE168: 0.1145833333 | AF168: 35.0% | AG168: 35.0% | AH168: 35.0% | AI168: 35.0% | AJ168: 35.0% | AK168: 35.0% | AL168: 100.0%
AD169: 0.1145833333 | AE169: 0.1152777778 | AF169: 35.0% | AG169: 35.0% | AH169: 35.0% | AI169: 35.0% | AJ169: 35.0% | AK169: 35.0% | AL169: 100.0%
AD170: 0.1152777778 | AE170: 0.1159722222 | AF170: 35.0% | AG170: 35.0% | AH170: 35.0% | AI170: 35.0% | AJ170: 35.0% | AK170: 35.0% | AL170: 100.0%
AD171: 0.1159722222 | AE171: 0.1166666667 | AF171: 35.0% | AG171: 35.0% | AH171: 35.0% | AI171: 35.0% | AJ171: 35.0% | AK171: 35.0% | AL171: 100.0%
AD172: 0.1166666667 | AE172: 0.1173611111 | AF172: 35.0% | AG172: 35.0% | AH172: 35.0% | AI172: 35.0% | AJ172: 35.0% | AK172: 35.0% | AL172: 100.0%
AD173: 0.1173611111 | AE173: 0.1180555556 | AF173: 35.0% | AG173: 35.0% | AH173: 35.0% | AI173: 35.0% | AJ173: 35.0% | AK173: 35.0% | AL173: 100.0%
AD174: 0.1180555556 | AE174: 0.11875 | AF174: 35.0% | AG174: 35.0% | AH174: 35.0% | AI174: 35.0% | AJ174: 35.0% | AK174: 35.0% | AL174: 100.0%
AD175: 0.11875 | AE175: 0.1194444444 | AF175: 35.0% | AG175: 35.0% | AH175: 35.0% | AI175: 35.0% | AJ175: 35.0% | AK175: 35.0% | AL175: 100.0%
AD176: 0.1194444444 | AE176: 0.1201388889 | AF176: 35.0% | AG176: 35.0% | AH176: 35.0% | AI176: 35.0% | AJ176: 35.0% | AK176: 35.0% | AL176: 100.0%
AD177: 0.1201388889 | AE177: 0.1208333333 | AF177: 35.0% | AG177: 35.0% | AH177: 35.0% | AI177: 35.0% | AJ177: 35.0% | AK177: 35.0% | AL177: 100.0%
AD178: 0.1208333333 | AE178: 0.1215277778 | AF178: 35.0% | AG178: 35.0% | AH178: 35.0% | AI178: 35.0% | AJ178: 35.0% | AK178: 35.0% | AL178: 100.0%
AD179: 0.1215277778 | AE179: 0.1222222222 | AF179: 35.0% | AG179: 35.0% | AH179: 35.0% | AI179: 35.0% | AJ179: 35.0% | AK179: 35.0% | AL179: 100.0%
AD180: 0.1222222222 | AE180: 0.1229166667 | AF180: 35.0% | AG180: 35.0% | AH180: 35.0% | AI180: 35.0% | AJ180: 35.0% | AK180: 35.0% | AL180: 100.0%
AD181: 0.1229166667 | AE181: 0.1236111111 | AF181: 35.0% | AG181: 35.0% | AH181: 35.0% | AI181: 35.0% | AJ181: 35.0% | AK181: 35.0% | AL181: 100.0%
AD182: 0.1236111111 | AE182: 0.1243055556 | AF182: 35.0% | AG182: 35.0% | AH182: 35.0% | AI182: 35.0% | AJ182: 35.0% | AK182: 35.0% | AL182: 100.0%
AD183: 0.1243055556 | AE183: 0.125 | AF183: 35.0% | AG183: 35.0% | AH183: 35.0% | AI183: 35.0% | AJ183: 35.0% | AK183: 35.0% | AL183: 100.0%
AD184: 0.125 | AE184: 0.1256944444 | AF184: 35.0% | AG184: 35.0% | AH184: 35.0% | AI184: 35.0% | AJ184: 35.0% | AK184: 35.0% | AL184: 100.0%
AD185: 0.1256944444 | AE185: 0.1263888889 | AF185: 35.0% | AG185: 35.0% | AH185: 35.0% | AI185: 35.0% | AJ185: 35.0% | AK185: 35.0% | AL185: 100.0%
AD186: 0.1263888889 | AE186: 0.1270833333 | AF186: 35.0% | AG186: 35.0% | AH186: 35.0% | AI186: 35.0% | AJ186: 35.0% | AK186: 35.0% | AL186: 100.0%
AD187: 0.1270833333 | AE187: 0.1277777778 | AF187: 35.0% | AG187: 35.0% | AH187: 35.0% | AI187: 35.0% | AJ187: 35.0% | AK187: 35.0% | AL187: 100.0%
AD188: 0.1277777778 | AE188: 0.1284722222 | AF188: 35.0% | AG188: 35.0% | AH188: 35.0% | AI188: 35.0% | AJ188: 35.0% | AK188: 35.0% | AL188: 100.0%
AD189: 0.1284722222 | AE189: 0.1291666667 | AF189: 35.0% | AG189: 35.0% | AH189: 35.0% | AI189: 35.0% | AJ189: 35.0% | AK189: 35.0% | AL189: 100.0%
AD190: 0.1291666667 | AE190: 0.1298611111 | AF190: 35.0% | AG190: 35.0% | AH190: 35.0% | AI190: 35.0% | AJ190: 35.0% | AK190: 35.0% | AL190: 100.0%
AD191: 0.1298611111 | AE191: 0.1305555556 | AF191: 35.0% | AG191: 35.0% | AH191: 35.0% | AI191: 35.0% | AJ191: 35.0% | AK191: 35.0% | AL191: 100.0%
AD192: 0.1305555556 | AE192: 0.13125 | AF192: 35.0% | AG192: 35.0% | AH192: 35.0% | AI192: 35.0% | AJ192: 35.0% | AK192: 35.0% | AL192: 100.0%
AD193: 0.13125 | AE193: 0.1319444444 | AF193: 35.0% | AG193: 35.0% | AH193: 35.0% | AI193: 35.0% | AJ193: 35.0% | AK193: 35.0% | AL193: 100.0%
AD194: 0.1319444444 | AE194: 0.1326388889 | AF194: 35.0% | AG194: 35.0% | AH194: 35.0% | AI194: 35.0% | AJ194: 35.0% | AK194: 35.0% | AL194: 100.0%
AD195: 0.1326388889 | AE195: 0.1333333333 | AF195: 35.0% | AG195: 35.0% | AH195: 35.0% | AI195: 35.0% | AJ195: 35.0% | AK195: 35.0% | AL195: 100.0%
AD196: 0.1333333333 | AE196: 0.1340277778 | AF196: =IF($AQ$9=1,IFERROR(VLOOKUP($AD196,CorS_matrix,AF$3,FALSE),AF195),IFERROR(VLOOKUP($AD196,S_matrix,AF$3,FALSE),AF195)) -> 35.0% | AG196: =IF($AQ$9=1,IFERROR(VLOOKUP($AD196,CorS_matrix,AG$3,FALSE),AG195),IFERROR(VLOOKUP($AD196,S_matrix,AG$3,FALSE),AG195)) -> 35.0% | AH196: =IF($AQ$9=1,IFERROR(VLOOKUP($AD196,CorS_matrix,AH$3,FALSE),AH195),IFERROR(VLOOKUP($AD196,S_matrix,AH$3,FALSE),AH195)) -> 35.0% | AI196: =IF($AQ$9=1,IFERROR(VLOOKUP($AD196,CorS_matrix,AI$3,FALSE),AI195),IFERROR(VLOOKUP($AD196,S_matrix,AI$3,FALSE),AI195)) -> 35.0% | AJ196: =IF($AQ$9=1,IFERROR(VLOOKUP($AD196,CorS_matrix,AJ$3,FALSE),AJ195),IFERROR(VLOOKUP($AD196,S_matrix,AJ$3,FALSE),AJ195)) -> 35.0% | AK196: =IF($AQ$9=1,IFERROR(VLOOKUP($AD196,CorS_matrix,AK$3,FALSE),AK195),IFERROR(VLOOKUP($AD196,S_matrix,AK$3,FALSE),AK195)) -> 35.0% | AL196: =IF($AQ$9=1,IFERROR(VLOOKUP($AD196,CorS_matrix,AL$3,FALSE),AL195),IFERROR(VLOOKUP($AD196,S_matrix,AL$3,FALSE),AL195)) -> 100.0%
AD197: 0.1340277778 | AE197: 0.1347222222 | AF197: 35.0% | AG197: 35.0% | AH197: 35.0% | AI197: 35.0% | AJ197: 35.0% | AK197: 35.0% | AL197: 100.0%
AD198: 0.1347222222 | AE198: 0.1354166667 | AF198: 35.0% | AG198: 35.0% | AH198: 35.0% | AI198: 35.0% | AJ198: 35.0% | AK198: 35.0% | AL198: 100.0%
AD199: 0.1354166667 | AE199: 0.1361111111 | AF199: 35.0% | AG199: 35.0% | AH199: 35.0% | AI199: 35.0% | AJ199: 35.0% | AK199: 35.0% | AL199: 100.0%
AD200: 0.1361111111 | AE200: 0.1368055556 | AF200: 35.0% | AG200: 35.0% | AH200: 35.0% | AI200: 35.0% | AJ200: 35.0% | AK200: 35.0% | AL200: 100.0%
AD201: 0.1368055556 | AE201: 0.1375 | AF201: 35.0% | AG201: 35.0% | AH201: 35.0% | AI201: 35.0% | AJ201: 35.0% | AK201: 35.0% | AL201: 100.0%
... 1722 more rows

Sheet variant (hidden)
B2: Toeslagpercentages over basisuurloon | AE2: =IF(Standaard!AQ9=2,2,0) -> 0 | AF2: =SUM(AF4:AF1443)/60 -> 408.0% | AG2: =SUM(AG4:AG1443)/60 -> 408% | AH2: 408% | AI2: 408% | AJ2: 408% | AK2: 780% | AL2: 1200% | AM2: =SUM(AF2:AL2) -> 4020.000%
B3: van | C3: tot | D3: Ma | E3: Di | F3: Wo | G3: Do | H3: Vr | I3: Za | J3: Zo | L3: Uitgangspunten berekening toeslagen: | AD3: start | AE3: eind | AF3: 3 | AG3: =+AF3+1 -> 4 | AH3: =+AG3+1 -> 5 | AI3: 6 | AJ3: 7 | AK3: 8 | AL3: 9
B4: 23:00:00 | C4: 00:00:00 | D4: =$D$31 -> 33.00% | E4: 33.00% | F4: 33.00% | G4: 33.00% | H4: 33.00% | I4: =$D$32 -> 35.00% | J4: =$D$35 -> 50.00% | K4: =-#REF! ->  | L4: Gemiddeld jaar | P4: 365.00 | Q4: dagen per jaar | AD4: 0 | AE4: 0.0006944444444 | AF4: =IF($AE$2=2,IFERROR(VLOOKUP($AD4,CorSN_matrix,AF$3,FALSE),AF3),IFERROR(VLOOKUP($AD4,V_matrix,AF$3,FALSE),AF3)) -> 35% | AG4: =IF($AE$2=2,IFERROR(VLOOKUP($AD4,CorSN_matrix,AG$3,FALSE),AG3),IFERROR(VLOOKUP($AD4,V_matrix,AG$3,FALSE),AG3)) -> 35% | AH4: =IF($AE$2=2,IFERROR(VLOOKUP($AD4,CorSN_matrix,AH$3,FALSE),AH3),IFERROR(VLOOKUP($AD4,V_matrix,AH$3,FALSE),AH3)) -> 35% | AI4: =IF($AE$2=2,IFERROR(VLOOKUP($AD4,CorSN_matrix,AI$3,FALSE),AI3),IFERROR(VLOOKUP($AD4,V_matrix,AI$3,FALSE),AI3)) -> 35% | AJ4: =IF($AE$2=2,IFERROR(VLOOKUP($AD4,CorSN_matrix,AJ$3,FALSE),AJ3),IFERROR(VLOOKUP($AD4,V_matrix,AJ$3,FALSE),AJ3)) -> 35% | AK4: =IF($AE$2=2,IFERROR(VLOOKUP($AD4,CorSN_matrix,AK$3,FALSE),AK3),IFERROR(VLOOKUP($AD4,V_matrix,AK$3,FALSE),AK3)) -> 35% | AL4: =IF($AE$2=2,IFERROR(VLOOKUP($AD4,CorSN_matrix,AL$3,FALSE),AL3),IFERROR(VLOOKUP($AD4,V_matrix,AL$3,FALSE),AL3)) -> 50% | AM4: ja | AN4: =IF(AND(P10>0,P19>0),0,IF(AND(P10>0,P19=0),P10,IF(AND(P10=0,P19>0),P19,0))) -> 0
B5: 22:00:00 | C5: 23:00:00 | D5: 33.00% | E5: 33.00% | F5: 33.00% | G5: 33.00% | H5: 33.00% | I5: 35.00% | J5: =$D$35 -> 50.00% | P5: 52.00 | Q5: weken per jaar | AD5: 0.0006944444444 | AE5: 0.001388888889 | AF5: 35% | AG5: 35% | AH5: 35% | AI5: 35% | AJ5: 35% | AK5: 35% | AL5: 50% | AM5: nee | AN5: v
B6: 21:00:00 | C6: 22:00:00 | D6: 33.00% | E6: 33.00% | F6: 33.00% | G6: 33.00% | H6: 33.00% | I6: 35.00% | J6: 50.00% | P6: =P5/12 -> 4.33 | Q6: weken per maand | AD6: 0.001388888889 | AE6: 0.002083333333 | AF6: 35% | AG6: 35% | AH6: 35% | AI6: 35% | AJ6: 35% | AK6: 35% | AL6: 50%
B7: 20:00:00 | C7: 21:00:00 | D7: 33.00% | E7: 33.00% | F7: 33.00% | G7: 33.00% | H7: 33.00% | I7: 35.00% | J7: 50.00% | AD7: 0.002083333333 | AE7: 0.002777777778 | AF7: 35% | AG7: 35% | AH7: 35% | AI7: 35% | AJ7: 35% | AK7: 35% | AL7: 50%
B8: 19:00:00 | C8: 20:00:00 | D8: 33.00% | E8: 33.00% | F8: 33.00% | G8: 33.00% | H8: 33.00% | I8: 35.00% | J8: 50.00% | L8: Bruto voltijdnorm | P8: =contract -> 40.00 | Q8: uren per week | AD8: 0.002777777778 | AE8: 0.003472222222 | AF8: 35% | AG8: 35% | AH8: 35% | AI8: 35% | AJ8: 35% | AK8: 35% | AL8: 50%
B9: 18:00:00 | C9: 19:00:00 | D9: =$D$31 -> 33.00% | E9: 33.00% | F9: 33.00% | G9: 33.00% | H9: 33.00% | I9: 35.00% | J9: 50.00% | L9: Bruto voltijd uren | P9: =contract*wknjaar -> 2087.14 | Q9: uren per jaar | AD9: 0.003472222222 | AE9: 0.004166666667 | AF9: 35% | AG9: 35% | AH9: 35% | AI9: 35% | AJ9: 35% | AK9: 35% | AL9: 50%
B10: 17:00:00 | C10: 18:00:00 | D10: =$D$30 -> 0.00% | E10: 0.00% | F10: 0.00% | G10: 0.00% | H10: 0.00% | I10: =$D$34 -> 30.00% | J10: 50.00% | L10: Bruto ADV | P10: =IF(OR(M19>0,,M10=0),0,IF(AND(M19=0,M10>0),(P9*$M$10),0)) -> 0.00 | AD10: 0.004166666667 | AE10: 0.004861111111 | AF10: 35% | AG10: 35% | AH10: 35% | AI10: 35% | AJ10: 35% | AK10: 35% | AL10: 50%
B11: 16:00:00 | C11: 17:00:00 | D11: 0.00% | E11: 0.00% | F11: 0.00% | G11: 0.00% | H11: 0.00% | I11: 30.00% | J11: 50.00% | L11: Arbeidsduur na (bruto ADV) | P11: =(P9-P10)/wknjaar -> 40.00 | Q11: uur per week | AD11: 0.004861111111 | AE11: 0.005555555556 | AF11: 35% | AG11: 35% | AH11: 35% | AI11: 35% | AJ11: 35% | AK11: 35% | AL11: 50%
B12: 15:00:00 | C12: 16:00:00 | D12: 0.00% | E12: 0.00% | F12: 0.00% | G12: 0.00% | H12: 0.00% | I12: 30.00% | J12: 50.00% | P12: =P9/12 -> 173.93 | Q12: uren per maand | AD12: 0.005555555556 | AE12: 0.00625 | AF12: 35% | AG12: 35% | AH12: 35% | AI12: 35% | AJ12: 35% | AK12: 35% | AL12: 50%
B13: 14:00:00 | C13: 15:00:00 | D13: 0.00% | E13: 0.00% | F13: 0.00% | G13: 0.00% | H13: 0.00% | I13: 30.00% | J13: 50.00% | AD13: 0.00625 | AE13: 0.006944444444 | AF13: 35% | AG13: 35% | AH13: 35% | AI13: 35% | AJ13: 35% | AK13: 35% | AL13: 50%
B14: 13:00:00 | C14: 14:00:00 | D14: 0.00% | E14: 0.00% | F14: 0.00% | G14: 0.00% | H14: 0.00% | I14: 30.00% | J14: 50.00% | L14: Dagwaarde | P14: =((contract*wknjaar)-P10)/wknjaar/5 -> 8.00 | Q14: uren | AD14: 0.006944444444 | AE14: 0.007638888889 | AF14: 35% | AG14: 35% | AH14: 35% | AI14: 35% | AJ14: 35% | AK14: 35% | AL14: 50%
B15: 12:00:00 | C15: 13:00:00 | D15: 0.00% | E15: 0.00% | F15: 0.00% | G15: 0.00% | H15: 0.00% | I15: 30.00% | J15: 50.00% | L15: Doorbetaalde vrije feestdagen | P15: =Standaard!P18 -> 7.20 | Q15: dagen per jaar | AD15: 0.007638888889 | AE15: 0.008333333333 | AF15: 35% | AG15: 35% | AH15: 35% | AI15: 35% | AJ15: 35% | AK15: 35% | AL15: 50%
B16: 11:00:00 | C16: 12:00:00 | D16: 0.00% | E16: 0.00% | F16: 0.00% | G16: 0.00% | H16: 0.00% | I16: 30.00% | J16: 50.00% | P16: =P15*P14 -> 57.60 | Q16: uren per jaar | AD16: 0.008333333333 | AE16: 0.009027777778 | AF16: 35% | AG16: 35% | AH16: 35% | AI16: 35% | AJ16: 35% | AK16: 35% | AL16: 50%
B17: 10:00:00 | C17: 11:00:00 | D17: 0.00% | E17: 0.00% | F17: 0.00% | G17: 0.00% | H17: 0.00% | I17: 30.00% | J17: 50.00% | L17: Basisvakantie | P17: =Standaard!P20 -> 25.00 | Q17: dagen per jaar | AD17: 0.009027777778 | AE17: 0.009722222222 | AF17: 35% | AG17: 35% | AH17: 35% | AI17: 35% | AJ17: 35% | AK17: 35% | AL17: 50%
B18: 09:00:00 | C18: 10:00:00 | D18: 0.00% | E18: 0.00% | F18: 0.00% | G18: 0.00% | H18: 0.00% | I18: 30.00% | J18: 50.00% | P18: =P17*P14 -> 200.00 | Q18: uren per jaar | AD18: 0.009722222222 | AE18: 0.01041666667 | AF18: 35% | AG18: 35% | AH18: 35% | AI18: 35% | AJ18: 35% | AK18: 35% | AL18: 50%
B19: 08:00:00 | C19: 09:00:00 | D19: 0.00% | E19: 0.00% | F19: 0.00% | G19: 0.00% | H19: 0.00% | I19: 30.00% | J19: 50.00% | L19: Netto ADV | M19: =Standaard!M22 -> 0% | P19: =IF(OR(M10>0,P10>0,M19=0),0,IF(AND(M10=0,P10=0,M19>0),(P9-P16-P18)*$M$19)) -> 0.00 | AD19: 0.01041666667 | AE19: 0.01111111111 | AF19: 35% | AG19: 35% | AH19: 35% | AI19: 35% | AJ19: 35% | AK19: 35% | AL19: 50%
B20: 07:00:00 | C20: 08:00:00 | D20: =$D$30 -> 0.00% | E20: 0.00% | F20: 0.00% | G20: 0.00% | H20: 0.00% | I20: =$D$34 -> 30.00% | J20: 50.00% | L20: Netto arbeidsduur | P20: =P9-P10-P16-P18-P19 -> 1829.54 | Q20: uren per jaar | AD20: 0.01111111111 | AE20: 0.01180555556 | AF20: 35% | AG20: 35% | AH20: 35% | AI20: 35% | AJ20: 35% | AK20: 35% | AL20: 50%
B21: 06:00:00 | C21: 07:00:00 | D21: =$D$30 -> 0.00% | E21: 0.00% | F21: 0.00% | G21: 0.00% | H21: 0.00% | I21: 30.00% | J21: 50.00% | L21: Netto werkweek | P21: =+P20/wknjaar -> 35.06 | Q21: uren per week | AD21: 0.01180555556 | AE21: 0.0125 | AF21: 35% | AG21: 35% | AH21: 35% | AI21: 35% | AJ21: 35% | AK21: 35% | AL21: 50%
B22: 05:00:00 | C22: 06:00:00 | D22: =$D$32 -> 35.00% | E22: =$D$32 -> 35.00% | F22: 35.00% | G22: 35.00% | H22: 35.00% | I22: 35.00% | J22: 50.00% | L22: Basisuurloon | P22: =IF(ISERROR(1/P12),0,(1/P12)) -> 0.575% | Q22: van het basismaandsalaris | AD22: 0.0125 | AE22: 0.01319444444 | AF22: 35% | AG22: 35% | AH22: 35% | AI22: 35% | AJ22: 35% | AK22: 35% | AL22: 50%
B23: 04:00:00 | C23: 05:00:00 | D23: =$D$32 -> 35.00% | E23: 35.00% | F23: 35.00% | G23: 35.00% | H23: 35.00% | I23: 35.00% | J23: 50.00% | L23: =IF(OR(P10>0,P19>0),"Er is sprake van ADV","") ->  | AD23: 0.01319444444 | AE23: 0.01388888889 | AF23: 35% | AG23: 35% | AH23: 35% | AI23: 35% | AJ23: 35% | AK23: 35% | AL23: 50%
B24: 03:00:00 | C24: 04:00:00 | D24: 35.00% | E24: 35.00% | F24: 35.00% | G24: 35.00% | H24: 35.00% | I24: 35.00% | J24: 50.00% | L24: =IF(L23="","",IF(P10>0,L10&" "&ROUND(P10,2)&" uur per jaar",IF(P19>0,L19&" "&ROUND(P19,2)&" uur per jaar",""))) ->  | AD24: 0.01388888889 | AE24: 0.01458333333 | AF24: 35% | AG24: 35% | AH24: 35% | AI24: 35% | AJ24: 35% | AK24: 35% | AL24: 50%
B25: 02:00:00 | C25: 03:00:00 | D25: 35.00% | E25: 35.00% | F25: 35.00% | G25: 35.00% | H25: 35.00% | I25: 35.00% | J25: 50.00% | AD25: 0.01458333333 | AE25: 0.01527777778 | AF25: 35% | AG25: 35% | AH25: 35% | AI25: 35% | AJ25: 35% | AK25: 35% | AL25: 50%
B26: 01:00:00 | C26: 02:00:00 | D26: 35.00% | E26: 35.00% | F26: 35.00% | G26: 35.00% | H26: 35.00% | I26: 35.00% | J26: 50.00% | AD26: 0.01527777778 | AE26: 0.01597222222 | AF26: 35% | AG26: 35% | AH26: 35% | AI26: 35% | AJ26: 35% | AK26: 35% | AL26: 50%
B27: 00:00:00 | C27: 01:00:00 | D27: 35.00% | E27: 35.00% | F27: 35.00% | G27: 35.00% | H27: 35.00% | I27: 35.00% | J27: 50.00% | AD27: 0.01597222222 | AE27: 0.01666666667 | AF27: 35% | AG27: 35% | AH27: 35% | AI27: 35% | AJ27: 35% | AK27: 35% | AL27: 50%
AD28: 0.01666666667 | AE28: 0.01736111111 | AF28: 35% | AG28: 35% | AH28: 35% | AI28: 35% | AJ28: 35% | AK28: 35% | AL28: 50%
AD29: 0.01736111111 | AE29: 0.01805555556 | AF29: 35% | AG29: 35% | AH29: 35% | AI29: 35% | AJ29: 35% | AK29: 35% | AL29: 50%
D30: 0.00% | AD30: 0.01805555556 | AE30: 0.01875 | AF30: 35% | AG30: 35% | AH30: 35% | AI30: 35% | AJ30: 35% | AK30: 35% | AL30: 50%
D31: 33.00% | AD31: 0.01875 | AE31: 0.01944444444 | AF31: 35% | AG31: 35% | AH31: 35% | AI31: 35% | AJ31: 35% | AK31: 35% | AL31: 50%
D32: 35.00% | AD32: 0.01944444444 | AE32: 0.02013888889 | AF32: 35% | AG32: 35% | AH32: 35% | AI32: 35% | AJ32: 35% | AK32: 35% | AL32: 50%
D33: 100.00% | AD33: 0.02013888889 | AE33: 0.02083333333 | AF33: 35% | AG33: 35% | AH33: 35% | AI33: 35% | AJ33: 35% | AK33: 35% | AL33: 50%
D34: 30.0% | AD34: 0.02083333333 | AE34: 0.02152777778 | AF34: 35% | AG34: 35% | AH34: 35% | AI34: 35% | AJ34: 35% | AK34: 35% | AL34: 50%
D35: 50.0% | AD35: 0.02152777778 | AE35: 0.02222222222 | AF35: 35% | AG35: 35% | AH35: 35% | AI35: 35% | AJ35: 35% | AK35: 35% | AL35: 50%
D36: Gemiddelde toeslag per uur over aanwezigheidstijd | AD36: 0.02222222222 | AE36: 0.02291666667 | AF36: 35% | AG36: 35% | AH36: 35% | AI36: 35% | AJ36: 35% | AK36: 35% | AL36: 50%
D37: Gelijkmatige inroostering extra opkomsturen/reservediensten (gemiddelde toeslag) | AD37: 0.02291666667 | AE37: 0.02361111111 | AF37: 35% | AG37: 35% | AH37: 35% | AI37: 35% | AJ37: 35% | AK37: 35% | AL37: 50%
D38: Gelijkmatige uitroostering "+"-uren | AD38: 0.02361111111 | AE38: 0.02430555556 | AF38: 35% | AG38: 35% | AH38: 35% | AI38: 35% | AJ38: 35% | AK38: 35% | AL38: 50%
D39: "-"-uren (tijdcompensatie) gecorrigeerd in ploegentoeslag | AD39: 0.02430555556 | AE39: 0.025 | AF39: 35% | AG39: 35% | AH39: 35% | AI39: 35% | AJ39: 35% | AK39: 35% | AL39: 50%
AD40: 0.025 | AE40: 0.02569444444 | AF40: 35% | AG40: 35% | AH40: 35% | AI40: 35% | AJ40: 35% | AK40: 35% | AL40: 50%
AD41: 0.02569444444 | AE41: 0.02638888889 | AF41: 35% | AG41: 35% | AH41: 35% | AI41: 35% | AJ41: 35% | AK41: 35% | AL41: 50%
B42: van | C42: tot | D42: Ma | E42: Di | F42: Wo | G42: Do | H42: Vr | I42: Za | J42: Zo | AD42: 0.02638888889 | AE42: 0.02708333333 | AF42: 35% | AG42: 35% | AH42: 35% | AI42: 35% | AJ42: 35% | AK42: 35% | AL42: 50%
B43: 23:00:00 | C43: 00:00:00 | D43: =IF(Standaard!$AQ$9=2,D4+VLOOKUP(Standaard!$AQ$11,correctie_rstr,7,FALSE),0) -> 0.00% | E43: =IF(Standaard!$AQ$9=2,E4+VLOOKUP(Standaard!$AQ$11,correctie_rstr,7,FALSE),0) -> 0.00% | F43: =IF(Standaard!$AQ$9=2,F4+VLOOKUP(Standaard!$AQ$11,correctie_rstr,7,FALSE),0) -> 0.00% | G43: =IF(Standaard!$AQ$9=2,G4+VLOOKUP(Standaard!$AQ$11,correctie_rstr,7,FALSE),0) -> 0.00% | H43: =IF(Standaard!$AQ$9=2,H4+VLOOKUP(Standaard!$AQ$11,correctie_rstr,7,FALSE),0) -> 0.00% | I43: =IF(Standaard!$AQ$9=2,I4+VLOOKUP(Standaard!$AQ$11,correctie_rstr,7,FALSE),0) -> 0.00% | J43: =IF(Standaard!$AQ$9=2,J4+VLOOKUP(Standaard!$AQ$11,correctie_rstr,7,FALSE),0) -> 0.00% | AD43: 0.02708333333 | AE43: 0.02777777778 | AF43: 35% | AG43: 35% | AH43: 35% | AI43: 35% | AJ43: 35% | AK43: 35% | AL43: 50%
B44: 22:00:00 | C44: 23:00:00 | D44: =IF(Standaard!$AQ$9=2,D5+VLOOKUP(Standaard!$AQ$11,correctie_rstr,7,FALSE),0) -> 0.00% | E44: =IF(Standaard!$AQ$9=2,E5+VLOOKUP(Standaard!$AQ$11,correctie_rstr,7,FALSE),0) -> 0.00% | F44: =IF(Standaard!$AQ$9=2,F5+VLOOKUP(Standaard!$AQ$11,correctie_rstr,7,FALSE),0) -> 0.00% | G44: =IF(Standaard!$AQ$9=2,G5+VLOOKUP(Standaard!$AQ$11,correctie_rstr,7,FALSE),0) -> 0.00% | H44: =IF(Standaard!$AQ$9=2,H5+VLOOKUP(Standaard!$AQ$11,correctie_rstr,7,FALSE),0) -> 0.00% | I44: =IF(Standaard!$AQ$9=2,I5+VLOOKUP(Standaard!$AQ$11,correctie_rstr,7,FALSE),0) -> 0.00% | J44: =IF(Standaard!$AQ$9=2,J5+VLOOKUP(Standaard!$AQ$11,correctie_rstr,7,FALSE),0) -> 0.00% | AD44: 0.02777777778 | AE44: 0.02847222222 | AF44: 35% | AG44: 35% | AH44: 35% | AI44: 35% | AJ44: 35% | AK44: 35% | AL44: 50%
B45: 21:00:00 | C45: 22:00:00 | D45: =IF(Standaard!$AQ$9=2,D6+VLOOKUP(Standaard!$AQ$11,correctie_rstr,7,FALSE),0) -> 0.00% | E45: =IF(Standaard!$AQ$9=2,E6+VLOOKUP(Standaard!$AQ$11,correctie_rstr,7,FALSE),0) -> 0.00% | F45: =IF(Standaard!$AQ$9=2,F6+VLOOKUP(Standaard!$AQ$11,correctie_rstr,7,FALSE),0) -> 0.00% | G45: =IF(Standaard!$AQ$9=2,G6+VLOOKUP(Standaard!$AQ$11,correctie_rstr,7,FALSE),0) -> 0.00% | H45: =IF(Standaard!$AQ$9=2,H6+VLOOKUP(Standaard!$AQ$11,correctie_rstr,7,FALSE),0) -> 0.00% | I45: =IF(Standaard!$AQ$9=2,I6+VLOOKUP(Standaard!$AQ$11,correctie_rstr,7,FALSE),0) -> 0.00% | J45: =IF(Standaard!$AQ$9=2,J6+VLOOKUP(Standaard!$AQ$11,correctie_rstr,7,FALSE),0) -> 0.00% | AD45: 0.02847222222 | AE45: 0.02916666667 | AF45: 35% | AG45: 35% | AH45: 35% | AI45: 35% | AJ45: 35% | AK45: 35% | AL45: 50%
B46: 20:00:00 | C46: 21:00:00 | D46: =IF(Standaard!$AQ$9=2,D7+VLOOKUP(Standaard!$AQ$11,correctie_rstr,7,FALSE),0) -> 0.00% | E46: =IF(Standaard!$AQ$9=2,E7+VLOOKUP(Standaard!$AQ$11,correctie_rstr,7,FALSE),0) -> 0.00% | F46: =IF(Standaard!$AQ$9=2,F7+VLOOKUP(Standaard!$AQ$11,correctie_rstr,7,FALSE),0) -> 0.00% | G46: =IF(Standaard!$AQ$9=2,G7+VLOOKUP(Standaard!$AQ$11,correctie_rstr,7,FALSE),0) -> 0.00% | H46: =IF(Standaard!$AQ$9=2,H7+VLOOKUP(Standaard!$AQ$11,correctie_rstr,7,FALSE),0) -> 0.00% | I46: =IF(Standaard!$AQ$9=2,I7+VLOOKUP(Standaard!$AQ$11,correctie_rstr,7,FALSE),0) -> 0.00% | J46: =IF(Standaard!$AQ$9=2,J7+VLOOKUP(Standaard!$AQ$11,correctie_rstr,7,FALSE),0) -> 0.00% | AD46: 0.02916666667 | AE46: 0.02986111111 | AF46: 35% | AG46: 35% | AH46: 35% | AI46: 35% | AJ46: 35% | AK46: 35% | AL46: 50%
B47: 19:00:00 | C47: 20:00:00 | D47: =IF(Standaard!$AQ$9=2,D8+VLOOKUP(Standaard!$AQ$11,correctie_rstr,7,FALSE),0) -> 0.00% | E47: =IF(Standaard!$AQ$9=2,E8+VLOOKUP(Standaard!$AQ$11,correctie_rstr,7,FALSE),0) -> 0.00% | F47: =IF(Standaard!$AQ$9=2,F8+VLOOKUP(Standaard!$AQ$11,correctie_rstr,7,FALSE),0) -> 0.00% | G47: =IF(Standaard!$AQ$9=2,G8+VLOOKUP(Standaard!$AQ$11,correctie_rstr,7,FALSE),0) -> 0.00% | H47: =IF(Standaard!$AQ$9=2,H8+VLOOKUP(Standaard!$AQ$11,correctie_rstr,7,FALSE),0) -> 0.00% | I47: =IF(Standaard!$AQ$9=2,I8+VLOOKUP(Standaard!$AQ$11,correctie_rstr,7,FALSE),0) -> 0.00% | J47: =IF(Standaard!$AQ$9=2,J8+VLOOKUP(Standaard!$AQ$11,correctie_rstr,7,FALSE),0) -> 0.00% | AD47: 0.02986111111 | AE47: 0.03055555556 | AF47: 35% | AG47: 35% | AH47: 35% | AI47: 35% | AJ47: 35% | AK47: 35% | AL47: 50%
B48: 18:00:00 | C48: 19:00:00 | D48: =IF(Standaard!$AQ$9=2,D9+VLOOKUP(Standaard!$AQ$11,correctie_rstr,7,FALSE),0) -> 0.00% | E48: =IF(Standaard!$AQ$9=2,E9+VLOOKUP(Standaard!$AQ$11,correctie_rstr,7,FALSE),0) -> 0.00% | F48: =IF(Standaard!$AQ$9=2,F9+VLOOKUP(Standaard!$AQ$11,correctie_rstr,7,FALSE),0) -> 0.00% | G48: =IF(Standaard!$AQ$9=2,G9+VLOOKUP(Standaard!$AQ$11,correctie_rstr,7,FALSE),0) -> 0.00% | H48: =IF(Standaard!$AQ$9=2,H9+VLOOKUP(Standaard!$AQ$11,correctie_rstr,7,FALSE),0) -> 0.00% | I48: =IF(Standaard!$AQ$9=2,I9+VLOOKUP(Standaard!$AQ$11,correctie_rstr,7,FALSE),0) -> 0.00% | J48: =IF(Standaard!$AQ$9=2,J9+VLOOKUP(Standaard!$AQ$11,correctie_rstr,7,FALSE),0) -> 0.00% | AD48: 0.03055555556 | AE48: 0.03125 | AF48: 35% | AG48: 35% | AH48: 35% | AI48: 35% | AJ48: 35% | AK48: 35% | AL48: 50%
B49: 17:00:00 | C49: 18:00:00 | D49: =$D$30 -> 0.00% | E49: 0.00% | F49: 0.00% | G49: 0.00% | H49: 0.00% | I49: =IF(Standaard!$AQ$9=2,I10+VLOOKUP(Standaard!$AQ$11,correctie_rstr,7,FALSE),0) -> 0.00% | J49: =IF(Standaard!$AQ$9=2,J10+VLOOKUP(Standaard!$AQ$11,correctie_rstr,7,FALSE),0) -> 0.00% | AD49: 0.03125 | AE49: 0.03194444444 | AF49: 35% | AG49: 35% | AH49: 35% | AI49: 35% | AJ49: 35% | AK49: 35% | AL49: 50%
B50: 16:00:00 | C50: 17:00:00 | D50: 0.00% | E50: 0.00% | F50: 0.00% | G50: 0.00% | H50: 0.00% | I50: =IF(Standaard!$AQ$9=2,I11+VLOOKUP(Standaard!$AQ$11,correctie_rstr,7,FALSE),0) -> 0.00% | J50: =IF(Standaard!$AQ$9=2,J11+VLOOKUP(Standaard!$AQ$11,correctie_rstr,7,FALSE),0) -> 0.00% | AD50: 0.03194444444 | AE50: 0.03263888889 | AF50: 35% | AG50: 35% | AH50: 35% | AI50: 35% | AJ50: 35% | AK50: 35% | AL50: 50%
B51: 15:00:00 | C51: 16:00:00 | D51: 0.00% | E51: 0.00% | F51: 0.00% | G51: 0.00% | H51: 0.00% | I51: =IF(Standaard!$AQ$9=2,I12+VLOOKUP(Standaard!$AQ$11,correctie_rstr,7,FALSE),0) -> 0.00% | J51: =IF(Standaard!$AQ$9=2,J12+VLOOKUP(Standaard!$AQ$11,correctie_rstr,7,FALSE),0) -> 0.00% | AD51: 0.03263888889 | AE51: 0.03333333333 | AF51: 35% | AG51: 35% | AH51: 35% | AI51: 35% | AJ51: 35% | AK51: 35% | AL51: 50%
B52: 14:00:00 | C52: 15:00:00 | D52: 0.00% | E52: 0.00% | F52: 0.00% | G52: 0.00% | H52: 0.00% | I52: =IF(Standaard!$AQ$9=2,I13+VLOOKUP(Standaard!$AQ$11,correctie_rstr,7,FALSE),0) -> 0.00% | J52: =IF(Standaard!$AQ$9=2,J13+VLOOKUP(Standaard!$AQ$11,correctie_rstr,7,FALSE),0) -> 0.00% | AD52: 0.03333333333 | AE52: 0.03402777778 | AF52: 35% | AG52: 35% | AH52: 35% | AI52: 35% | AJ52: 35% | AK52: 35% | AL52: 50%
B53: 13:00:00 | C53: 14:00:00 | D53: 0.00% | E53: 0.00% | F53: 0.00% | G53: 0.00% | H53: 0.00% | I53: =IF(Standaard!$AQ$9=2,I14+VLOOKUP(Standaard!$AQ$11,correctie_rstr,7,FALSE),0) -> 0.00% | J53: =IF(Standaard!$AQ$9=2,J14+VLOOKUP(Standaard!$AQ$11,correctie_rstr,7,FALSE),0) -> 0.00% | AD53: 0.03402777778 | AE53: 0.03472222222 | AF53: 35% | AG53: 35% | AH53: 35% | AI53: 35% | AJ53: 35% | AK53: 35% | AL53: 50%
B54: 12:00:00 | C54: 13:00:00 | D54: 0.00% | E54: 0.00% | F54: 0.00% | G54: 0.00% | H54: 0.00% | I54: =IF(Standaard!$AQ$9=2,I15+VLOOKUP(Standaard!$AQ$11,correctie_rstr,7,FALSE),0) -> 0.00% | J54: =IF(Standaard!$AQ$9=2,J15+VLOOKUP(Standaard!$AQ$11,correctie_rstr,7,FALSE),0) -> 0.00% | AD54: 0.03472222222 | AE54: 0.03541666667 | AF54: 35% | AG54: 35% | AH54: 35% | AI54: 35% | AJ54: 35% | AK54: 35% | AL54: 50%
B55: 11:00:00 | C55: 12:00:00 | D55: 0.00% | E55: 0.00% | F55: 0.00% | G55: 0.00% | H55: 0.00% | I55: =IF(Standaard!$AQ$9=2,I16+VLOOKUP(Standaard!$AQ$11,correctie_rstr,7,FALSE),0) -> 0.00% | J55: =IF(Standaard!$AQ$9=2,J16+VLOOKUP(Standaard!$AQ$11,correctie_rstr,7,FALSE),0) -> 0.00% | AD55: 0.03541666667 | AE55: 0.03611111111 | AF55: 35% | AG55: 35% | AH55: 35% | AI55: 35% | AJ55: 35% | AK55: 35% | AL55: 50%
B56: 10:00:00 | C56: 11:00:00 | D56: 0.00% | E56: 0.00% | F56: 0.00% | G56: 0.00% | H56: 0.00% | I56: =IF(Standaard!$AQ$9=2,I17+VLOOKUP(Standaard!$AQ$11,correctie_rstr,7,FALSE),0) -> 0.00% | J56: =IF(Standaard!$AQ$9=2,J17+VLOOKUP(Standaard!$AQ$11,correctie_rstr,7,FALSE),0) -> 0.00% | AD56: 0.03611111111 | AE56: 0.03680555556 | AF56: 35% | AG56: 35% | AH56: 35% | AI56: 35% | AJ56: 35% | AK56: 35% | AL56: 50%
B57: 09:00:00 | C57: 10:00:00 | D57: 0.00% | E57: 0.00% | F57: 0.00% | G57: 0.00% | H57: 0.00% | I57: =IF(Standaard!$AQ$9=2,I18+VLOOKUP(Standaard!$AQ$11,correctie_rstr,7,FALSE),0) -> 0.00% | J57: =IF(Standaard!$AQ$9=2,J18+VLOOKUP(Standaard!$AQ$11,correctie_rstr,7,FALSE),0) -> 0.00% | AD57: 0.03680555556 | AE57: 0.0375 | AF57: 35% | AG57: 35% | AH57: 35% | AI57: 35% | AJ57: 35% | AK57: 35% | AL57: 50%
B58: 08:00:00 | C58: 09:00:00 | D58: 0.00% | E58: 0.00% | F58: 0.00% | G58: 0.00% | H58: 0.00% | I58: =IF(Standaard!$AQ$9=2,I19+VLOOKUP(Standaard!$AQ$11,correctie_rstr,7,FALSE),0) -> 0.00% | J58: =IF(Standaard!$AQ$9=2,J19+VLOOKUP(Standaard!$AQ$11,correctie_rstr,7,FALSE),0) -> 0.00% | AD58: 0.0375 | AE58: 0.03819444444 | AF58: 35% | AG58: 35% | AH58: 35% | AI58: 35% | AJ58: 35% | AK58: 35% | AL58: 50%
B59: 07:00:00 | C59: 08:00:00 | D59: =$D$30 -> 0.00% | E59: 0.00% | F59: 0.00% | G59: 0.00% | H59: 0.00% | I59: =IF(Standaard!$AQ$9=2,I20+VLOOKUP(Standaard!$AQ$11,correctie_rstr,7,FALSE),0) -> 0.00% | J59: =IF(Standaard!$AQ$9=2,J20+VLOOKUP(Standaard!$AQ$11,correctie_rstr,7,FALSE),0) -> 0.00% | AD59: 0.03819444444 | AE59: 0.03888888889 | AF59: 35% | AG59: 35% | AH59: 35% | AI59: 35% | AJ59: 35% | AK59: 35% | AL59: 50%
B60: 06:00:00 | C60: 07:00:00 | D60: =IF(Standaard!$AQ$9=2,D21+VLOOKUP(Standaard!$AQ$11,correctie_rstr,7,FALSE),0) -> 0.00% | E60: =IF(Standaard!$AQ$9=2,E21+VLOOKUP(Standaard!$AQ$11,correctie_rstr,7,FALSE),0) -> 0.00% | F60: =IF(Standaard!$AQ$9=2,F21+VLOOKUP(Standaard!$AQ$11,correctie_rstr,7,FALSE),0) -> 0.00% | G60: =IF(Standaard!$AQ$9=2,G21+VLOOKUP(Standaard!$AQ$11,correctie_rstr,7,FALSE),0) -> 0.00% | H60: =IF(Standaard!$AQ$9=2,H21+VLOOKUP(Standaard!$AQ$11,correctie_rstr,7,FALSE),0) -> 0.00% | I60: =IF(Standaard!$AQ$9=2,I21+VLOOKUP(Standaard!$AQ$11,correctie_rstr,7,FALSE),0) -> 0.00% | J60: =IF(Standaard!$AQ$9=2,J21+VLOOKUP(Standaard!$AQ$11,correctie_rstr,7,FALSE),0) -> 0.00% | AD60: 0.03888888889 | AE60: 0.03958333333 | AF60: 35% | AG60: 35% | AH60: 35% | AI60: 35% | AJ60: 35% | AK60: 35% | AL60: 50%
B61: 05:00:00 | C61: 06:00:00 | D61: =IF(Standaard!$AQ$9=2,D22+VLOOKUP(Standaard!$AQ$11,correctie_rstr,7,FALSE),0) -> 0.00% | E61: =IF(Standaard!$AQ$9=2,E22+VLOOKUP(Standaard!$AQ$11,correctie_rstr,7,FALSE),0) -> 0.00% | F61: =IF(Standaard!$AQ$9=2,F22+VLOOKUP(Standaard!$AQ$11,correctie_rstr,7,FALSE),0) -> 0.00% | G61: =IF(Standaard!$AQ$9=2,G22+VLOOKUP(Standaard!$AQ$11,correctie_rstr,7,FALSE),0) -> 0.00% | H61: =IF(Standaard!$AQ$9=2,H22+VLOOKUP(Standaard!$AQ$11,correctie_rstr,7,FALSE),0) -> 0.00% | I61: =IF(Standaard!$AQ$9=2,I22+VLOOKUP(Standaard!$AQ$11,correctie_rstr,7,FALSE),0) -> 0.00% | J61: =IF(Standaard!$AQ$9=2,J22+VLOOKUP(Standaard!$AQ$11,correctie_rstr,7,FALSE),0) -> 0.00% | AD61: 0.03958333333 | AE61: 0.04027777778 | AF61: 35% | AG61: 35% | AH61: 35% | AI61: 35% | AJ61: 35% | AK61: 35% | AL61: 50%
B62: 04:00:00 | C62: 05:00:00 | D62: =IF(Standaard!$AQ$9=2,D23+VLOOKUP(Standaard!$AQ$11,correctie_rstr,7,FALSE),0) -> 0.00% | E62: =IF(Standaard!$AQ$9=2,E23+VLOOKUP(Standaard!$AQ$11,correctie_rstr,7,FALSE),0) -> 0.00% | F62: =IF(Standaard!$AQ$9=2,F23+VLOOKUP(Standaard!$AQ$11,correctie_rstr,7,FALSE),0) -> 0.00% | G62: =IF(Standaard!$AQ$9=2,G23+VLOOKUP(Standaard!$AQ$11,correctie_rstr,7,FALSE),0) -> 0.00% | H62: =IF(Standaard!$AQ$9=2,H23+VLOOKUP(Standaard!$AQ$11,correctie_rstr,7,FALSE),0) -> 0.00% | I62: =IF(Standaard!$AQ$9=2,I23+VLOOKUP(Standaard!$AQ$11,correctie_rstr,7,FALSE),0) -> 0.00% | J62: =IF(Standaard!$AQ$9=2,J23+VLOOKUP(Standaard!$AQ$11,correctie_rstr,7,FALSE),0) -> 0.00% | AD62: 0.04027777778 | AE62: 0.04097222222 | AF62: 35% | AG62: 35% | AH62: 35% | AI62: 35% | AJ62: 35% | AK62: 35% | AL62: 50%
B63: 03:00:00 | C63: 04:00:00 | D63: =IF(Standaard!$AQ$9=2,D24+VLOOKUP(Standaard!$AQ$11,correctie_rstr,7,FALSE),0) -> 0.00% | E63: =IF(Standaard!$AQ$9=2,E24+VLOOKUP(Standaard!$AQ$11,correctie_rstr,7,FALSE),0) -> 0.00% | F63: =IF(Standaard!$AQ$9=2,F24+VLOOKUP(Standaard!$AQ$11,correctie_rstr,7,FALSE),0) -> 0.00% | G63: =IF(Standaard!$AQ$9=2,G24+VLOOKUP(Standaard!$AQ$11,correctie_rstr,7,FALSE),0) -> 0.00% | H63: =IF(Standaard!$AQ$9=2,H24+VLOOKUP(Standaard!$AQ$11,correctie_rstr,7,FALSE),0) -> 0.00% | I63: =IF(Standaard!$AQ$9=2,I24+VLOOKUP(Standaard!$AQ$11,correctie_rstr,7,FALSE),0) -> 0.00% | J63: =IF(Standaard!$AQ$9=2,J24+VLOOKUP(Standaard!$AQ$11,correctie_rstr,7,FALSE),0) -> 0.00% | AD63: 0.04097222222 | AE63: 0.04166666667 | AF63: 35% | AG63: 35% | AH63: 35% | AI63: 35% | AJ63: 35% | AK63: 35% | AL63: 50%
B64: 02:00:00 | C64: 03:00:00 | D64: =IF(Standaard!$AQ$9=2,D25+VLOOKUP(Standaard!$AQ$11,correctie_rstr,7,FALSE),0) -> 0.00% | E64: =IF(Standaard!$AQ$9=2,E25+VLOOKUP(Standaard!$AQ$11,correctie_rstr,7,FALSE),0) -> 0.00% | F64: =IF(Standaard!$AQ$9=2,F25+VLOOKUP(Standaard!$AQ$11,correctie_rstr,7,FALSE),0) -> 0.00% | G64: =IF(Standaard!$AQ$9=2,G25+VLOOKUP(Standaard!$AQ$11,correctie_rstr,7,FALSE),0) -> 0.00% | H64: =IF(Standaard!$AQ$9=2,H25+VLOOKUP(Standaard!$AQ$11,correctie_rstr,7,FALSE),0) -> 0.00% | I64: =IF(Standaard!$AQ$9=2,I25+VLOOKUP(Standaard!$AQ$11,correctie_rstr,7,FALSE),0) -> 0.00% | J64: =IF(Standaard!$AQ$9=2,J25+VLOOKUP(Standaard!$AQ$11,correctie_rstr,7,FALSE),0) -> 0.00% | AD64: 0.04166666667 | AE64: 0.04236111111 | AF64: 35% | AG64: 35% | AH64: 35% | AI64: 35% | AJ64: 35% | AK64: 35% | AL64: 50%
B65: 01:00:00 | C65: 02:00:00 | D65: =IF(Standaard!$AQ$9=2,D26+VLOOKUP(Standaard!$AQ$11,correctie_rstr,7,FALSE),0) -> 0.00% | E65: =IF(Standaard!$AQ$9=2,E26+VLOOKUP(Standaard!$AQ$11,correctie_rstr,7,FALSE),0) -> 0.00% | F65: =IF(Standaard!$AQ$9=2,F26+VLOOKUP(Standaard!$AQ$11,correctie_rstr,7,FALSE),0) -> 0.00% | G65: =IF(Standaard!$AQ$9=2,G26+VLOOKUP(Standaard!$AQ$11,correctie_rstr,7,FALSE),0) -> 0.00% | H65: =IF(Standaard!$AQ$9=2,H26+VLOOKUP(Standaard!$AQ$11,correctie_rstr,7,FALSE),0) -> 0.00% | I65: =IF(Standaard!$AQ$9=2,I26+VLOOKUP(Standaard!$AQ$11,correctie_rstr,7,FALSE),0) -> 0.00% | J65: =IF(Standaard!$AQ$9=2,J26+VLOOKUP(Standaard!$AQ$11,correctie_rstr,7,FALSE),0) -> 0.00% | AD65: 0.04236111111 | AE65: 0.04305555556 | AF65: 35% | AG65: 35% | AH65: 35% | AI65: 35% | AJ65: 35% | AK65: 35% | AL65: 50%
B66: 00:00:00 | C66: 01:00:00 | D66: =IF(Standaard!$AQ$9=2,D27+VLOOKUP(Standaard!$AQ$11,correctie_rstr,7,FALSE),0) -> 0.00% | E66: =IF(Standaard!$AQ$9=2,E27+VLOOKUP(Standaard!$AQ$11,correctie_rstr,7,FALSE),0) -> 0.00% | F66: =IF(Standaard!$AQ$9=2,F27+VLOOKUP(Standaard!$AQ$11,correctie_rstr,7,FALSE),0) -> 0.00% | G66: =IF(Standaard!$AQ$9=2,G27+VLOOKUP(Standaard!$AQ$11,correctie_rstr,7,FALSE),0) -> 0.00% | H66: =IF(Standaard!$AQ$9=2,H27+VLOOKUP(Standaard!$AQ$11,correctie_rstr,7,FALSE),0) -> 0.00% | I66: =IF(Standaard!$AQ$9=2,I27+VLOOKUP(Standaard!$AQ$11,correctie_rstr,7,FALSE),0) -> 0.00% | J66: =IF(Standaard!$AQ$9=2,J27+VLOOKUP(Standaard!$AQ$11,correctie_rstr,7,FALSE),0) -> 0.00% | AD66: 0.04305555556 | AE66: 0.04375 | AF66: 35% | AG66: 35% | AH66: 35% | AI66: 35% | AJ66: 35% | AK66: 35% | AL66: 50%
AD67: 0.04375 | AE67: 0.04444444444 | AF67: 35% | AG67: 35% | AH67: 35% | AI67: 35% | AJ67: 35% | AK67: 35% | AL67: 50%
AD68: 0.04444444444 | AE68: 0.04513888889 | AF68: =IF($AE$2=2,IFERROR(VLOOKUP($AD68,CorSN_matrix,AF$3,FALSE),AF67),IFERROR(VLOOKUP($AD68,V_matrix,AF$3,FALSE),AF67)) -> 35% | AG68: =IF($AE$2=2,IFERROR(VLOOKUP($AD68,CorSN_matrix,AG$3,FALSE),AG67),IFERROR(VLOOKUP($AD68,V_matrix,AG$3,FALSE),AG67)) -> 35% | AH68: =IF($AE$2=2,IFERROR(VLOOKUP($AD68,CorSN_matrix,AH$3,FALSE),AH67),IFERROR(VLOOKUP($AD68,V_matrix,AH$3,FALSE),AH67)) -> 35% | AI68: =IF($AE$2=2,IFERROR(VLOOKUP($AD68,CorSN_matrix,AI$3,FALSE),AI67),IFERROR(VLOOKUP($AD68,V_matrix,AI$3,FALSE),AI67)) -> 35% | AJ68: =IF($AE$2=2,IFERROR(VLOOKUP($AD68,CorSN_matrix,AJ$3,FALSE),AJ67),IFERROR(VLOOKUP($AD68,V_matrix,AJ$3,FALSE),AJ67)) -> 35% | AK68: =IF($AE$2=2,IFERROR(VLOOKUP($AD68,CorSN_matrix,AK$3,FALSE),AK67),IFERROR(VLOOKUP($AD68,V_matrix,AK$3,FALSE),AK67)) -> 35% | AL68: =IF($AE$2=2,IFERROR(VLOOKUP($AD68,CorSN_matrix,AL$3,FALSE),AL67),IFERROR(VLOOKUP($AD68,V_matrix,AL$3,FALSE),AL67)) -> 50%
AD69: 0.04513888889 | AE69: 0.04583333333 | AF69: 35% | AG69: 35% | AH69: 35% | AI69: 35% | AJ69: 35% | AK69: 35% | AL69: 50%
AD70: 0.04583333333 | AE70: 0.04652777778 | AF70: 35% | AG70: 35% | AH70: 35% | AI70: 35% | AJ70: 35% | AK70: 35% | AL70: 50%
AD71: 0.04652777778 | AE71: 0.04722222222 | AF71: 35% | AG71: 35% | AH71: 35% | AI71: 35% | AJ71: 35% | AK71: 35% | AL71: 50%
AD72: 0.04722222222 | AE72: 0.04791666667 | AF72: 35% | AG72: 35% | AH72: 35% | AI72: 35% | AJ72: 35% | AK72: 35% | AL72: 50%
AD73: 0.04791666667 | AE73: 0.04861111111 | AF73: 35% | AG73: 35% | AH73: 35% | AI73: 35% | AJ73: 35% | AK73: 35% | AL73: 50%
AD74: 0.04861111111 | AE74: 0.04930555556 | AF74: 35% | AG74: 35% | AH74: 35% | AI74: 35% | AJ74: 35% | AK74: 35% | AL74: 50%
AD75: 0.04930555556 | AE75: 0.05 | AF75: 35% | AG75: 35% | AH75: 35% | AI75: 35% | AJ75: 35% | AK75: 35% | AL75: 50%
AD76: 0.05 | AE76: 0.05069444444 | AF76: 35% | AG76: 35% | AH76: 35% | AI76: 35% | AJ76: 35% | AK76: 35% | AL76: 50%
AD77: 0.05069444444 | AE77: 0.05138888889 | AF77: 35% | AG77: 35% | AH77: 35% | AI77: 35% | AJ77: 35% | AK77: 35% | AL77: 50%
AD78: 0.05138888889 | AE78: 0.05208333333 | AF78: 35% | AG78: 35% | AH78: 35% | AI78: 35% | AJ78: 35% | AK78: 35% | AL78: 50%
AD79: 0.05208333333 | AE79: 0.05277777778 | AF79: 35% | AG79: 35% | AH79: 35% | AI79: 35% | AJ79: 35% | AK79: 35% | AL79: 50%
AD80: 0.05277777778 | AE80: 0.05347222222 | AF80: 35% | AG80: 35% | AH80: 35% | AI80: 35% | AJ80: 35% | AK80: 35% | AL80: 50%
AD81: 0.05347222222 | AE81: 0.05416666667 | AF81: 35% | AG81: 35% | AH81: 35% | AI81: 35% | AJ81: 35% | AK81: 35% | AL81: 50%
AD82: 0.05416666667 | AE82: 0.05486111111 | AF82: 35% | AG82: 35% | AH82: 35% | AI82: 35% | AJ82: 35% | AK82: 35% | AL82: 50%
AD83: 0.05486111111 | AE83: 0.05555555556 | AF83: 35% | AG83: 35% | AH83: 35% | AI83: 35% | AJ83: 35% | AK83: 35% | AL83: 50%
AD84: 0.05555555556 | AE84: 0.05625 | AF84: 35% | AG84: 35% | AH84: 35% | AI84: 35% | AJ84: 35% | AK84: 35% | AL84: 50%
AD85: 0.05625 | AE85: 0.05694444444 | AF85: 35% | AG85: 35% | AH85: 35% | AI85: 35% | AJ85: 35% | AK85: 35% | AL85: 50%
AD86: 0.05694444444 | AE86: 0.05763888889 | AF86: 35% | AG86: 35% | AH86: 35% | AI86: 35% | AJ86: 35% | AK86: 35% | AL86: 50%
AD87: 0.05763888889 | AE87: 0.05833333333 | AF87: 35% | AG87: 35% | AH87: 35% | AI87: 35% | AJ87: 35% | AK87: 35% | AL87: 50%
AD88: 0.05833333333 | AE88: 0.05902777778 | AF88: 35% | AG88: 35% | AH88: 35% | AI88: 35% | AJ88: 35% | AK88: 35% | AL88: 50%
AD89: 0.05902777778 | AE89: 0.05972222222 | AF89: 35% | AG89: 35% | AH89: 35% | AI89: 35% | AJ89: 35% | AK89: 35% | AL89: 50%
AD90: 0.05972222222 | AE90: 0.06041666667 | AF90: 35% | AG90: 35% | AH90: 35% | AI90: 35% | AJ90: 35% | AK90: 35% | AL90: 50%
AD91: 0.06041666667 | AE91: 0.06111111111 | AF91: 35% | AG91: 35% | AH91: 35% | AI91: 35% | AJ91: 35% | AK91: 35% | AL91: 50%
AD92: 0.06111111111 | AE92: 0.06180555556 | AF92: 35% | AG92: 35% | AH92: 35% | AI92: 35% | AJ92: 35% | AK92: 35% | AL92: 50%
AD93: 0.06180555556 | AE93: 0.0625 | AF93: 35% | AG93: 35% | AH93: 35% | AI93: 35% | AJ93: 35% | AK93: 35% | AL93: 50%
AD94: 0.0625 | AE94: 0.06319444444 | AF94: 35% | AG94: 35% | AH94: 35% | AI94: 35% | AJ94: 35% | AK94: 35% | AL94: 50%
AD95: 0.06319444444 | AE95: 0.06388888889 | AF95: 35% | AG95: 35% | AH95: 35% | AI95: 35% | AJ95: 35% | AK95: 35% | AL95: 50%
AD96: 0.06388888889 | AE96: 0.06458333333 | AF96: 35% | AG96: 35% | AH96: 35% | AI96: 35% | AJ96: 35% | AK96: 35% | AL96: 50%
AD97: 0.06458333333 | AE97: 0.06527777778 | AF97: 35% | AG97: 35% | AH97: 35% | AI97: 35% | AJ97: 35% | AK97: 35% | AL97: 50%
AD98: 0.06527777778 | AE98: 0.06597222222 | AF98: 35% | AG98: 35% | AH98: 35% | AI98: 35% | AJ98: 35% | AK98: 35% | AL98: 50%
AD99: 0.06597222222 | AE99: 0.06666666667 | AF99: 35% | AG99: 35% | AH99: 35% | AI99: 35% | AJ99: 35% | AK99: 35% | AL99: 50%
AD100: 0.06666666667 | AE100: 0.06736111111 | AF100: 35% | AG100: 35% | AH100: 35% | AI100: 35% | AJ100: 35% | AK100: 35% | AL100: 50%
AD101: 0.06736111111 | AE101: 0.06805555556 | AF101: 35% | AG101: 35% | AH101: 35% | AI101: 35% | AJ101: 35% | AK101: 35% | AL101: 50%
AD102: 0.06805555556 | AE102: 0.06875 | AF102: 35% | AG102: 35% | AH102: 35% | AI102: 35% | AJ102: 35% | AK102: 35% | AL102: 50%
AD103: 0.06875 | AE103: 0.06944444444 | AF103: 35% | AG103: 35% | AH103: 35% | AI103: 35% | AJ103: 35% | AK103: 35% | AL103: 50%
AD104: 0.06944444444 | AE104: 0.07013888889 | AF104: 35% | AG104: 35% | AH104: 35% | AI104: 35% | AJ104: 35% | AK104: 35% | AL104: 50%
AD105: 0.07013888889 | AE105: 0.07083333333 | AF105: 35% | AG105: 35% | AH105: 35% | AI105: 35% | AJ105: 35% | AK105: 35% | AL105: 50%
AD106: 0.07083333333 | AE106: 0.07152777778 | AF106: 35% | AG106: 35% | AH106: 35% | AI106: 35% | AJ106: 35% | AK106: 35% | AL106: 50%
AD107: 0.07152777778 | AE107: 0.07222222222 | AF107: 35% | AG107: 35% | AH107: 35% | AI107: 35% | AJ107: 35% | AK107: 35% | AL107: 50%
AD108: 0.07222222222 | AE108: 0.07291666667 | AF108: 35% | AG108: 35% | AH108: 35% | AI108: 35% | AJ108: 35% | AK108: 35% | AL108: 50%
AD109: 0.07291666667 | AE109: 0.07361111111 | AF109: 35% | AG109: 35% | AH109: 35% | AI109: 35% | AJ109: 35% | AK109: 35% | AL109: 50%
AD110: 0.07361111111 | AE110: 0.07430555556 | AF110: 35% | AG110: 35% | AH110: 35% | AI110: 35% | AJ110: 35% | AK110: 35% | AL110: 50%
AD111: 0.07430555556 | AE111: 0.075 | AF111: 35% | AG111: 35% | AH111: 35% | AI111: 35% | AJ111: 35% | AK111: 35% | AL111: 50%
AD112: 0.075 | AE112: 0.07569444444 | AF112: 35% | AG112: 35% | AH112: 35% | AI112: 35% | AJ112: 35% | AK112: 35% | AL112: 50%
AD113: 0.07569444444 | AE113: 0.07638888889 | AF113: 35% | AG113: 35% | AH113: 35% | AI113: 35% | AJ113: 35% | AK113: 35% | AL113: 50%
AD114: 0.07638888889 | AE114: 0.07708333333 | AF114: 35% | AG114: 35% | AH114: 35% | AI114: 35% | AJ114: 35% | AK114: 35% | AL114: 50%
AD115: 0.07708333333 | AE115: 0.07777777778 | AF115: 35% | AG115: 35% | AH115: 35% | AI115: 35% | AJ115: 35% | AK115: 35% | AL115: 50%
AD116: 0.07777777778 | AE116: 0.07847222222 | AF116: 35% | AG116: 35% | AH116: 35% | AI116: 35% | AJ116: 35% | AK116: 35% | AL116: 50%
AD117: 0.07847222222 | AE117: 0.07916666667 | AF117: 35% | AG117: 35% | AH117: 35% | AI117: 35% | AJ117: 35% | AK117: 35% | AL117: 50%
AD118: 0.07916666667 | AE118: 0.07986111111 | AF118: 35% | AG118: 35% | AH118: 35% | AI118: 35% | AJ118: 35% | AK118: 35% | AL118: 50%
AD119: 0.07986111111 | AE119: 0.08055555556 | AF119: 35% | AG119: 35% | AH119: 35% | AI119: 35% | AJ119: 35% | AK119: 35% | AL119: 50%
AD120: 0.08055555556 | AE120: 0.08125 | AF120: 35% | AG120: 35% | AH120: 35% | AI120: 35% | AJ120: 35% | AK120: 35% | AL120: 50%
AD121: 0.08125 | AE121: 0.08194444444 | AF121: 35% | AG121: 35% | AH121: 35% | AI121: 35% | AJ121: 35% | AK121: 35% | AL121: 50%
AD122: 0.08194444444 | AE122: 0.08263888889 | AF122: 35% | AG122: 35% | AH122: 35% | AI122: 35% | AJ122: 35% | AK122: 35% | AL122: 50%
AD123: 0.08263888889 | AE123: 0.08333333333 | AF123: 35% | AG123: 35% | AH123: 35% | AI123: 35% | AJ123: 35% | AK123: 35% | AL123: 50%
AD124: 0.08333333333 | AE124: 0.08402777778 | AF124: 35% | AG124: 35% | AH124: 35% | AI124: 35% | AJ124: 35% | AK124: 35% | AL124: 50%
AD125: 0.08402777778 | AE125: 0.08472222222 | AF125: 35% | AG125: 35% | AH125: 35% | AI125: 35% | AJ125: 35% | AK125: 35% | AL125: 50%
AD126: 0.08472222222 | AE126: 0.08541666667 | AF126: 35% | AG126: 35% | AH126: 35% | AI126: 35% | AJ126: 35% | AK126: 35% | AL126: 50%
AD127: 0.08541666667 | AE127: 0.08611111111 | AF127: 35% | AG127: 35% | AH127: 35% | AI127: 35% | AJ127: 35% | AK127: 35% | AL127: 50%
AD128: 0.08611111111 | AE128: 0.08680555556 | AF128: 35% | AG128: 35% | AH128: 35% | AI128: 35% | AJ128: 35% | AK128: 35% | AL128: 50%
AD129: 0.08680555556 | AE129: 0.0875 | AF129: 35% | AG129: 35% | AH129: 35% | AI129: 35% | AJ129: 35% | AK129: 35% | AL129: 50%
AD130: 0.0875 | AE130: 0.08819444444 | AF130: 35% | AG130: 35% | AH130: 35% | AI130: 35% | AJ130: 35% | AK130: 35% | AL130: 50%
AD131: 0.08819444444 | AE131: 0.08888888889 | AF131: 35% | AG131: 35% | AH131: 35% | AI131: 35% | AJ131: 35% | AK131: 35% | AL131: 50%
AD132: 0.08888888889 | AE132: 0.08958333333 | AF132: =IF($AE$2=2,IFERROR(VLOOKUP($AD132,CorSN_matrix,AF$3,FALSE),AF131),IFERROR(VLOOKUP($AD132,V_matrix,AF$3,FALSE),AF131)) -> 35% | AG132: =IF($AE$2=2,IFERROR(VLOOKUP($AD132,CorSN_matrix,AG$3,FALSE),AG131),IFERROR(VLOOKUP($AD132,V_matrix,AG$3,FALSE),AG131)) -> 35% | AH132: =IF($AE$2=2,IFERROR(VLOOKUP($AD132,CorSN_matrix,AH$3,FALSE),AH131),IFERROR(VLOOKUP($AD132,V_matrix,AH$3,FALSE),AH131)) -> 35% | AI132: =IF($AE$2=2,IFERROR(VLOOKUP($AD132,CorSN_matrix,AI$3,FALSE),AI131),IFERROR(VLOOKUP($AD132,V_matrix,AI$3,FALSE),AI131)) -> 35% | AJ132: =IF($AE$2=2,IFERROR(VLOOKUP($AD132,CorSN_matrix,AJ$3,FALSE),AJ131),IFERROR(VLOOKUP($AD132,V_matrix,AJ$3,FALSE),AJ131)) -> 35% | AK132: =IF($AE$2=2,IFERROR(VLOOKUP($AD132,CorSN_matrix,AK$3,FALSE),AK131),IFERROR(VLOOKUP($AD132,V_matrix,AK$3,FALSE),AK131)) -> 35% | AL132: =IF($AE$2=2,IFERROR(VLOOKUP($AD132,CorSN_matrix,AL$3,FALSE),AL131),IFERROR(VLOOKUP($AD132,V_matrix,AL$3,FALSE),AL131)) -> 50%
AD133: 0.08958333333 | AE133: 0.09027777778 | AF133: 35% | AG133: 35% | AH133: 35% | AI133: 35% | AJ133: 35% | AK133: 35% | AL133: 50%
AD134: 0.09027777778 | AE134: 0.09097222222 | AF134: 35% | AG134: 35% | AH134: 35% | AI134: 35% | AJ134: 35% | AK134: 35% | AL134: 50%
AD135: 0.09097222222 | AE135: 0.09166666667 | AF135: 35% | AG135: 35% | AH135: 35% | AI135: 35% | AJ135: 35% | AK135: 35% | AL135: 50%
AD136: 0.09166666667 | AE136: 0.09236111111 | AF136: 35% | AG136: 35% | AH136: 35% | AI136: 35% | AJ136: 35% | AK136: 35% | AL136: 50%
AD137: 0.09236111111 | AE137: 0.09305555556 | AF137: 35% | AG137: 35% | AH137: 35% | AI137: 35% | AJ137: 35% | AK137: 35% | AL137: 50%
AD138: 0.09305555556 | AE138: 0.09375 | AF138: 35% | AG138: 35% | AH138: 35% | AI138: 35% | AJ138: 35% | AK138: 35% | AL138: 50%
AD139: 0.09375 | AE139: 0.09444444444 | AF139: 35% | AG139: 35% | AH139: 35% | AI139: 35% | AJ139: 35% | AK139: 35% | AL139: 50%
AD140: 0.09444444444 | AE140: 0.09513888889 | AF140: 35% | AG140: 35% | AH140: 35% | AI140: 35% | AJ140: 35% | AK140: 35% | AL140: 50%
AD141: 0.09513888889 | AE141: 0.09583333333 | AF141: 35% | AG141: 35% | AH141: 35% | AI141: 35% | AJ141: 35% | AK141: 35% | AL141: 50%
AD142: 0.09583333333 | AE142: 0.09652777778 | AF142: 35% | AG142: 35% | AH142: 35% | AI142: 35% | AJ142: 35% | AK142: 35% | AL142: 50%
AD143: 0.09652777778 | AE143: 0.09722222222 | AF143: 35% | AG143: 35% | AH143: 35% | AI143: 35% | AJ143: 35% | AK143: 35% | AL143: 50%
AD144: 0.09722222222 | AE144: 0.09791666667 | AF144: 35% | AG144: 35% | AH144: 35% | AI144: 35% | AJ144: 35% | AK144: 35% | AL144: 50%
AD145: 0.09791666667 | AE145: 0.09861111111 | AF145: 35% | AG145: 35% | AH145: 35% | AI145: 35% | AJ145: 35% | AK145: 35% | AL145: 50%
AD146: 0.09861111111 | AE146: 0.09930555556 | AF146: 35% | AG146: 35% | AH146: 35% | AI146: 35% | AJ146: 35% | AK146: 35% | AL146: 50%
AD147: 0.09930555556 | AE147: 0.1 | AF147: 35% | AG147: 35% | AH147: 35% | AI147: 35% | AJ147: 35% | AK147: 35% | AL147: 50%
AD148: 0.1 | AE148: 0.1006944444 | AF148: 35% | AG148: 35% | AH148: 35% | AI148: 35% | AJ148: 35% | AK148: 35% | AL148: 50%
AD149: 0.1006944444 | AE149: 0.1013888889 | AF149: 35% | AG149: 35% | AH149: 35% | AI149: 35% | AJ149: 35% | AK149: 35% | AL149: 50%
AD150: 0.1013888889 | AE150: 0.1020833333 | AF150: 35% | AG150: 35% | AH150: 35% | AI150: 35% | AJ150: 35% | AK150: 35% | AL150: 50%
AD151: 0.1020833333 | AE151: 0.1027777778 | AF151: 35% | AG151: 35% | AH151: 35% | AI151: 35% | AJ151: 35% | AK151: 35% | AL151: 50%
AD152: 0.1027777778 | AE152: 0.1034722222 | AF152: 35% | AG152: 35% | AH152: 35% | AI152: 35% | AJ152: 35% | AK152: 35% | AL152: 50%
AD153: 0.1034722222 | AE153: 0.1041666667 | AF153: 35% | AG153: 35% | AH153: 35% | AI153: 35% | AJ153: 35% | AK153: 35% | AL153: 50%
AD154: 0.1041666667 | AE154: 0.1048611111 | AF154: 35% | AG154: 35% | AH154: 35% | AI154: 35% | AJ154: 35% | AK154: 35% | AL154: 50%
AD155: 0.1048611111 | AE155: 0.1055555556 | AF155: 35% | AG155: 35% | AH155: 35% | AI155: 35% | AJ155: 35% | AK155: 35% | AL155: 50%
AD156: 0.1055555556 | AE156: 0.10625 | AF156: 35% | AG156: 35% | AH156: 35% | AI156: 35% | AJ156: 35% | AK156: 35% | AL156: 50%
AD157: 0.10625 | AE157: 0.1069444444 | AF157: 35% | AG157: 35% | AH157: 35% | AI157: 35% | AJ157: 35% | AK157: 35% | AL157: 50%
AD158: 0.1069444444 | AE158: 0.1076388889 | AF158: 35% | AG158: 35% | AH158: 35% | AI158: 35% | AJ158: 35% | AK158: 35% | AL158: 50%
AD159: 0.1076388889 | AE159: 0.1083333333 | AF159: 35% | AG159: 35% | AH159: 35% | AI159: 35% | AJ159: 35% | AK159: 35% | AL159: 50%
AD160: 0.1083333333 | AE160: 0.1090277778 | AF160: 35% | AG160: 35% | AH160: 35% | AI160: 35% | AJ160: 35% | AK160: 35% | AL160: 50%
AD161: 0.1090277778 | AE161: 0.1097222222 | AF161: 35% | AG161: 35% | AH161: 35% | AI161: 35% | AJ161: 35% | AK161: 35% | AL161: 50%
AD162: 0.1097222222 | AE162: 0.1104166667 | AF162: 35% | AG162: 35% | AH162: 35% | AI162: 35% | AJ162: 35% | AK162: 35% | AL162: 50%
AD163: 0.1104166667 | AE163: 0.1111111111 | AF163: 35% | AG163: 35% | AH163: 35% | AI163: 35% | AJ163: 35% | AK163: 35% | AL163: 50%
AD164: 0.1111111111 | AE164: 0.1118055556 | AF164: 35% | AG164: 35% | AH164: 35% | AI164: 35% | AJ164: 35% | AK164: 35% | AL164: 50%
AD165: 0.1118055556 | AE165: 0.1125 | AF165: 35% | AG165: 35% | AH165: 35% | AI165: 35% | AJ165: 35% | AK165: 35% | AL165: 50%
AD166: 0.1125 | AE166: 0.1131944444 | AF166: 35% | AG166: 35% | AH166: 35% | AI166: 35% | AJ166: 35% | AK166: 35% | AL166: 50%
AD167: 0.1131944444 | AE167: 0.1138888889 | AF167: 35% | AG167: 35% | AH167: 35% | AI167: 35% | AJ167: 35% | AK167: 35% | AL167: 50%
AD168: 0.1138888889 | AE168: 0.1145833333 | AF168: 35% | AG168: 35% | AH168: 35% | AI168: 35% | AJ168: 35% | AK168: 35% | AL168: 50%
AD169: 0.1145833333 | AE169: 0.1152777778 | AF169: 35% | AG169: 35% | AH169: 35% | AI169: 35% | AJ169: 35% | AK169: 35% | AL169: 50%
AD170: 0.1152777778 | AE170: 0.1159722222 | AF170: 35% | AG170: 35% | AH170: 35% | AI170: 35% | AJ170: 35% | AK170: 35% | AL170: 50%
AD171: 0.1159722222 | AE171: 0.1166666667 | AF171: 35% | AG171: 35% | AH171: 35% | AI171: 35% | AJ171: 35% | AK171: 35% | AL171: 50%
AD172: 0.1166666667 | AE172: 0.1173611111 | AF172: 35% | AG172: 35% | AH172: 35% | AI172: 35% | AJ172: 35% | AK172: 35% | AL172: 50%
AD173: 0.1173611111 | AE173: 0.1180555556 | AF173: 35% | AG173: 35% | AH173: 35% | AI173: 35% | AJ173: 35% | AK173: 35% | AL173: 50%
AD174: 0.1180555556 | AE174: 0.11875 | AF174: 35% | AG174: 35% | AH174: 35% | AI174: 35% | AJ174: 35% | AK174: 35% | AL174: 50%
AD175: 0.11875 | AE175: 0.1194444444 | AF175: 35% | AG175: 35% | AH175: 35% | AI175: 35% | AJ175: 35% | AK175: 35% | AL175: 50%
AD176: 0.1194444444 | AE176: 0.1201388889 | AF176: 35% | AG176: 35% | AH176: 35% | AI176: 35% | AJ176: 35% | AK176: 35% | AL176: 50%
AD177: 0.1201388889 | AE177: 0.1208333333 | AF177: 35% | AG177: 35% | AH177: 35% | AI177: 35% | AJ177: 35% | AK177: 35% | AL177: 50%
AD178: 0.1208333333 | AE178: 0.1215277778 | AF178: 35% | AG178: 35% | AH178: 35% | AI178: 35% | AJ178: 35% | AK178: 35% | AL178: 50%
AD179: 0.1215277778 | AE179: 0.1222222222 | AF179: 35% | AG179: 35% | AH179: 35% | AI179: 35% | AJ179: 35% | AK179: 35% | AL179: 50%
AD180: 0.1222222222 | AE180: 0.1229166667 | AF180: 35% | AG180: 35% | AH180: 35% | AI180: 35% | AJ180: 35% | AK180: 35% | AL180: 50%
AD181: 0.1229166667 | AE181: 0.1236111111 | AF181: 35% | AG181: 35% | AH181: 35% | AI181: 35% | AJ181: 35% | AK181: 35% | AL181: 50%
AD182: 0.1236111111 | AE182: 0.1243055556 | AF182: 35% | AG182: 35% | AH182: 35% | AI182: 35% | AJ182: 35% | AK182: 35% | AL182: 50%
AD183: 0.1243055556 | AE183: 0.125 | AF183: 35% | AG183: 35% | AH183: 35% | AI183: 35% | AJ183: 35% | AK183: 35% | AL183: 50%
AD184: 0.125 | AE184: 0.1256944444 | AF184: 35% | AG184: 35% | AH184: 35% | AI184: 35% | AJ184: 35% | AK184: 35% | AL184: 50%
AD185: 0.1256944444 | AE185: 0.1263888889 | AF185: 35% | AG185: 35% | AH185: 35% | AI185: 35% | AJ185: 35% | AK185: 35% | AL185: 50%
AD186: 0.1263888889 | AE186: 0.1270833333 | AF186: 35% | AG186: 35% | AH186: 35% | AI186: 35% | AJ186: 35% | AK186: 35% | AL186: 50%
AD187: 0.1270833333 | AE187: 0.1277777778 | AF187: 35% | AG187: 35% | AH187: 35% | AI187: 35% | AJ187: 35% | AK187: 35% | AL187: 50%
AD188: 0.1277777778 | AE188: 0.1284722222 | AF188: 35% | AG188: 35% | AH188: 35% | AI188: 35% | AJ188: 35% | AK188: 35% | AL188: 50%
AD189: 0.1284722222 | AE189: 0.1291666667 | AF189: 35% | AG189: 35% | AH189: 35% | AI189: 35% | AJ189: 35% | AK189: 35% | AL189: 50%
AD190: 0.1291666667 | AE190: 0.1298611111 | AF190: 35% | AG190: 35% | AH190: 35% | AI190: 35% | AJ190: 35% | AK190: 35% | AL190: 50%
AD191: 0.1298611111 | AE191: 0.1305555556 | AF191: 35% | AG191: 35% | AH191: 35% | AI191: 35% | AJ191: 35% | AK191: 35% | AL191: 50%
AD192: 0.1305555556 | AE192: 0.13125 | AF192: 35% | AG192: 35% | AH192: 35% | AI192: 35% | AJ192: 35% | AK192: 35% | AL192: 50%
AD193: 0.13125 | AE193: 0.1319444444 | AF193: 35% | AG193: 35% | AH193: 35% | AI193: 35% | AJ193: 35% | AK193: 35% | AL193: 50%
AD194: 0.1319444444 | AE194: 0.1326388889 | AF194: 35% | AG194: 35% | AH194: 35% | AI194: 35% | AJ194: 35% | AK194: 35% | AL194: 50%
AD195: 0.1326388889 | AE195: 0.1333333333 | AF195: 35% | AG195: 35% | AH195: 35% | AI195: 35% | AJ195: 35% | AK195: 35% | AL195: 50%
AD196: 0.1333333333 | AE196: 0.1340277778 | AF196: =IF($AE$2=2,IFERROR(VLOOKUP($AD196,CorSN_matrix,AF$3,FALSE),AF195),IFERROR(VLOOKUP($AD196,V_matrix,AF$3,FALSE),AF195)) -> 35% | AG196: =IF($AE$2=2,IFERROR(VLOOKUP($AD196,CorSN_matrix,AG$3,FALSE),AG195),IFERROR(VLOOKUP($AD196,V_matrix,AG$3,FALSE),AG195)) -> 35% | AH196: =IF($AE$2=2,IFERROR(VLOOKUP($AD196,CorSN_matrix,AH$3,FALSE),AH195),IFERROR(VLOOKUP($AD196,V_matrix,AH$3,FALSE),AH195)) -> 35% | AI196: =IF($AE$2=2,IFERROR(VLOOKUP($AD196,CorSN_matrix,AI$3,FALSE),AI195),IFERROR(VLOOKUP($AD196,V_matrix,AI$3,FALSE),AI195)) -> 35% | AJ196: =IF($AE$2=2,IFERROR(VLOOKUP($AD196,CorSN_matrix,AJ$3,FALSE),AJ195),IFERROR(VLOOKUP($AD196,V_matrix,AJ$3,FALSE),AJ195)) -> 35% | AK196: =IF($AE$2=2,IFERROR(VLOOKUP($AD196,CorSN_matrix,AK$3,FALSE),AK195),IFERROR(VLOOKUP($AD196,V_matrix,AK$3,FALSE),AK195)) -> 35% | AL196: =IF($AE$2=2,IFERROR(VLOOKUP($AD196,CorSN_matrix,AL$3,FALSE),AL195),IFERROR(VLOOKUP($AD196,V_matrix,AL$3,FALSE),AL195)) -> 50%
AD197: 0.1340277778 | AE197: 0.1347222222 | AF197: 35% | AG197: 35% | AH197: 35% | AI197: 35% | AJ197: 35% | AK197: 35% | AL197: 50%
AD198: 0.1347222222 | AE198: 0.1354166667 | AF198: 35% | AG198: 35% | AH198: 35% | AI198: 35% | AJ198: 35% | AK198: 35% | AL198: 50%
AD199: 0.1354166667 | AE199: 0.1361111111 | AF199: 35% | AG199: 35% | AH199: 35% | AI199: 35% | AJ199: 35% | AK199: 35% | AL199: 50%
AD200: 0.1361111111 | AE200: 0.1368055556 | AF200: 35% | AG200: 35% | AH200: 35% | AI200: 35% | AJ200: 35% | AK200: 35% | AL200: 50%
AD201: 0.1368055556 | AE201: 0.1375 | AF201: 35% | AG201: 35% | AH201: 35% | AI201: 35% | AJ201: 35% | AK201: 35% | AL201: 50%
... 1722 more rows

Sheet toeslag berekening (hidden)
A6: Naam rooster --> | K6: Week | L6: ma | M6: di | N6: wo | O6: do | P6: vr | Q6: za | R6: zo | T6: ="Berekening Toeslag rooster: "&IF(C6=0,"",$C$6) -> Berekening Toeslag rooster:
K7: 1 | BZ7: =COUNTIF(Standaard!BM8:BM17,">"&0) -> 0 | CA7: =COUNTIF(Standaard!BN8:BN17,">"&0) -> 0
A8: Dienst code | B8: Omschrijving | D8: Dienst | F8: Arbeidstijd | H8: Pauze | I8: Pauze | K8: 2 | T8: 1 | U8: Aanstelling percentage | Y8: 100.00% | AA8: =Standaard!$AR$6 -> Klokurenmatrix voor werknemers in ploegendiensten
B9: Dienst | D9: Aanvangstijd | E9: Eindtijd | F9: dienst | H9: tijd | I9: betaald? | K9: 3 | U9: ="Aanstelling percentage "&ROUND(Y8*100,2)&" % X voltijdnorm "&contract&" uur p/w =" -> Aanstelling percentage 100 % X voltijdnorm 40 uur p/w = | Y9: =Y8*contract -> 40.00 uur | AA9: van | AB9: tot | AC9: Ma | AD9: Di | AE9: Wo | AF9: Do | AG9: Vr | AH9: Za | AI9: Zo | BZ9: =SUMIFS(Standaard!$BD$8:$BD$17,Standaard!BM8:BM17,">"&0) -> 0 | CA9: =SUMIFS(Standaard!$BD$8:$BD$17,Standaard!BN8:BN17,">"&0) -> 0
A10: O | B10: Ochtenddienst | D10: 0.25 | E10: 0.5833333333 | F10: =IF(Standaard!BF8="","",Standaard!BF8/24) -> 08:00:00 | H10: 00:30:00 | I10: ja | K10: 4 | AA10: 00:00:00 | AB10: 01:00:00 | AC10: =IF(keuze_S_V=1,Standaard!D27,IF(keuze_S_V=2,variant!D27,"")) -> 35.00% | AD10: =IF(keuze_S_V=1,Standaard!E27,IF(keuze_S_V=2,variant!E27,"")) -> 35.00% | AE10: =IF(keuze_S_V=1,Standaard!F27,IF(keuze_S_V=2,variant!F27,"")) -> 35.00% | AF10: =IF(keuze_S_V=1,Standaard!G27,IF(keuze_S_V=2,variant!G27,"")) -> 35.00% | AG10: =IF(keuze_S_V=1,Standaard!H27,IF(keuze_S_V=2,variant!H27,"")) -> 35.00% | AH10: =IF(keuze_S_V=1,Standaard!I27,IF(keuze_S_V=2,variant!I27,"")) -> 35.00% | AI10: =IF(keuze_S_V=1,Standaard!J27,IF(keuze_S_V=2,variant!J27,"")) -> 100.00%
A11: M | B11: Middagdienst | D11: 0.5833333333 | E11: 0.9166666667 | F11: =IF(Standaard!BF9="","",Standaard!BF9/24) -> 08:00:00 | H11: 00:30:00 | I11: ja | K11: 5 | T11: 2 | U11: Roosterkenmerken | AA11: 01:00:00 | AB11: 02:00:00 | AC11: =IF(keuze_S_V=1,Standaard!D26,IF(keuze_S_V=2,variant!D26,"")) -> 35.00% | AD11: =IF(keuze_S_V=1,Standaard!E26,IF(keuze_S_V=2,variant!E26,"")) -> 35.00% | AE11: =IF(keuze_S_V=1,Standaard!F26,IF(keuze_S_V=2,variant!F26,"")) -> 35.00% | AF11: =IF(keuze_S_V=1,Standaard!G26,IF(keuze_S_V=2,variant!G26,"")) -> 35.00% | AG11: =IF(keuze_S_V=1,Standaard!H26,IF(keuze_S_V=2,variant!H26,"")) -> 35.00% | AH11: =IF(keuze_S_V=1,Standaard!I26,IF(keuze_S_V=2,variant!I26,"")) -> 35.00% | AI11: =IF(keuze_S_V=1,Standaard!J26,IF(keuze_S_V=2,variant!J26,"")) -> 100.00%
A12: N | B12: Nachtdienst | D12: 0.9166666667 | E12: 0.25 | F12: =IF(Standaard!BF10="","",Standaard!BF10/24) -> 08:00:00 | H12: 00:30:00 | I12: ja | K12: 6 | U12: lengte roostercyclus | Y12: =Standaard!BB6 -> 0 | AA12: 02:00:00 | AB12: 03:00:00 | AC12: =IF(keuze_S_V=1,Standaard!D25,IF(keuze_S_V=2,variant!D25,"")) -> 35.00% | AD12: =IF(keuze_S_V=1,Standaard!E25,IF(keuze_S_V=2,variant!E25,"")) -> 35.00% | AE12: =IF(keuze_S_V=1,Standaard!F25,IF(keuze_S_V=2,variant!F25,"")) -> 35.00% | AF12: =IF(keuze_S_V=1,Standaard!G25,IF(keuze_S_V=2,variant!G25,"")) -> 35.00% | AG12: =IF(keuze_S_V=1,Standaard!H25,IF(keuze_S_V=2,variant!H25,"")) -> 35.00% | AH12: =IF(keuze_S_V=1,Standaard!I25,IF(keuze_S_V=2,variant!I25,"")) -> 35.00% | AI12: =IF(keuze_S_V=1,Standaard!J25,IF(keuze_S_V=2,variant!J25,"")) -> 100.00%
A13: D | B13: Dagdienst | D13: 0.3333333333 | E13: 0.6666666667 | F13: =IF(Standaard!BF11="","",Standaard!BF11/24) -> 08:00:00 | H13: 00:30:00 | I13: ja | K13: 7 | U13: Aanwezigheidstijd rooster | Y13: =IFERROR(SUM(Standaard!$BE$8:$BE$18),0) -> 0.00 uur | AA13: 03:00:00 | AB13: 04:00:00 | AC13: =IF(keuze_S_V=1,Standaard!D24,IF(keuze_S_V=2,variant!D24,"")) -> 35.00% | AD13: =IF(keuze_S_V=1,Standaard!E24,IF(keuze_S_V=2,variant!E24,"")) -> 35.00% | AE13: =IF(keuze_S_V=1,Standaard!F24,IF(keuze_S_V=2,variant!F24,"")) -> 35.00% | AF13: =IF(keuze_S_V=1,Standaard!G24,IF(keuze_S_V=2,variant!G24,"")) -> 35.00% | AG13: =IF(keuze_S_V=1,Standaard!H24,IF(keuze_S_V=2,variant!H24,"")) -> 35.00% | AH13: =IF(keuze_S_V=1,Standaard!I24,IF(keuze_S_V=2,variant!I24,"")) -> 35.00% | AI13: =IF(keuze_S_V=1,Standaard!J24,IF(keuze_S_V=2,variant!J24,"")) -> 100.00%
F14: =IF(Standaard!BF12="","",Standaard!BF12/24) ->  | K14: 8 | U14: Som arbeidstijd roostercycus | Y14: =IFERROR(SUM(Standaard!$BG$8:$BG$18),0) -> 0.00 uur | AA14: 04:00:00 | AB14: 05:00:00 | AC14: =IF(keuze_S_V=1,Standaard!D23,IF(keuze_S_V=2,variant!D23,"")) -> 35.00% | AD14: =IF(keuze_S_V=1,Standaard!E23,IF(keuze_S_V=2,variant!E23,"")) -> 35.00% | AE14: =IF(keuze_S_V=1,Standaard!F23,IF(keuze_S_V=2,variant!F23,"")) -> 35.00% | AF14: =IF(keuze_S_V=1,Standaard!G23,IF(keuze_S_V=2,variant!G23,"")) -> 35.00% | AG14: =IF(keuze_S_V=1,Standaard!H23,IF(keuze_S_V=2,variant!H23,"")) -> 35.00% | AH14: =IF(keuze_S_V=1,Standaard!I23,IF(keuze_S_V=2,variant!I23,"")) -> 35.00% | AI14: =IF(keuze_S_V=1,Standaard!J23,IF(keuze_S_V=2,variant!J23,"")) -> 100.00%
F15: =IF(Standaard!BF13="","",Standaard!BF13/24) ->  | K15: 9 | U15: ="Gemiddelde wekelijkse arbeidstijd "&ROUND(Y14,2)&" uur / "&Y12&" weken = " -> Gemiddelde wekelijkse arbeidstijd 0 uur / 0 weken = | Y15: =IFERROR(SUM(Standaard!$BG$8:$BG$18)/$Y$12,0) -> 0.00 uur | AA15: 05:00:00 | AB15: 06:00:00 | AC15: =IF(keuze_S_V=1,Standaard!D22,IF(keuze_S_V=2,variant!D22,"")) -> 35.00% | AD15: =IF(keuze_S_V=1,Standaard!E22,IF(keuze_S_V=2,variant!E22,"")) -> 35.00% | AE15: =IF(keuze_S_V=1,Standaard!F22,IF(keuze_S_V=2,variant!F22,"")) -> 35.00% | AF15: =IF(keuze_S_V=1,Standaard!G22,IF(keuze_S_V=2,variant!G22,"")) -> 35.00% | AG15: =IF(keuze_S_V=1,Standaard!H22,IF(keuze_S_V=2,variant!H22,"")) -> 35.00% | AH15: =IF(keuze_S_V=1,Standaard!I22,IF(keuze_S_V=2,variant!I22,"")) -> 35.00% | AI15: =IF(keuze_S_V=1,Standaard!J22,IF(keuze_S_V=2,variant!J22,"")) -> 100.00%
F16: =IF(Standaard!BF14="","",Standaard!BF14/24) ->  | K16: 10 | AA16: 06:00:00 | AB16: 07:00:00 | AC16: =IF(keuze_S_V=1,Standaard!D21,IF(keuze_S_V=2,variant!D21,"")) -> 0.00% | AD16: =IF(keuze_S_V=1,Standaard!E21,IF(keuze_S_V=2,variant!E21,"")) -> 0.00% | AE16: =IF(keuze_S_V=1,Standaard!F21,IF(keuze_S_V=2,variant!F21,"")) -> 0.00% | AF16: =IF(keuze_S_V=1,Standaard!G21,IF(keuze_S_V=2,variant!G21,"")) -> 0.00% | AG16: =IF(keuze_S_V=1,Standaard!H21,IF(keuze_S_V=2,variant!H21,"")) -> 0.00% | AH16: =IF(keuze_S_V=1,Standaard!I21,IF(keuze_S_V=2,variant!I21,"")) -> 35.00% | AI16: =IF(keuze_S_V=1,Standaard!J21,IF(keuze_S_V=2,variant!J21,"")) -> 100.00%
F17: =IF(Standaard!BF15="","",Standaard!BF15/24) ->  | K17: 11 | U17: Aantal roostercycli in het jaar | Y17: =IFERROR(ROUND(wknjaar/Y12,2),0) -> 0.00 weken | AA17: 07:00:00 | AB17: 08:00:00 | AC17: =IF(keuze_S_V=1,Standaard!D20,IF(keuze_S_V=2,variant!D20,"")) -> 0.00% | AD17: =IF(keuze_S_V=1,Standaard!E20,IF(keuze_S_V=2,variant!E20,"")) -> 0.00% | AE17: =IF(keuze_S_V=1,Standaard!F20,IF(keuze_S_V=2,variant!F20,"")) -> 0.00% | AF17: =IF(keuze_S_V=1,Standaard!G20,IF(keuze_S_V=2,variant!G20,"")) -> 0.00% | AG17: =IF(keuze_S_V=1,Standaard!H20,IF(keuze_S_V=2,variant!H20,"")) -> 0.00% | AH17: =IF(keuze_S_V=1,Standaard!I20,IF(keuze_S_V=2,variant!I20,"")) -> 35.00% | AI17: =IF(keuze_S_V=1,Standaard!J20,IF(keuze_S_V=2,variant!J20,"")) -> 100.00%
F18: =IF(Standaard!BF16="","",Standaard!BF16/24) ->  | K18: 12 | U18: Arbeidsduur rooster op jaarbasis zonder pauzes | Y18: =Y14*Y17 -> 0.00 uur | AA18: 08:00:00 | AB18: 09:00:00 | AC18: =IF(keuze_S_V=1,Standaard!D19,IF(keuze_S_V=2,variant!D19,"")) -> 0.00% | AD18: =IF(keuze_S_V=1,Standaard!E19,IF(keuze_S_V=2,variant!E19,"")) -> 0.00% | AE18: =IF(keuze_S_V=1,Standaard!F19,IF(keuze_S_V=2,variant!F19,"")) -> 0.00% | AF18: =IF(keuze_S_V=1,Standaard!G19,IF(keuze_S_V=2,variant!G19,"")) -> 0.00% | AG18: =IF(keuze_S_V=1,Standaard!H19,IF(keuze_S_V=2,variant!H19,"")) -> 0.00% | AH18: =IF(keuze_S_V=1,Standaard!I19,IF(keuze_S_V=2,variant!I19,"")) -> 35.00% | AI18: =IF(keuze_S_V=1,Standaard!J19,IF(keuze_S_V=2,variant!J19,"")) -> 100.00%
F19: =IF(Standaard!BF17="","",Standaard!BF17/24) ->  | K19: 13 | U19: ="verschil arbeidsduur rooster per jaar - voltijduren per jaar "&ROUND(voltijd_uren*Y8,2)&" uur" -> verschil arbeidsduur rooster per jaar - voltijduren per jaar 2087 uur | Y19: =IF(Y18=0,0,Y18-(voltijd_uren*Y8)) -> 0.00uur | AA19: 09:00:00 | AB19: 10:00:00 | AC19: =IF(keuze_S_V=1,Standaard!D18,IF(keuze_S_V=2,variant!D18,"")) -> 0.00% | AD19: =IF(keuze_S_V=1,Standaard!E18,IF(keuze_S_V=2,variant!E18,"")) -> 0.00% | AE19: =IF(keuze_S_V=1,Standaard!F18,IF(keuze_S_V=2,variant!F18,"")) -> 0.00% | AF19: =IF(keuze_S_V=1,Standaard!G18,IF(keuze_S_V=2,variant!G18,"")) -> 0.00% | AG19: =IF(keuze_S_V=1,Standaard!H18,IF(keuze_S_V=2,variant!H18,"")) -> 0.00% | AH19: =IF(keuze_S_V=1,Standaard!I18,IF(keuze_S_V=2,variant!I18,"")) -> 35.00% | AI19: =IF(keuze_S_V=1,Standaard!J18,IF(keuze_S_V=2,variant!J18,"")) -> 100.00%
K20: 14 | AA20: 10:00:00 | AB20: 11:00:00 | AC20: =IF(keuze_S_V=1,Standaard!D17,IF(keuze_S_V=2,variant!D17,"")) -> 0.00% | AD20: =IF(keuze_S_V=1,Standaard!E17,IF(keuze_S_V=2,variant!E17,"")) -> 0.00% | AE20: =IF(keuze_S_V=1,Standaard!F17,IF(keuze_S_V=2,variant!F17,"")) -> 0.00% | AF20: =IF(keuze_S_V=1,Standaard!G17,IF(keuze_S_V=2,variant!G17,"")) -> 0.00% | AG20: =IF(keuze_S_V=1,Standaard!H17,IF(keuze_S_V=2,variant!H17,"")) -> 0.00% | AH20: =IF(keuze_S_V=1,Standaard!I17,IF(keuze_S_V=2,variant!I17,"")) -> 35.00% | AI20: =IF(keuze_S_V=1,Standaard!J17,IF(keuze_S_V=2,variant!J17,"")) -> 100.00%
B21: = alleen de blauwe velden invoeren | K21: 15 | T21: 3 | U21: ADV | AA21: 11:00:00 | AB21: 12:00:00 | AC21: =IF(keuze_S_V=1,Standaard!D16,IF(keuze_S_V=2,variant!D16,"")) -> 0.00% | AD21: =IF(keuze_S_V=1,Standaard!E16,IF(keuze_S_V=2,variant!E16,"")) -> 0.00% | AE21: =IF(keuze_S_V=1,Standaard!F16,IF(keuze_S_V=2,variant!F16,"")) -> 0.00% | AF21: =IF(keuze_S_V=1,Standaard!G16,IF(keuze_S_V=2,variant!G16,"")) -> 0.00% | AG21: =IF(keuze_S_V=1,Standaard!H16,IF(keuze_S_V=2,variant!H16,"")) -> 0.00% | AH21: =IF(keuze_S_V=1,Standaard!I16,IF(keuze_S_V=2,variant!I16,"")) -> 35.00% | AI21: =IF(keuze_S_V=1,Standaard!J16,IF(keuze_S_V=2,variant!J16,"")) -> 100.00%
K22: 16 | U22: Recht ADV uren per jaar | Y22: =adv_jr*Y8 -> 120.00uur | AA22: 12:00:00 | AB22: 13:00:00 | AC22: =IF(keuze_S_V=1,Standaard!D15,IF(keuze_S_V=2,variant!D15,"")) -> 0.00% | AD22: =IF(keuze_S_V=1,Standaard!E15,IF(keuze_S_V=2,variant!E15,"")) -> 0.00% | AE22: =IF(keuze_S_V=1,Standaard!F15,IF(keuze_S_V=2,variant!F15,"")) -> 0.00% | AF22: =IF(keuze_S_V=1,Standaard!G15,IF(keuze_S_V=2,variant!G15,"")) -> 0.00% | AG22: =IF(keuze_S_V=1,Standaard!H15,IF(keuze_S_V=2,variant!H15,"")) -> 0.00% | AH22: =IF(keuze_S_V=1,Standaard!I15,IF(keuze_S_V=2,variant!I15,"")) -> 35.00% | AI22: =IF(keuze_S_V=1,Standaard!J15,IF(keuze_S_V=2,variant!J15,"")) -> 100.00%
B23: GEEN KOLOMMEN/ RIJEN INVOEGEN EN/OF VERWIJDEREN; NIET SLEPEN MET CELLEN | K23: 17 | U23: Compenstatie ADV | Y23: =IF(Y24>0,Y22-Y24,IF(Y18<=((voltijd_uren-adv_jr)*Y8),(adv_jr*Y8),Y22-Y24)) -> 120.00uur | AA23: 13:00:00 | AB23: 14:00:00 | AC23: =IF(keuze_S_V=1,Standaard!D14,IF(keuze_S_V=2,variant!D14,"")) -> 0.00% | AD23: =IF(keuze_S_V=1,Standaard!E14,IF(keuze_S_V=2,variant!E14,"")) -> 0.00% | AE23: =IF(keuze_S_V=1,Standaard!F14,IF(keuze_S_V=2,variant!F14,"")) -> 0.00% | AF23: =IF(keuze_S_V=1,Standaard!G14,IF(keuze_S_V=2,variant!G14,"")) -> 0.00% | AG23: =IF(keuze_S_V=1,Standaard!H14,IF(keuze_S_V=2,variant!H14,"")) -> 0.00% | AH23: =IF(keuze_S_V=1,Standaard!I14,IF(keuze_S_V=2,variant!I14,"")) -> 35.00% | AI23: =IF(keuze_S_V=1,Standaard!J14,IF(keuze_S_V=2,variant!J14,"")) -> 100.00%
K24: 18 | U24: Opgenomen ADV uren per jaar | Y24: 0.00uur | AA24: 14:00:00 | AB24: 15:00:00 | AC24: =IF(keuze_S_V=1,Standaard!D13,IF(keuze_S_V=2,variant!D13,"")) -> 0.00% | AD24: =IF(keuze_S_V=1,Standaard!E13,IF(keuze_S_V=2,variant!E13,"")) -> 0.00% | AE24: =IF(keuze_S_V=1,Standaard!F13,IF(keuze_S_V=2,variant!F13,"")) -> 0.00% | AF24: =IF(keuze_S_V=1,Standaard!G13,IF(keuze_S_V=2,variant!G13,"")) -> 0.00% | AG24: =IF(keuze_S_V=1,Standaard!H13,IF(keuze_S_V=2,variant!H13,"")) -> 0.00% | AH24: =IF(keuze_S_V=1,Standaard!I13,IF(keuze_S_V=2,variant!I13,"")) -> 35.00% | AI24: =IF(keuze_S_V=1,Standaard!J13,IF(keuze_S_V=2,variant!J13,"")) -> 100.00%
K25: 19 | AA25: 15:00:00 | AB25: 16:00:00 | AC25: =IF(keuze_S_V=1,Standaard!D12,IF(keuze_S_V=2,variant!D12,"")) -> 0.00% | AD25: =IF(keuze_S_V=1,Standaard!E12,IF(keuze_S_V=2,variant!E12,"")) -> 0.00% | AE25: =IF(keuze_S_V=1,Standaard!F12,IF(keuze_S_V=2,variant!F12,"")) -> 0.00% | AF25: =IF(keuze_S_V=1,Standaard!G12,IF(keuze_S_V=2,variant!G12,"")) -> 0.00% | AG25: =IF(keuze_S_V=1,Standaard!H12,IF(keuze_S_V=2,variant!H12,"")) -> 0.00% | AH25: =IF(keuze_S_V=1,Standaard!I12,IF(keuze_S_V=2,variant!I12,"")) -> 35.00% | AI25: =IF(keuze_S_V=1,Standaard!J12,IF(keuze_S_V=2,variant!J12,"")) -> 100.00%
A26: Invulinstructie: | K26: 20 | U26: =U11&" en "&U21 -> Roosterkenmerken en ADV | AA26: 16:00:00 | AB26: 17:00:00 | AC26: =IF(keuze_S_V=1,Standaard!D11,IF(keuze_S_V=2,variant!D11,"")) -> 0.00% | AD26: =IF(keuze_S_V=1,Standaard!E11,IF(keuze_S_V=2,variant!E11,"")) -> 0.00% | AE26: =IF(keuze_S_V=1,Standaard!F11,IF(keuze_S_V=2,variant!F11,"")) -> 0.00% | AF26: =IF(keuze_S_V=1,Standaard!G11,IF(keuze_S_V=2,variant!G11,"")) -> 0.00% | AG26: =IF(keuze_S_V=1,Standaard!H11,IF(keuze_S_V=2,variant!H11,"")) -> 0.00% | AH26: =IF(keuze_S_V=1,Standaard!I11,IF(keuze_S_V=2,variant!I11,"")) -> 35.00% | AI26: =IF(keuze_S_V=1,Standaard!J11,IF(keuze_S_V=2,variant!J11,"")) -> 100.00%
A27: 1. Naam rooster invoeren (optioneel= cel C6) | K27: 21 | U27: Gewerkte uren per jaar | Y27: =IF(Y18=0,0,Y18+Y23) -> 0.00uur | AA27: 17:00:00 | AB27: 18:00:00 | AC27: =IF(keuze_S_V=1,Standaard!D10,IF(keuze_S_V=2,variant!D10,"")) -> 0.00% | AD27: =IF(keuze_S_V=1,Standaard!E10,IF(keuze_S_V=2,variant!E10,"")) -> 0.00% | AE27: =IF(keuze_S_V=1,Standaard!F10,IF(keuze_S_V=2,variant!F10,"")) -> 0.00% | AF27: =IF(keuze_S_V=1,Standaard!G10,IF(keuze_S_V=2,variant!G10,"")) -> 0.00% | AG27: =IF(keuze_S_V=1,Standaard!H10,IF(keuze_S_V=2,variant!H10,"")) -> 0.00% | AH27: =IF(keuze_S_V=1,Standaard!I10,IF(keuze_S_V=2,variant!I10,"")) -> 35.00% | AI27: =IF(keuze_S_V=1,Standaard!J10,IF(keuze_S_V=2,variant!J10,"")) -> 100.00%
A28: DIENSTEN | K28: 22 | U28: ="Verschil in tijd "&ROUND(Y27,2)&" uur- voltijduren per jaar "&ROUND(voltijd_uren*Y8,2)&" uur = " -> Verschil in tijd 0 uur- voltijduren per jaar 2087 uur = | Y28: =IF(Y19=0,0,Y19+Y23) -> 0.00uur | AA28: 18:00:00 | AB28: 19:00:00 | AC28: =IF(keuze_S_V=1,Standaard!D9,IF(keuze_S_V=2,variant!D9,"")) -> 33.00% | AD28: =IF(keuze_S_V=1,Standaard!E9,IF(keuze_S_V=2,variant!E9,"")) -> 33.00% | AE28: =IF(keuze_S_V=1,Standaard!F9,IF(keuze_S_V=2,variant!F9,"")) -> 33.00% | AF28: =IF(keuze_S_V=1,Standaard!G9,IF(keuze_S_V=2,variant!G9,"")) -> 33.00% | AG28: =IF(keuze_S_V=1,Standaard!H9,IF(keuze_S_V=2,variant!H9,"")) -> 33.00% | AH28: =IF(keuze_S_V=1,Standaard!I9,IF(keuze_S_V=2,variant!I9,"")) -> 35.00% | AI28: =IF(keuze_S_V=1,Standaard!J9,IF(keuze_S_V=2,variant!J9,"")) -> 100.00%
A29: 2. Dienstcode invoeren, deze code ook gebruiken in rooster | K29: 23 | U29: ="Verschil in betaalde uren in % van het maandsalaris "&ROUND(Y8*100,2)&" % = "&ROUND(Y9,2)&" uur per week" -> Verschil in betaalde uren in % van het maandsalaris 100 % = 40 uur per week | Y29: =Y28*perc_uurloon -> 0.00000% | AA29: 19:00:00 | AB29: 20:00:00 | AC29: =IF(keuze_S_V=1,Standaard!D8,IF(keuze_S_V=2,variant!D8,"")) -> 33.00% | AD29: =IF(keuze_S_V=1,Standaard!E8,IF(keuze_S_V=2,variant!E8,"")) -> 33.00% | AE29: =IF(keuze_S_V=1,Standaard!F8,IF(keuze_S_V=2,variant!F8,"")) -> 33.00% | AF29: =IF(keuze_S_V=1,Standaard!G8,IF(keuze_S_V=2,variant!G8,"")) -> 33.00% | AG29: =IF(keuze_S_V=1,Standaard!H8,IF(keuze_S_V=2,variant!H8,"")) -> 33.00% | AH29: =IF(keuze_S_V=1,Standaard!I8,IF(keuze_S_V=2,variant!I8,"")) -> 35.00% | AI29: =IF(keuze_S_V=1,Standaard!J8,IF(keuze_S_V=2,variant!J8,"")) -> 100.00%
B30: Bijvoorbeeld O = voor ochtenddienst | K30: 24 | AA30: 20:00:00 | AB30: 21:00:00 | AC30: =IF(keuze_S_V=1,Standaard!D7,IF(keuze_S_V=2,variant!D7,"")) -> 33.00% | AD30: =IF(keuze_S_V=1,Standaard!E7,IF(keuze_S_V=2,variant!E7,"")) -> 33.00% | AE30: =IF(keuze_S_V=1,Standaard!F7,IF(keuze_S_V=2,variant!F7,"")) -> 33.00% | AF30: =IF(keuze_S_V=1,Standaard!G7,IF(keuze_S_V=2,variant!G7,"")) -> 33.00% | AG30: =IF(keuze_S_V=1,Standaard!H7,IF(keuze_S_V=2,variant!H7,"")) -> 33.00% | AH30: =IF(keuze_S_V=1,Standaard!I7,IF(keuze_S_V=2,variant!I7,"")) -> 35.00% | AI30: =IF(keuze_S_V=1,Standaard!J7,IF(keuze_S_V=2,variant!J7,"")) -> 100.00%
K31: 25 | T31: 4 | U31: ="Toeslag kenmerken conform"&'Matrix keuze'!$F$1 -> Toeslag kenmerken conformKlokurenmatrix voor werknemers in ploegendiensten | AA31: 21:00:00 | AB31: 22:00:00 | AC31: =IF(keuze_S_V=1,Standaard!D6,IF(keuze_S_V=2,variant!D6,"")) -> 33.00% | AD31: =IF(keuze_S_V=1,Standaard!E6,IF(keuze_S_V=2,variant!E6,"")) -> 33.00% | AE31: =IF(keuze_S_V=1,Standaard!F6,IF(keuze_S_V=2,variant!F6,"")) -> 33.00% | AF31: =IF(keuze_S_V=1,Standaard!G6,IF(keuze_S_V=2,variant!G6,"")) -> 33.00% | AG31: =IF(keuze_S_V=1,Standaard!H6,IF(keuze_S_V=2,variant!H6,"")) -> 33.00% | AH31: =IF(keuze_S_V=1,Standaard!I6,IF(keuze_S_V=2,variant!I6,"")) -> 35.00% | AI31: =IF(keuze_S_V=1,Standaard!J6,IF(keuze_S_V=2,variant!J6,"")) -> 100.00%
A32: 3.Omschrijving van de dienst (optioneel) | K32: 26 | U32: ="Som toeslagen rooster " -> Som toeslagen rooster | Y32: =IF(keuze_S_V=0,"",IF(keuze_S_V=1,SUM(Standaard!$BH$20:$BN$29),IF(keuze_S_V=2,SUM(Standaard!$BH$33:$BN$42),""))) -> 0.00% | AA32: 22:00:00 | AB32: 23:00:00 | AC32: =IF(keuze_S_V=1,Standaard!D5,IF(keuze_S_V=2,variant!D5,"")) -> 33.00% | AD32: =IF(keuze_S_V=1,Standaard!E5,IF(keuze_S_V=2,variant!E5,"")) -> 33.00% | AE32: =IF(keuze_S_V=1,Standaard!F5,IF(keuze_S_V=2,variant!F5,"")) -> 33.00% | AF32: =IF(keuze_S_V=1,Standaard!G5,IF(keuze_S_V=2,variant!G5,"")) -> 33.00% | AG32: =IF(keuze_S_V=1,Standaard!H5,IF(keuze_S_V=2,variant!H5,"")) -> 33.00% | AH32: =IF(keuze_S_V=1,Standaard!I5,IF(keuze_S_V=2,variant!I5,"")) -> 35.00% | AI32: =IF(keuze_S_V=1,Standaard!J5,IF(keuze_S_V=2,variant!J5,"")) -> 100.00%
K33: 27 | U33: ="som toeslagen per jaar "&ROUND(Y32*100,2)&"% X "&ROUND(Y17,2)&" weken roostercycli" -> som toeslagen per jaar 0% X 0 weken roostercycli | Y33: =Y32*Y17 -> 0.00% | AA33: 23:00:00 | AB33: 00:00:00 | AC33: =IF(keuze_S_V=1,Standaard!D4,IF(keuze_S_V=2,variant!D4,"")) -> 33.00% | AD33: =IF(keuze_S_V=1,Standaard!E4,IF(keuze_S_V=2,variant!E4,"")) -> 33.00% | AE33: =IF(keuze_S_V=1,Standaard!F4,IF(keuze_S_V=2,variant!F4,"")) -> 33.00% | AF33: =IF(keuze_S_V=1,Standaard!G4,IF(keuze_S_V=2,variant!G4,"")) -> 33.00% | AG33: =IF(keuze_S_V=1,Standaard!H4,IF(keuze_S_V=2,variant!H4,"")) -> 33.00% | AH33: =IF(keuze_S_V=1,Standaard!I4,IF(keuze_S_V=2,variant!I4,"")) -> 35.00% | AI33: =IF(keuze_S_V=1,Standaard!J4,IF(keuze_S_V=2,variant!J4,"")) -> 100.00%
A34: 4. begin- en eindtijd dienst invoeren | K34: 28 | U34: ="Toeslag rooster in % van het maandsalaris "&ROUND(Y8*100,2)&" % = "&ROUND(Y9,2)&" uur per week" -> Toeslag rooster in % van het maandsalaris 100 % = 40 uur per week | Y34: =IFERROR(Y33/Y18*(Y27/(voltijd_uren*$Y$8)),0) -> 0.0000%
A35: =tijd invoeren als tijdwaarde dus 6 uur = 6:00 | K35: 29 | AB35: ="uren aanwezig in tijdzone: "&C6 -> uren aanwezig in tijdzone:
K36: 30 | T36: 5 | U36: Verlengde Bedrijfstijdtoeslag | AC36: ma | AD36: di | AE36: wo | AF36: do | AG36: vr | AH36: za | AI36: zo
A37: PAUZE | K37: 31 | U37: =IF(Standaard!$BO$2=0,"Verlengde Bedrijfstijdtoeslag is niet van toepassing","Aantal diensten bedrijfstijd per week is "&Standaard!BO3&" diensten minus 15 diensten = "&Standaard!BO2&" diensten X 1,64% X "&Y8*100&" % =") -> Verlengde Bedrijfstijdtoeslag is niet van toepassing | Y37: =IF(Standaard!BO2=0," ",Standaard!BO2*8*(Standaard!BP2*Y8)) ->  | AB37: =IF(keuze_S_V=1,Standaard!BH46,IF(keuze_S_V=2,Standaard!BH55,"")) -> 0.00% | AC37: =IF(keuze_S_V=1,Standaard!BI46,IF(keuze_S_V=2,Standaard!BI55,"")) -> 0 | AD37: =IF(keuze_S_V=1,Standaard!BJ46,IF(keuze_S_V=2,Standaard!BJ55,"")) -> 0 | AE37: =IF(keuze_S_V=1,Standaard!BK46,IF(keuze_S_V=2,Standaard!BK55,"")) -> 0 | AF37: =IF(keuze_S_V=1,Standaard!BL46,IF(keuze_S_V=2,Standaard!BL55,"")) -> 0 | AG37: =IF(keuze_S_V=1,Standaard!BM46,IF(keuze_S_V=2,Standaard!BM55,"")) -> 0 | AH37: =IF(keuze_S_V=1,Standaard!BN46,IF(keuze_S_V=2,Standaard!BN55,"")) -> 0 | AI37: =IF(keuze_S_V=1,Standaard!BO46,IF(keuze_S_V=2,Standaard!BO55,"")) -> 0
A38: 5. pauze tijd invoeren (indien van toepassing) | K38: 32 | AB38: =IF(keuze_S_V=1,Standaard!BH47,IF(keuze_S_V=2,Standaard!BH56,"")) -> 33.00% | AC38: =IF(keuze_S_V=1,Standaard!BI47,IF(keuze_S_V=2,Standaard!BI56,"")) -> 0 | AD38: =IF(keuze_S_V=1,Standaard!BJ47,IF(keuze_S_V=2,Standaard!BJ56,"")) -> 0 | AE38: =IF(keuze_S_V=1,Standaard!BK47,IF(keuze_S_V=2,Standaard!BK56,"")) -> 0 | AF38: =IF(keuze_S_V=1,Standaard!BL47,IF(keuze_S_V=2,Standaard!BL56,"")) -> 0 | AG38: =IF(keuze_S_V=1,Standaard!BM47,IF(keuze_S_V=2,Standaard!BM56,"")) -> 0 | AH38: =IF(keuze_S_V=1,Standaard!BN47,IF(keuze_S_V=2,Standaard!BN56,"")) -> 0 | AI38: =IF(keuze_S_V=1,Standaard!BO47,IF(keuze_S_V=2,Standaard!BO56,"")) -> 0
A39: 6. Pauze betaald? | K39: 33 | AB39: =IF(keuze_S_V=1,Standaard!BH48,IF(keuze_S_V=2,Standaard!BH57,"")) -> 35.00% | AC39: =IF(keuze_S_V=1,Standaard!BI48,IF(keuze_S_V=2,Standaard!BI57,"")) -> 0 | AD39: =IF(keuze_S_V=1,Standaard!BJ48,IF(keuze_S_V=2,Standaard!BJ57,"")) -> 0 | AE39: =IF(keuze_S_V=1,Standaard!BK48,IF(keuze_S_V=2,Standaard!BK57,"")) -> 0 | AF39: =IF(keuze_S_V=1,Standaard!BL48,IF(keuze_S_V=2,Standaard!BL57,"")) -> 0 | AG39: =IF(keuze_S_V=1,Standaard!BM48,IF(keuze_S_V=2,Standaard!BM57,"")) -> 0 | AH39: =IF(keuze_S_V=1,Standaard!BN48,IF(keuze_S_V=2,Standaard!BN57,"")) -> 0 | AI39: =IF(keuze_S_V=1,Standaard!BO48,IF(keuze_S_V=2,Standaard!BO57,"")) -> 0
A40: ja = pauze betaalde pauze; nee = pauze eigen tijd | K40: 34 | T40: 5 | U40: Toeslag berekening | AB40: =IF(keuze_S_V=1,Standaard!BH49,IF(keuze_S_V=2,Standaard!BH58,"")) -> 100.00% | AC40: =IF(keuze_S_V=1,Standaard!BI49,IF(keuze_S_V=2,Standaard!BI58,"")) -> 0 | AD40: =IF(keuze_S_V=1,Standaard!BJ49,IF(keuze_S_V=2,Standaard!BJ58,"")) -> 0 | AE40: =IF(keuze_S_V=1,Standaard!BK49,IF(keuze_S_V=2,Standaard!BK58,"")) -> 0 | AF40: =IF(keuze_S_V=1,Standaard!BL49,IF(keuze_S_V=2,Standaard!BL58,"")) -> 0 | AG40: =IF(keuze_S_V=1,Standaard!BM49,IF(keuze_S_V=2,Standaard!BM58,"")) -> 0 | AH40: =IF(keuze_S_V=1,Standaard!BN49,IF(keuze_S_V=2,Standaard!BN58,"")) -> 0 | AI40: =IF(keuze_S_V=1,Standaard!BO49,IF(keuze_S_V=2,Standaard!BO58,"")) -> 0
K41: 35 | U41: =U29 -> Verschil in betaalde uren in % van het maandsalaris 100 % = 40 uur per week | Y41: =Y29 -> 0.00000% | AB41: =IF(keuze_S_V=1,Standaard!BH50,IF(keuze_S_V=2,Standaard!BH59,"")) ->  | AC41: =IF(keuze_S_V=1,Standaard!BI50,IF(keuze_S_V=2,Standaard!BI59,"")) ->  | AD41: =IF(keuze_S_V=1,Standaard!BJ50,IF(keuze_S_V=2,Standaard!BJ59,"")) ->  | AE41: =IF(keuze_S_V=1,Standaard!BK50,IF(keuze_S_V=2,Standaard!BK59,"")) ->  | AF41: =IF(keuze_S_V=1,Standaard!BL50,IF(keuze_S_V=2,Standaard!BL59,"")) ->  | AG41: =IF(keuze_S_V=1,Standaard!BM50,IF(keuze_S_V=2,Standaard!BM59,"")) ->  | AH41: =IF(keuze_S_V=1,Standaard!BN50,IF(keuze_S_V=2,Standaard!BN59,"")) ->  | AI41: =IF(keuze_S_V=1,Standaard!BO50,IF(keuze_S_V=2,Standaard!BO59,"")) -> 
A42: ROOSTER | K42: 36 | U42: =U34 -> Toeslag rooster in % van het maandsalaris 100 % = 40 uur per week | Y42: =Y34 -> 0.00000%
A43: 7. rooster invoeren --> handmatig of vanuit Excel met plakken waarden met de dienstcodes uit diensten | K43: 37 | U43: =IF(Y37="","",U36&" "&U37) -> Verlengde Bedrijfstijdtoeslag Verlengde Bedrijfstijdtoeslag is niet van toepassing | Y43: =IF(Y37=" "," ",Y37) -> 
K44: 38 | X44: Totaal toeslagen | Y44: =SUM(Y41:Y43) -> 0.00000%
A45: het aantal weken van het basisrooster invoeren (= 1 roostercyclus invullen, niet alle 52 weken) | K45: 39
K46: 40 | U46: afgerond op 0,5% naar boven geeft dit een ploegendienst percentage van: | Y46: =CEILING(Y44,0.005) -> 0.00%
K47: 41 | U47: ="op het loon volgens de loontabellen in bijlage B, bij een aanstelling van: "&ROUND(Y8*100,2)&" % = "&ROUND(Y9,2)&" uur per week" -> op het loon volgens de loontabellen in bijlage B, bij een aanstelling van: 100 % = 40 uur per week
A48: OVERIG | K48: 42
A49: 8. aanstellingspercentage wijzigen (indien van toepassing; wordt gebruikt bij parttime contracten) = cel Y8 | K49: 43
K50: 44
A51: 9. Opgenomen ADV uren invoeren, hier de feitelijk openomen ADV uren aangeven (cel Y24) | K51: 45
K52: 46
K53: 47
K54: 48
K55: 49
K56: 50
K57: 51
K58: 52
